Directorate,Department,Expenditure Type,Ref.Doc.1,Vendor Name,Expenditure Amount (exc VAT),Payment Date
Central Expenses,Central Expenses,Other Establishments - Third P,EBX0304256PAY,ENVIRONMENT AGENCY,"82,845.00",30/09/2019
COMMERCIAL,HOUSING NEEDS RESOURCES,Grant Payments,80027364,WAVEEFFECT,"25,500.00",16/09/2019
COMMERCIAL,HOUSING NEEDS RESOURCES,Other Agencies - Third Party P,60139900,THE BARNETGROUP LIMITED,"1,053,000.00",27/09/2019
COMMERCIAL,HOUSING NEEDS RESOURCES,Professional Services,60138870,TBG OPEN DOOR LIMITED,"2,033,915.37",16/09/2019
COMMERCIAL,HOUSING NEEDS RESOURCES,Professional Services,60138951,TBG OPEN DOOR LIMITED,"4,793,260.57",16/09/2019
COMMERCIAL,HOUSING NEEDS RESOURCES,Capital Construction and Works,60138671,WATES CONSTRUCTION LTD,"24,492.00",12/09/2019
COMMERCIAL,HOUSING REVENUE ACCOUNT,Consultants Fees,60138148,ALLIES AND MORRRISON,"69,350.00",02/09/2019
COMMERCIAL,HOUSING REVENUE ACCOUNT,Consultants Fees,60138331,ALLIES AND MORRRISON,"69,350.00",04/09/2019
COMMERCIAL,HOUSING REVENUE ACCOUNT,Other Agencies - Third Party P,60139852,THE BARNETGROUP LIMITED,"1,018,000.00",27/09/2019
COMMERCIAL,HOUSING REVENUE ACCOUNT,Other Agencies - Third Party P,60139895,THE BARNETGROUP LIMITED,"101,200.00",27/09/2019
Commercial,HRA,Consultants Fees,60138213,PRIORITY ESTATES PROJECT LTD,"2,654.30",02/09/2019
Commercial,HRA,Advertising,60138130,TMP (UK) LTD,880.00,02/09/2019
Commercial,HRA,Consultants Fees,60138918,THE BARNETGROUP LIMITED,"40,654.20",13/09/2019
Commercial,HRA,Other Services,80028886,THAMES WATER UTILITIES,"307,962.93",10/09/2019
Commercial,HRA,Building Repairs & Maintenance,60138162,SECOM PLC,717.86,02/09/2019
Commercial,HRA,Consultants Fees,60139193,EPC ASSURE LTD,278.00,17/09/2019
Commercial,HRA,Other Services,60139809,THE BARNETGROUP LIMITED,"2,020,145.93",27/09/2019
Commercial,HRA,Private Contractors - Third Pa,80028816,REDACTED - PERSONAL DATA,"1,500.00",04/09/2019
Commercial,HRA,Private Contractors - Third Pa,80028822,REDACTED - PERSONAL DATA,"1,451.18",04/09/2019
Commercial,HRA,Private Contractors - Third Pa,80028850,REDACTED - PERSONAL DATA,"1,245.52",04/09/2019
Commercial,HRA,Private Contractors - Third Pa,80029266,REDACTED - PERSONAL DATA,"3,521.20",30/09/2019
Commercial,HRA,Private Contractors - Third Pa,80028711,REDACTED - PERSONAL DATA,914.08,12/09/2019
Commercial,HRA,Consultants Fees,60138534,TROWERS & HAMLINS,"3,303.92",10/09/2019
Commercial,Regional Enterprise,Legal and Court Fees,80028466,SFPL LTD,"2,472.65",20/09/2019
Commercial,Regional Enterprise,Legal and Court Fees,80028651,TOOLSTATION LIMITED,"5,375.00",02/09/2019
Commercial,Regional Enterprise,Legal and Court Fees,80028077,REDACTED - PERSONAL DATA,300.00,17/09/2019
Commercial,Regional Enterprise,Other Services,60138171,CONWAY AECOM LTD,"5,312.73",25/09/2019
Commercial,Regional Enterprise,Other Services,60139020,CONWAY AECOM LTD,"19,824.78",16/09/2019
Commercial,Regional Enterprise,Other Services,60139037,CONWAY AECOM LTD,"19,824.78",16/09/2019
Commercial,Regional Enterprise,Other Services,60139039,CONWAY AECOM LTD,230.18,16/09/2019
Commercial,Regional Enterprise,Other Services,60139100,CONWAY AECOM LTD,"19,824.78",17/09/2019
Commercial,Regional Enterprise,Other Services,60139124,CONWAY AECOM LTD,"19,824.78",17/09/2019
Commercial,Regional Enterprise,Other Services,60140095,CONWAY AECOM LTD,"9,993.86",30/09/2019
Commercial,Regional Enterprise,Other Services,60138299,KENT COUNTY COUNCIL (KCS),49.57,10/09/2019
Commercial,Regional Enterprise,Other Services,60138359,KENT COUNTY COUNCIL (KCS),62.99,10/09/2019
Commercial,Regional Enterprise,Other Services,60137009,CASTLE WATER LTD,9.52,04/09/2019
Commercial,Regional Enterprise,Other Services,60137033,CASTLE WATER LTD,35.69,04/09/2019
Commercial,Regional Enterprise,Other Services,60138335,CASTLE WATER LTD,27.21,10/09/2019
Commercial,Regional Enterprise,Other Services,60138356,CASTLE WATER LTD,6.27,10/09/2019
Commercial,Regional Enterprise,Other Services,60138371,CASTLE WATER LTD,27.15,10/09/2019
Commercial,Regional Enterprise,Other Services,60138395,CASTLE WATER LTD,6.02,10/09/2019
Commercial,Regional Enterprise,Advertising,60138082,TMP (UK) LTD,206.00,02/09/2019
Commercial,Regional Enterprise,Advertising,60138125,TMP (UK) LTD,188.00,02/09/2019
Commercial,Regional Enterprise,Advertising,60138128,TMP (UK) LTD,126.00,02/09/2019
Commercial,Regional Enterprise,Advertising,60138149,TMP (UK) LTD,99.00,02/09/2019
Commercial,Regional Enterprise,Advertising,60138161,TMP (UK) LTD,188.00,02/09/2019
Commercial,Regional Enterprise,Advertising,60138181,TMP (UK) LTD,108.00,02/09/2019
Commercial,Regional Enterprise,Advertising,60138185,TMP (UK) LTD,170.00,02/09/2019
Commercial,Regional Enterprise,Advertising,60138206,TMP (UK) LTD,90.00,02/09/2019
Commercial,Regional Enterprise,Advertising,60138851,TMP (UK) LTD,314.00,12/09/2019
Commercial,Regional Enterprise,Advertising,60139592,TMP (UK) LTD,99.00,26/09/2019
Commercial,Regional Enterprise,Advertising,60139602,TMP (UK) LTD,170.00,25/09/2019
Commercial,Regional Enterprise,Advertising,60139610,TMP (UK) LTD,170.00,25/09/2019
Commercial,Regional Enterprise,Advertising,60139624,TMP (UK) LTD,90.00,25/09/2019
Commercial,Regional Enterprise,Advertising,60139631,TMP (UK) LTD,188.00,25/09/2019
Commercial,Regional Enterprise,Advertising,60139635,TMP (UK) LTD,170.00,25/09/2019
Commercial,Regional Enterprise,Advertising,60139637,TMP (UK) LTD,90.00,25/09/2019
Commercial,Regional Enterprise,Advertising,60139640,TMP (UK) LTD,99.00,25/09/2019
Commercial,Regional Enterprise,Advertising,60139642,TMP (UK) LTD,179.00,26/09/2019
Commercial,Regional Enterprise,Advertising,60139649,TMP (UK) LTD,179.00,26/09/2019
Commercial,Regional Enterprise,Advertising,60139651,TMP (UK) LTD,179.00,25/09/2019
Commercial,Regional Enterprise,Advertising,60139671,TMP (UK) LTD,108.00,25/09/2019
Commercial,Regional Enterprise,Advertising,60139672,TMP (UK) LTD,260.00,25/09/2019
Commercial,Regional Enterprise,Advertising,60139678,TMP (UK) LTD,99.00,25/09/2019
Commercial,Regional Enterprise,Advertising,60139687,TMP (UK) LTD,260.00,25/09/2019
Commercial,Regional Enterprise,Advertising,60139694,TMP (UK) LTD,99.00,26/09/2019
Commercial,Regional Enterprise,Advertising,60139871,TMP (UK) LTD,197.00,26/09/2019
Commercial,Regional Enterprise,Advertising,60140084,TMP (UK) LTD,170.00,30/09/2019
Commercial,Regional Enterprise,Advertising,60140112,TMP (UK) LTD,117.00,30/09/2019
Commercial,Regional Enterprise,Advertising,60139617,TMP (UK) LTD,305.00,24/09/2019
Commercial,Regional Enterprise,Other Services,10015377,RM COUNTRYSIDE SERVICES LTD,700.00,19/09/2019
Commercial,Regional Enterprise,Other Services,60138540,RM COUNTRYSIDE SERVICES LTD,"1,220.00",10/09/2019
Commercial,Regional Enterprise,Professional Services,60139830,WATES PROPERTY SERVICES LTD,96.11,26/09/2019
Commercial,Regional Enterprise,Professional Services,60139875,WATES PROPERTY SERVICES LTD,58.70,26/09/2019
Commercial,Regional Enterprise,Professional Services,60139877,WATES PROPERTY SERVICES LTD,28.20,26/09/2019
Commercial,Regional Enterprise,Professional Services,60139887,WATES PROPERTY SERVICES LTD,37.20,26/09/2019
Commercial,Regional Enterprise,Professional Services,60139985,WATES PROPERTY SERVICES LTD,296.14,27/09/2019
Commercial,Regional Enterprise,Professional Services,60140022,WATES PROPERTY SERVICES LTD,141.02,27/09/2019
Commercial,Regional Enterprise,Other Services,60139136,RM COUNTRYSIDE SERVICES LTD,"1,200.00",18/09/2019
Commercial,Regional Enterprise,Other Services,60138285,CONWAY AECOM LTD,"6,346.10",03/09/2019
Commercial,Regional Enterprise,Other Services,60130198,CONWAY AECOM LTD,118.81,11/09/2019
Commercial,Regional Enterprise,Other Services,60130206,CONWAY AECOM LTD,545.82,11/09/2019
Commercial,Regional Enterprise,Other Services,60132431,CONWAY AECOM LTD,165.41,11/09/2019
Commercial,Regional Enterprise,Other Services,60132434,CONWAY AECOM LTD,379.69,11/09/2019
Commercial,Regional Enterprise,Other Services,60132440,CONWAY AECOM LTD,108.84,11/09/2019
Commercial,Regional Enterprise,Other Services,60132482,CONWAY AECOM LTD,52.29,11/09/2019
Commercial,Regional Enterprise,Other Services,60132498,CONWAY AECOM LTD,52.29,11/09/2019
Commercial,Regional Enterprise,Other Services,60132502,CONWAY AECOM LTD,165.93,11/09/2019
Commercial,Regional Enterprise,Other Services,60132517,CONWAY AECOM LTD,105.53,11/09/2019
Commercial,Regional Enterprise,Other Services,60132546,CONWAY AECOM LTD,58.41,11/09/2019
Commercial,Regional Enterprise,Other Services,60132562,CONWAY AECOM LTD,52.50,11/09/2019
Commercial,Regional Enterprise,Other Services,60132568,CONWAY AECOM LTD,294.00,11/09/2019
Commercial,Regional Enterprise,Other Services,60132569,CONWAY AECOM LTD,740.25,11/09/2019
Commercial,Regional Enterprise,Other Services,60132593,CONWAY AECOM LTD,58.41,11/09/2019
Commercial,Regional Enterprise,Other Services,60132714,CONWAY AECOM LTD,58.41,11/09/2019
Commercial,Regional Enterprise,Other Services,60132803,CONWAY AECOM LTD,52.29,11/09/2019
Commercial,Regional Enterprise,Other Services,60132805,CONWAY AECOM LTD,64.55,11/09/2019
Commercial,Regional Enterprise,Other Services,60132808,CONWAY AECOM LTD,75.94,11/09/2019
Commercial,Regional Enterprise,Other Services,60132809,CONWAY AECOM LTD,129.10,11/09/2019
Commercial,Regional Enterprise,Other Services,60132812,CONWAY AECOM LTD,47.32,11/09/2019
Commercial,Regional Enterprise,Other Services,60132813,CONWAY AECOM LTD,52.05,11/09/2019
Commercial,Regional Enterprise,Other Services,60132817,CONWAY AECOM LTD,47.32,11/09/2019
Commercial,Regional Enterprise,Other Services,60132820,CONWAY AECOM LTD,129.10,11/09/2019
Commercial,Regional Enterprise,Other Services,60132821,CONWAY AECOM LTD,47.32,11/09/2019
Commercial,Regional Enterprise,Other Services,60132827,CONWAY AECOM LTD,97.47,11/09/2019
Commercial,Regional Enterprise,Other Services,60132834,CONWAY AECOM LTD,47.32,11/09/2019
Commercial,Regional Enterprise,Other Services,60132836,CONWAY AECOM LTD,47.32,11/09/2019
Commercial,Regional Enterprise,Other Services,60132850,CONWAY AECOM LTD,52.29,11/09/2019
Commercial,Regional Enterprise,Other Services,60132851,CONWAY AECOM LTD,47.32,11/09/2019
Commercial,Regional Enterprise,Other Services,60132853,CONWAY AECOM LTD,52.05,11/09/2019
Commercial,Regional Enterprise,Other Services,60132861,CONWAY AECOM LTD,47.32,11/09/2019
Commercial,Regional Enterprise,Other Services,60132862,CONWAY AECOM LTD,47.32,11/09/2019
Commercial,Regional Enterprise,Other Services,60132880,CONWAY AECOM LTD,129.10,11/09/2019
Commercial,Regional Enterprise,Other Services,60132886,CONWAY AECOM LTD,47.32,11/09/2019
Commercial,Regional Enterprise,Other Services,60132893,CONWAY AECOM LTD,47.32,11/09/2019
Commercial,Regional Enterprise,Other Services,60132899,CONWAY AECOM LTD,75.94,11/09/2019
Commercial,Regional Enterprise,Other Services,60132912,CONWAY AECOM LTD,52.29,11/09/2019
Commercial,Regional Enterprise,Other Services,60132919,CONWAY AECOM LTD,52.29,11/09/2019
Commercial,Regional Enterprise,Other Services,60132922,CONWAY AECOM LTD,52.29,11/09/2019
Commercial,Regional Enterprise,Other Services,60132934,CONWAY AECOM LTD,64.55,11/09/2019
Commercial,Regional Enterprise,Other Services,60132951,CONWAY AECOM LTD,141.96,11/09/2019
Commercial,Regional Enterprise,Other Services,60132959,CONWAY AECOM LTD,64.55,11/09/2019
Commercial,Regional Enterprise,Other Services,60132980,CONWAY AECOM LTD,52.29,11/09/2019
Commercial,Regional Enterprise,Other Services,60133083,CONWAY AECOM LTD,59.15,11/09/2019
Commercial,Regional Enterprise,Other Services,60133090,CONWAY AECOM LTD,193.64,11/09/2019
Commercial,Regional Enterprise,Other Services,60133119,CONWAY AECOM LTD,"1,145.18",11/09/2019
Commercial,Regional Enterprise,Other Services,60133132,CONWAY AECOM LTD,105.74,11/09/2019
Commercial,Regional Enterprise,Other Services,60133140,CONWAY AECOM LTD,159.60,11/09/2019
Commercial,Regional Enterprise,Other Services,60133165,CONWAY AECOM LTD,64.55,11/09/2019
Commercial,Regional Enterprise,Other Services,60133169,CONWAY AECOM LTD,58.41,11/09/2019
Commercial,Regional Enterprise,Other Services,60133208,CONWAY AECOM LTD,58.41,11/09/2019
Commercial,Regional Enterprise,Other Services,60133275,CONWAY AECOM LTD,47.32,11/09/2019
Commercial,Regional Enterprise,Other Services,60133292,CONWAY AECOM LTD,58.41,11/09/2019
Commercial,Regional Enterprise,Other Services,60133301,CONWAY AECOM LTD,47.32,11/09/2019
Commercial,Regional Enterprise,Other Services,60133314,CONWAY AECOM LTD,47.32,11/09/2019
Commercial,Regional Enterprise,Other Services,60133420,CONWAY AECOM LTD,47.32,11/09/2019
Commercial,Regional Enterprise,Other Services,60133463,CONWAY AECOM LTD,123.04,11/09/2019
Commercial,Regional Enterprise,Other Services,60133540,CONWAY AECOM LTD,79.18,11/09/2019
Commercial,Regional Enterprise,Other Services,60133805,CONWAY AECOM LTD,31.07,11/09/2019
Commercial,Regional Enterprise,Other Services,60133861,CONWAY AECOM LTD,61.52,11/09/2019
Commercial,Regional Enterprise,Other Services,60134516,CONWAY AECOM LTD,245.70,11/09/2019
Commercial,Regional Enterprise,Other Services,60134831,CONWAY AECOM LTD,64.23,11/09/2019
Commercial,Regional Enterprise,Other Services,60139683,CAPITAL  LOCKSMITHS,192.00,25/09/2019
Commercial,Regional Enterprise,Grant Payments,80029242,AMWELL CONSTRUCTION LTD,114.00,19/09/2019
Commercial,Regional Enterprise,Grant Payments,80029245,AMWELL CONSTRUCTION LTD,114.00,19/09/2019
Commercial,Regional Enterprise,Grant Payments,80029247,AMWELL CONSTRUCTION LTD,114.00,19/09/2019
Commercial,Regional Enterprise,Grant Payments,80029265,AMWELL CONSTRUCTION LTD,499.50,23/09/2019
Commercial,Regional Enterprise,Grant Payments,80029267,AMWELL CONSTRUCTION LTD,114.00,23/09/2019
Commercial,Regional Enterprise,Professional Services,60137707,RE (REGIONAL ENTERPRISE) LIMITED,"136,171.78",18/09/2019
Commercial,Regional Enterprise,RE Services Contract Payment,60137307,RE (REGIONAL ENTERPRISE) LIMITED,"1,368.00",03/09/2019
Commercial,Regional Enterprise,RE Services Contract Payment,60137338,RE (REGIONAL ENTERPRISE) LIMITED,"11,000.00",03/09/2019
Commercial,Regional Enterprise,Equipment and Materials Purcha,60140036,CONWAY AECOM LTD,"4,500.00",30/09/2019
Commercial,Regional Enterprise,RE Services Contract Payment,60138425,RE (REGIONAL ENTERPRISE) LIMITED,"2,193,922.00",11/09/2019
COMMERCIAL,REGIONAL ENTERPRISE,Grant Payments,80029354,ARTHUR J. FERRYMAN ASSOCIATES,"2,319.86",25/09/2019
COMMERCIAL,REGIONAL ENTERPRISE,Grant Payments,80029027,SOUTH HERTFORDSHIRE,"6,747.00",12/09/2019
COMMERCIAL,REGIONAL ENTERPRISE,Grant Payments,80029059,SOUTH HERTFORDSHIRE,"5,966.00",11/09/2019
COMMERCIAL,REGIONAL ENTERPRISE,Grant Payments,80029195,SOUTH HERTFORDSHIRE,"6,798.00",23/09/2019
COMMERCIAL,REGIONAL ENTERPRISE,Grant Payments,80028901,AMWELL CONSTRUCTION LTD,"6,900.00",12/09/2019
COMMERCIAL,REGIONAL ENTERPRISE,Grant Payments,80029031,AMWELL CONSTRUCTION LTD,"6,622.00",13/09/2019
COMMERCIAL,REGIONAL ENTERPRISE,Grant Payments,80029218,AMWELL CONSTRUCTION LTD,"6,839.00",23/09/2019
COMMERCIAL,REGIONAL ENTERPRISE,Grant Payments,80029357,AMWELL CONSTRUCTION LTD,"2,246.24",25/09/2019
COMMERCIAL,REGIONAL ENTERPRISE,Grant Payments,80029358,AMWELL CONSTRUCTION LTD,"19,050.80",25/09/2019
COMMERCIAL,REGIONAL ENTERPRISE,Grant Payments,80029022,CLOSOMAT LIMITED,"4,433.00",12/09/2019
COMMERCIAL,REGIONAL ENTERPRISE,Grant Payments,80028941,R82 UK LIMITED,"7,408.06",12/09/2019
COMMERCIAL,REGIONAL ENTERPRISE,Grant Payments,80028932,H D PROPERTY SERVICES LTD,"5,730.00",12/09/2019
COMMERCIAL,REGIONAL ENTERPRISE,Grant Payments,80029038,H D PROPERTY SERVICES LTD,"10,860.00",13/09/2019
COMMERCIAL,REGIONAL ENTERPRISE,Grant Payments,80029051,H D PROPERTY SERVICES LTD,"5,944.00",13/09/2019
COMMERCIAL,REGIONAL ENTERPRISE,Grant Payments,80029135,H D PROPERTY SERVICES LTD,"6,346.00",20/09/2019
COMMERCIAL,REGIONAL ENTERPRISE,Grant Payments,80029193,H D PROPERTY SERVICES LTD,"8,649.00",23/09/2019
COMMERCIAL,REGIONAL ENTERPRISE,Grant Payments,80029281,H D PROPERTY SERVICES LTD,"6,290.00",23/09/2019
COMMERCIAL,REGIONAL ENTERPRISE,Grant Payments,80029368,H D PROPERTY SERVICES LTD,"4,759.03",25/09/2019
COMMERCIAL,REGIONAL ENTERPRISE,Grant Payments,80028854,ACCESS & AUTOMATION LTD,"6,670.00",12/09/2019
COMMERCIAL,REGIONAL ENTERPRISE,Grant Payments,80028173,DOMESTIC LIFT SERVICES LTD,"5,699.00",04/09/2019
COMMERCIAL,REGIONAL ENTERPRISE,Grant Payments,80029260,DOMESTIC LIFT SERVICES LTD,"5,764.00",26/09/2019
COMMERCIAL,REGIONAL ENTERPRISE,Grant Payments,80028927,PCBYVOICE LTD,"10,514.01",12/09/2019
COMMERCIAL,REGIONAL ENTERPRISE,Grant Payments,80028930,PCBYVOICE LTD,"1,275.00",12/09/2019
COMMERCIAL,REGIONAL ENTERPRISE,Grant Payments,80029119,REDACTED - PERSONAL DATA,"7,878.00",23/09/2019
COMMERCIAL,REGIONAL ENTERPRISE,Grant Payments,80028904,DPBUILDERS DISABLEDADAPTATIONS,"7,441.00",12/09/2019
COMMERCIAL,REGIONAL ENTERPRISE,Grant Payments,80029064,DPBUILDERS DISABLEDADAPTATIONS,"6,995.00",13/09/2019
COMMERCIAL,REGIONAL ENTERPRISE,Grant Payments,80029113,DPBUILDERS DISABLEDADAPTATIONS,"5,128.36",20/09/2019
COMMERCIAL,REGIONAL ENTERPRISE,Grant Payments,80029179,DPBUILDERS DISABLEDADAPTATIONS,"6,251.00",20/09/2019
COMMERCIAL,REGIONAL ENTERPRISE,Grant Payments,80029370,DPBUILDERS DISABLEDADAPTATIONS,"11,598.00",25/09/2019
COMMERCIAL,REGIONAL ENTERPRISE,Other Services,60138837,CONWAY AECOM LTD,41.04,13/09/2019
COMMERCIAL,REGIONAL ENTERPRISE,Other Services,60138842,CONWAY AECOM LTD,40.82,13/09/2019
COMMERCIAL,REGIONAL ENTERPRISE,Other Services,60138194,CONWAY AECOM LTD,"39,562.62",02/09/2019
COMMERCIAL,REGIONAL ENTERPRISE,Other Services,60139557,CONWAY AECOM LTD,"53,787.30",25/09/2019
COMMERCIAL,REGIONAL ENTERPRISE,Other Services,60139563,CONWAY AECOM LTD,"40,335.44",26/09/2019
COMMERCIAL,REGIONAL ENTERPRISE,Other Services,60139567,CONWAY AECOM LTD,"19,930.70",26/09/2019
COMMERCIAL,REGIONAL ENTERPRISE,Other Services,60139570,CONWAY AECOM LTD,"32,177.40",26/09/2019
COMMERCIAL,REGIONAL ENTERPRISE,Other Services,60139589,CONWAY AECOM LTD,"20,605.52",24/09/2019
COMMERCIAL,REGIONAL ENTERPRISE,Other Services,60139590,CONWAY AECOM LTD,"33,440.25",26/09/2019
COMMERCIAL,REGIONAL ENTERPRISE,Other Services,60139604,CONWAY AECOM LTD,"31,553.80",26/09/2019
COMMERCIAL,REGIONAL ENTERPRISE,Other Services,60139620,CONWAY AECOM LTD,"31,210.89",26/09/2019
COMMERCIAL,REGIONAL ENTERPRISE,Other Services,60139634,CONWAY AECOM LTD,"39,861.40",26/09/2019
COMMERCIAL,REGIONAL ENTERPRISE,Other Services,60139663,CONWAY AECOM LTD,"35,395.40",26/09/2019
COMMERCIAL,REGIONAL ENTERPRISE,Other Services,60139664,CONWAY AECOM LTD,"33,612.86",26/09/2019
COMMERCIAL,REGIONAL ENTERPRISE,Other Services,60139670,CONWAY AECOM LTD,"61,955.58",25/09/2019
COMMERCIAL,REGIONAL ENTERPRISE,Other Services,60139677,CONWAY AECOM LTD,"25,854.06",24/09/2019
COMMERCIAL,REGIONAL ENTERPRISE,Other Services,60139685,CONWAY AECOM LTD,"45,907.12",26/09/2019
COMMERCIAL,REGIONAL ENTERPRISE,Other Services,60139695,CONWAY AECOM LTD,"20,403.17",26/09/2019
COMMERCIAL,REGIONAL ENTERPRISE,Other Services,60140074,CONWAY AECOM LTD,"40,000.00",30/09/2019
COMMERCIAL,REGIONAL ENTERPRISE,Other Services,60139655,TRAFFIC SURVEY PARTNERS (TSP) LTD,750.00,25/09/2019
COMMERCIAL,REGIONAL ENTERPRISE,Equipment and Materials Purcha,60138633,BOUYGUES E&S INFRASTRUCTURE UK LTD,"83,928.40",10/09/2019
COMMERCIAL,REGIONAL ENTERPRISE,Other Services,60138718,WRITTLE FOREST LTD,650.00,12/09/2019
COMMERCIAL,REGIONAL ENTERPRISE,Other Services,60139914,WRITTLE FOREST LTD,"2,350.00",26/09/2019
COMMERCIAL,REGIONAL ENTERPRISE,Other Services,60138099,CONWAY AECOM LTD,669.49,02/09/2019
COMMERCIAL,REGIONAL ENTERPRISE,Other Services,60138111,CONWAY AECOM LTD,740.08,02/09/2019
COMMERCIAL,REGIONAL ENTERPRISE,Other Services,60138117,CONWAY AECOM LTD,810.66,02/09/2019
COMMERCIAL,REGIONAL ENTERPRISE,Other Services,60138119,CONWAY AECOM LTD,420.37,02/09/2019
COMMERCIAL,REGIONAL ENTERPRISE,Other Services,60138126,CONWAY AECOM LTD,"1,054.32",02/09/2019
COMMERCIAL,REGIONAL ENTERPRISE,Other Services,60138135,CONWAY AECOM LTD,600.62,02/09/2019
COMMERCIAL,REGIONAL ENTERPRISE,Other Services,60138143,CONWAY AECOM LTD,708.17,02/09/2019
COMMERCIAL,REGIONAL ENTERPRISE,Other Services,60138146,CONWAY AECOM LTD,472.87,02/09/2019
COMMERCIAL,REGIONAL ENTERPRISE,Other Services,60138150,CONWAY AECOM LTD,976.97,02/09/2019
COMMERCIAL,REGIONAL ENTERPRISE,Other Services,60138165,CONWAY AECOM LTD,720.74,02/09/2019
COMMERCIAL,REGIONAL ENTERPRISE,Other Services,60138169,CONWAY AECOM LTD,861.91,02/09/2019
COMMERCIAL,REGIONAL ENTERPRISE,Other Services,60138174,CONWAY AECOM LTD,664.50,02/09/2019
COMMERCIAL,REGIONAL ENTERPRISE,Other Services,60138177,CONWAY AECOM LTD,959.32,02/09/2019
COMMERCIAL,REGIONAL ENTERPRISE,Other Services,60138180,CONWAY AECOM LTD,771.98,02/09/2019
COMMERCIAL,REGIONAL ENTERPRISE,Other Services,60138187,CONWAY AECOM LTD,548.12,02/09/2019
COMMERCIAL,REGIONAL ENTERPRISE,Other Services,60138196,CONWAY AECOM LTD,669.49,02/09/2019
COMMERCIAL,REGIONAL ENTERPRISE,Other Services,60138197,CONWAY AECOM LTD,618.25,02/09/2019
COMMERCIAL,REGIONAL ENTERPRISE,Other Services,60138198,CONWAY AECOM LTD,637.58,02/09/2019
COMMERCIAL,REGIONAL ENTERPRISE,Other Services,60138202,CONWAY AECOM LTD,"1,066.89",02/09/2019
COMMERCIAL,REGIONAL ENTERPRISE,Other Services,60138214,CONWAY AECOM LTD,771.98,02/09/2019
COMMERCIAL,REGIONAL ENTERPRISE,Other Services,60138217,CONWAY AECOM LTD,771.98,02/09/2019
COMMERCIAL,REGIONAL ENTERPRISE,Other Services,60138219,CONWAY AECOM LTD,850.01,02/09/2019
COMMERCIAL,REGIONAL ENTERPRISE,Other Services,60138661,CONWAY AECOM LTD,842.57,10/09/2019
COMMERCIAL,REGIONAL ENTERPRISE,Other Services,60140044,CONWAY AECOM LTD,"2,006.65",30/09/2019
COMMERCIAL,REGIONAL ENTERPRISE,Other Services,60139263,CYCLE CONFIDENT LTD,"6,879.06",18/09/2019
COMMERCIAL,REGIONAL ENTERPRISE,Other Services,60139259,CONWAY AECOM LTD,916.74,18/09/2019
COMMERCIAL,REGIONAL ENTERPRISE,Other Services,60136323,TRAFFIC SURVEY PARTNERS (TSP) LTD,635.00,10/09/2019
COMMERCIAL,REGIONAL ENTERPRISE,Other Services,60136261,TRAFFIC SURVEY PARTNERS (TSP) LTD,430.00,10/09/2019
COMMERCIAL,REGIONAL ENTERPRISE,Other Services,60138823,CONWAY AECOM LTD,"3,563.38",12/09/2019
COMMERCIAL,REGIONAL ENTERPRISE,Other Services,60139241,CONWAY AECOM LTD,"114,545.27",18/09/2019
COMMERCIAL,REGIONAL ENTERPRISE,Other Services,60139257,CONWAY AECOM LTD,"29,182.32",18/09/2019
COMMERCIAL,REGIONAL ENTERPRISE,Other Services,60139576,CONWAY AECOM LTD,"66,529.13",24/09/2019
COMMERCIAL,REGIONAL ENTERPRISE,Other Services,60139581,CONWAY AECOM LTD,"50,322.06",24/09/2019
COMMERCIAL,REGIONAL ENTERPRISE,Other Services,60139582,CONWAY AECOM LTD,"6,862.81",25/09/2019
COMMERCIAL,REGIONAL ENTERPRISE,Other Services,60139598,CONWAY AECOM LTD,"105,541.78",25/09/2019
COMMERCIAL,REGIONAL ENTERPRISE,Other Services,60139603,CONWAY AECOM LTD,"121,826.21",25/09/2019
COMMERCIAL,REGIONAL ENTERPRISE,Other Services,60139609,CONWAY AECOM LTD,"69,292.49",24/09/2019
COMMERCIAL,REGIONAL ENTERPRISE,Other Services,60139629,CONWAY AECOM LTD,"42,708.59",25/09/2019
COMMERCIAL,REGIONAL ENTERPRISE,Other Services,60139648,CONWAY AECOM LTD,"34,040.26",24/09/2019
COMMERCIAL,REGIONAL ENTERPRISE,Other Services,60139669,CONWAY AECOM LTD,"85,036.76",25/09/2019
COMMERCIAL,REGIONAL ENTERPRISE,Other Services,60137205,CONWAY AECOM LTD,"30,064.00",11/09/2019
COMMERCIAL,REGIONAL ENTERPRISE,Consultants Fees,60138584,GOWLING WLG,"1,367.38",10/09/2019
COMMERCIAL,REGIONAL ENTERPRISE,Professional Services,60138686,BOUYGUES E&S INFRASTRUCTURE UK LTD,"6,589.14",10/09/2019
COMMERCIAL,REGIONAL ENTERPRISE,Professional Services,60138417,APPLEYARD & TREW LLP,"4,291.97",05/09/2019
COMMERCIAL,REGIONAL ENTERPRISE,Professional Services,60138850,APPLEYARD & TREW LLP,"4,292.06",12/09/2019
COMMERCIAL,REGIONAL ENTERPRISE,Equipment and Materials Purcha,60138575,BENDCRETE LEISURE LTD,"110,437.00",10/09/2019
COMMERCIAL,REGIONAL ENTERPRISE,Consultants Fees,60138648,NETWORK RAIL INFRASTRUCTURELTD,"2,639,612.11",16/09/2019
COMMERCIAL,REGIONAL ENTERPRISE,Consultants Fees,60138956,NETWORK RAIL INFRASTRUCTURELTD,"57,385.05",13/09/2019
COMMERCIAL,REGIONAL ENTERPRISE,Equipment and Materials Purcha,60139947,JOHN GRAHAM CONSTRUCTION LTD,"501,702.52",27/09/2019
COMMERCIAL,REGIONAL ENTERPRISE,Professional Services,60138408,APPLEYARD & TREW LLP,"4,147.33",05/09/2019
COMMERCIAL,REGIONAL ENTERPRISE,Other Services,60140083,CONWAY AECOM LTD,"3,604.98",30/09/2019
COMMERCIAL,REGIONAL ENTERPRISE,Advertising,60138978,TMP (UK) LTD,"2,077.00",13/09/2019
Corporate Accounting,Corporate Accounting,Other Local Authorities - Thir,80029091,GLA LEVIES,"1,519,940.00",13/09/2019
Corporate Accounting,Corporate Accounting,Other Local Authorities - Thir,1000024881,GREATER LONDON AUTHORITY," 4,665,343.56 ",16/09/2019
Corporate Accounting,Corporate Accounting,Other Agencies - Third Party P,60139854,THE BARNETGROUP LIMITED,"91,666.67",27/09/2019
Corporate Accounting,Corporate Accounting,Other Transfer Payments to Soc,80028765,WIRECARD (FS ONGOING 2040881670310,"13,451.00",02/09/2019
Corporate Accounting,Corporate Accounting,Other Transfer Payments to Soc,80028763,WIRECARD (FS INSTANT 2040880892973),"26,887.57",02/09/2019
Corporate Accounting,Corporate Accounting,Private Contractors - Third Pa,80029332,REDACTED - PERSONAL DATA,"1,000.00",25/09/2019
Corporate Accounting,Corporate Accounting,Fees and Charges,80029205,EPL& R  LTD,500.00,27/09/2019
Corporate Accounting,Corporate Accounting,Fees and Charges,80029194,TRICONNEX LIMITED,"2,020.20",23/09/2019
Corporate Accounting,Corporate Accounting,Fees and Charges,80029198,TRICONNEX LIMITED,"21,210.00",27/09/2019
Corporate Accounting,Corporate Accounting,Fees and Charges,80029192,SQUIRE ENERGY LTD,500.00,27/09/2019
DELIVERY UNITS,ADULTS AND COMMUNITIES,Ttl IT & Comms,60136856,TROJAN CONSULTANTS LTD,"2,283.00",05/09/2019
Delivery Units,Adults and Health,Voluntary Associations - Third,50003553,SANCTUARY HOUSING ASSOCIATION,"6,098.54",19/09/2019
Delivery Units,Adults and Health,Voluntary Associations - Third,50003545,ELEANOR PALMER TRUST NO 2 A/C.,486.50,19/09/2019
Delivery Units,Adults and Health,Voluntary Associations - Third,50003542,BARNET MENCAP,"11,142.65",19/09/2019
Delivery Units,Adults and Health,Voluntary Associations - Third,50003544,CHRISTIAN ACTION (ENFIELD),365.80,19/09/2019
Delivery Units,Adults and Health,Voluntary Associations - Third,50003552,LINEN & WOOLLEN DRAPERS COTTAGE,730.11,19/09/2019
Delivery Units,Adults and Health,Voluntary Associations - Third,50003546,HABINTEG HOUSING ASSOCIATION,446.37,19/09/2019
Delivery Units,Adults and Health,Voluntary Associations - Third,50003550,ORCHARD HOUSING ASSOCIATION,196.62,20/09/2019
Delivery Units,Adults and Health,Voluntary Associations - Third,50003551,ST PANCRAS & HUMANIST H.A.,661.55,19/09/2019
Delivery Units,Adults and Health,Other Services,50003555,WILLOW HOUSING & CARE LTD.,711.38,19/09/2019
Delivery Units,Adults and Health,Voluntary Associations - Third,50003547,JEWISH COMMUNITY HOUSING ASSOCIATIO,568.17,19/09/2019
Delivery Units,Adults and Health,Voluntary Associations - Third,50003549,METROPOLITAN SUPPORT TRUST,"5,933.40",19/09/2019
Delivery Units,Adults and Health,Voluntary Associations - Third,50003554,SCOTSCARE,361.52,19/09/2019
Delivery Units,Adults and Health,Voluntary Associations - Third,80028601,REDACTED - PERSONAL DATA,673.67,10/09/2019
Delivery Units,Adults and Health,Equipment and Materials Purcha,60138088,MILLBROOK HEALTHCARE LTD,"220,687.85",03/09/2019
Delivery Units,Adults and Health,Equipment and Materials Purcha,60138158,MILLBROOK HEALTHCARE LTD,"266,515.54",02/09/2019
Delivery Units,Adults and Health,Equipment and Materials Purcha,60138193,MILLBROOK HEALTHCARE LTD,"37,507.78",03/09/2019
Delivery Units,Adults and Health,Equipment and Materials Purcha,60139918,MILLBROOK HEALTHCARE LTD,"260,868.68",30/09/2019
Delivery Units,Adults and Health,Equipment and Materials Purcha,60140010,MILLBROOK HEALTHCARE LTD,"36,991.12",27/09/2019
Delivery Units,Adults and Health,Other Services,60138421,O'DWYER INDEPENDENT FUNERAL DIRECTORS,465.00,11/09/2019
Delivery Units,Adults and Health,Voluntary Associations - Third,50003548,MIDDLESEX ASSOCIATION  FOR THE BLIN,"2,394.00",19/09/2019
Delivery Units,Adults and Health,Voluntary Associations - Third,50003543,BARNET MENCAP,"28,583.00",19/09/2019
Delivery Units,Adults and Health,Voluntary Associations - Third,50003541,AGE CONCERN,"58,333.00",19/09/2019
Delivery Units,Adults and Health,Other Services,60139009,POHWER,"4,640.00",17/09/2019
Delivery Units,Adults and Health,Other Transfer Payments to Soc,60137293,SOUTHWARK COUNCIL,"1,491.50",03/09/2019
Delivery Units,Adults and Health,Other Transfer Payments to Soc,60137964,SOUTHWARK COUNCIL,"1,491.50",03/09/2019
Delivery Units,Adults and Health,Other Services,60138924,COMMUNITY BARNET,"10,666.67",17/09/2019
Delivery Units,Adults and Health,Other Transfer Payments to Soc,60138437,PRT BARNET CARERS CENTRE,"96,763.37",09/09/2019
Delivery Units,Adults and Health,Other Establishments - Third P,60135174,HERTFORDSHIRE PARTNERSHIP,"115,186.08",19/09/2019
Delivery Units,Adults and Health,Other Establishments - Third P,60137594,HERTFORDSHIRE PARTNERSHIP,"115,186.08",19/09/2019
Delivery Units,Adults and Health,Translation Exp / Interpret,60138687,D.A. LANGUAGES LTD,44.00,12/09/2019
Delivery Units,Adults and Health,Stationery,60135791,STAPLES UK LTD,17.23,20/09/2019
Delivery Units,Adults and Health,Stationery,60136239,STAPLES UK LTD,22.99,17/09/2019
Delivery Units,Adults and Health,Stationery,60138458,STAPLES UK LTD,33.92,17/09/2019
Delivery Units,Adults and Health,Stationery,60138806,STAPLES UK LTD,14.98,17/09/2019
Delivery Units,Adults and Health,Travelling Expenses,60139223,M1 EXPRESS CAR SERVICES,36.00,20/09/2019
Delivery Units,Adults and Health,Travelling Expenses,60139228,M1 EXPRESS CAR SERVICES,20.00,18/09/2019
Delivery Units,Adults and Health,Other Transfer Payments to Soc,60135328,MOTT MACDONALD LTD/CAMBRIDGE EDUCATION,148.50,17/09/2019
Delivery Units,Adults and Health,Other Services,60136694,D.A. LANGUAGES LTD,98.00,04/09/2019
Delivery Units,Adults and Health,Other Services,60136703,D.A. LANGUAGES LTD,22.00,04/09/2019
Delivery Units,Adults and Health,Other Services,60138692,D.A. LANGUAGES LTD,6.76,11/09/2019
Delivery Units,Adults and Health,Other Services,60138725,D.A. LANGUAGES LTD,54.00,30/09/2019
Delivery Units,Adults and Health,Employee Expenses,60139767,THOMPSONS SOLICITORS,291.67,26/09/2019
Delivery Units,Adults and Health,Gas,60139838,KENT COUNTY COUNCIL (KCS),112.17,26/09/2019
Delivery Units,Adults and Health,Other Services,60138867,LEE SECURITY LONDON LIMITED,650.00,13/09/2019
Delivery Units,Adults and Health,Gas,10015384,BRITISH GAS BUSINESS,522.43,19/09/2019
Delivery Units,Adults and Health,Water Services,60139876,ANGEL SPRINGS LTD,903.16,26/09/2019
Delivery Units,Adults and Health,Food Costs,60138975,MULLER MILK & INGREDIENTS,0.88,13/09/2019
Delivery Units,Adults and Health,Food Costs,60138989,MULLER MILK & INGREDIENTS,0.88,13/09/2019
Delivery Units,Adults and Health,Translation Exp / Interpret,60136715,D.A. LANGUAGES LTD,33.75,04/09/2019
Delivery Units,Adults and Health,Translation Exp / Interpret,60138646,D.A. LANGUAGES LTD,40.50,12/09/2019
Delivery Units,Adults and Health,Translation Exp / Interpret,60138658,D.A. LANGUAGES LTD,22.00,12/09/2019
Delivery Units,Adults and Health,Translation Exp / Interpret,60138712,D.A. LANGUAGES LTD,22.00,12/09/2019
Delivery Units,Adults and Health,Electricity,60139499,MORASHA JEWISH PRIMARY SCHOOL,"1,456.96",23/09/2019
Delivery Units,Adults and Health,Electricity,60139913,MORASHA JEWISH PRIMARY SCHOOL,586.97,26/09/2019
Delivery Units,Adults and Health,Cleaning and domestic material,10015351,NORSE COMMERCIAL SERVICES LTD,505.99,30/09/2019
Delivery Units,Adults and Health,Training,60138481,REDACTED - PERSONAL DATA,550.00,09/09/2019
Delivery Units,Adults and Health,Other Services,60139214,REDACTED - PERSONAL DATA,800.00,18/09/2019
Delivery Units,Adults and Health,Stationery,60139587,STAPLES UK LTD,62.99,26/09/2019
Delivery Units,Adults and Health,Other Services,60132686,MOTT MACDONALD LTD/CAMBRIDGE EDUCATION,47.25,25/09/2019
Delivery Units,Adults and Health,Other Services,60134171,MOTT MACDONALD LTD/CAMBRIDGE EDUCATION,68.00,17/09/2019
Delivery Units,Adults and Health,Other Services,10015380,REDACTED - PERSONAL DATA,"1,100.00",18/09/2019
Delivery Units,Adults and Health,Other Services,60137469,REDACTED - PERSONAL DATA,"1,100.00",18/09/2019
Delivery Units,Adults and Health,Postage,60138360,ROYAL MAIL GROUP LIMITED,0.66,04/09/2019
Delivery Units,Adults and Health,Copying and Printing Charges,60130870,GOOD IMPRESSIONS (LONDON) LIMITED,360.00,26/09/2019
Delivery Units,Adults and Health,Other Transfer Payments to Soc,60138108,LONDON BOROUGH OF EALING,"3,625.00",02/09/2019
Delivery Units,Adults and Health,Other Transfer Payments to Soc,60138347,REDACTED - PERSONAL DATA,125.00,04/09/2019
Delivery Units,Adults and Health,Translation Exp / Interpret,60136545,D.A. LANGUAGES LTD,52.01,04/09/2019
Delivery Units,Adults and Health,Translation Exp / Interpret,60136580,D.A. LANGUAGES LTD,98.00,04/09/2019
Delivery Units,Adults and Health,Translation Exp / Interpret,60136599,D.A. LANGUAGES LTD,44.72,04/09/2019
Delivery Units,Adults and Health,Translation Exp / Interpret,60136654,D.A. LANGUAGES LTD,14.04,04/09/2019
Delivery Units,Adults and Health,Translation Exp / Interpret,60136655,D.A. LANGUAGES LTD,98.00,04/09/2019
Delivery Units,Adults and Health,Translation Exp / Interpret,60136673,D.A. LANGUAGES LTD,98.00,04/09/2019
Delivery Units,Adults and Health,Translation Exp / Interpret,60136698,D.A. LANGUAGES LTD,98.00,04/09/2019
Delivery Units,Adults and Health,Translation Exp / Interpret,60136706,D.A. LANGUAGES LTD,22.00,04/09/2019
Delivery Units,Adults and Health,Translation Exp / Interpret,60136709,D.A. LANGUAGES LTD,98.00,04/09/2019
Delivery Units,Adults and Health,Translation Exp / Interpret,60136712,D.A. LANGUAGES LTD,33.00,04/09/2019
Delivery Units,Adults and Health,Translation Exp / Interpret,60136713,D.A. LANGUAGES LTD,33.00,04/09/2019
Delivery Units,Adults and Health,Translation Exp / Interpret,60138626,D.A. LANGUAGES LTD,33.00,17/09/2019
Delivery Units,Adults and Health,Translation Exp / Interpret,60138627,D.A. LANGUAGES LTD,7.80,17/09/2019
Delivery Units,Adults and Health,Translation Exp / Interpret,60138649,D.A. LANGUAGES LTD,15.08,17/09/2019
Delivery Units,Adults and Health,Translation Exp / Interpret,60138678,D.A. LANGUAGES LTD,98.00,17/09/2019
Delivery Units,Adults and Health,Translation Exp / Interpret,60138717,D.A. LANGUAGES LTD,44.00,12/09/2019
Delivery Units,Adults and Health,Other Transfer Payments to Soc,60137459,WAGSTAFF INTERIORS GROUP,15.00,13/09/2019
Delivery Units,Adults and Health,Transport Hire Charges,60132684,MOTT MACDONALD LTD/CAMBRIDGE EDUCATION,309.00,17/09/2019
Delivery Units,Adults and Health,Translation Exp / Interpret,60136603,D.A. LANGUAGES LTD,44.00,04/09/2019
Delivery Units,Adults and Health,Translation Exp / Interpret,60136714,D.A. LANGUAGES LTD,22.00,04/09/2019
Delivery Units,Adults and Health,Translation Exp / Interpret,60138625,D.A. LANGUAGES LTD,54.00,12/09/2019
Delivery Units,Adults and Health,Translation Exp / Interpret,60138656,D.A. LANGUAGES LTD,33.00,17/09/2019
Delivery Units,Adults and Health,Translation Exp / Interpret,60138668,D.A. LANGUAGES LTD,54.00,12/09/2019
Delivery Units,Adults and Health,Translation Exp / Interpret,60138669,D.A. LANGUAGES LTD,15.00,17/09/2019
Delivery Units,Adults and Health,Translation Exp / Interpret,60138684,D.A. LANGUAGES LTD,44.00,17/09/2019
Delivery Units,Adults and Health,Translation Exp / Interpret,60138709,D.A. LANGUAGES LTD,33.00,11/09/2019
Delivery Units,Adults and Health,Stationery,60139174,STAPLES UK LTD,76.22,23/09/2019
Delivery Units,Adults and Health,Stationery,60139626,STAPLES UK LTD,71.00,26/09/2019
Delivery Units,Adults and Health,Other Services,80029383,REDACTED - PERSONAL DATA,126.00,27/09/2019
Delivery Units,Adults and Health,Other Transfer Payments to Soc,60137674,ACTION FIRST RECRUITMENT,"3,685.00",02/09/2019
Delivery Units,Adults and Health,Other Transfer Payments to Soc,60135426,KORU MEDICAL LTD,"1,011.73",26/09/2019
Delivery Units,Adults and Health,Other Transfer Payments to Soc,60137243,KORU MEDICAL LTD,"2,177.04",26/09/2019
Delivery Units,Adults and Health,Other Transfer Payments to Soc,60138602,KORU MEDICAL LTD,"3,862.09",26/09/2019
Delivery Units,Adults and Health,Other Transfer Payments to Soc,10015376,AISA MEDICAL LTD,173.37,18/09/2019
Delivery Units,Adults and Health,Other Transfer Payments to Soc,60138229,AISA MEDICAL LTD,174.74,05/09/2019
Delivery Units,Adults and Health,Other Transfer Payments to Soc,60138251,AISA MEDICAL LTD,177.71,05/09/2019
Delivery Units,Adults and Health,Other Transfer Payments to Soc,60138263,AISA MEDICAL LTD,182.22,26/09/2019
Delivery Units,Adults and Health,Other Transfer Payments to Soc,60138295,AISA MEDICAL LTD,175.96,05/09/2019
Delivery Units,Adults and Health,Other Transfer Payments to Soc,60139317,AISA MEDICAL LTD,173.37,20/09/2019
Delivery Units,Adults and Health,Other Transfer Payments to Soc,60139324,AISA MEDICAL LTD,175.75,20/09/2019
Delivery Units,Adults and Health,Other Transfer Payments to Soc,60139328,AISA MEDICAL LTD,176.44,20/09/2019
Delivery Units,Adults and Health,Other Transfer Payments to Soc,60139335,AISA MEDICAL LTD,174.16,20/09/2019
Delivery Units,Adults and Health,Other Transfer Payments to Soc,60139339,AISA MEDICAL LTD,175.01,20/09/2019
Delivery Units,Adults and Health,Other Transfer Payments to Soc,60139344,AISA MEDICAL LTD,175.80,20/09/2019
Delivery Units,Adults and Health,Other Transfer Payments to Soc,60139345,AISA MEDICAL LTD,174.16,20/09/2019
Delivery Units,Adults and Health,Other Transfer Payments to Soc,60139349,AISA MEDICAL LTD,173.37,20/09/2019
Delivery Units,Adults and Health,Other Transfer Payments to Soc,60139350,AISA MEDICAL LTD,179.35,26/09/2019
Delivery Units,Adults and Health,Other Transfer Payments to Soc,60139353,AISA MEDICAL LTD,174.05,20/09/2019
Delivery Units,Adults and Health,Other Transfer Payments to Soc,60139355,AISA MEDICAL LTD,174.58,20/09/2019
Delivery Units,Adults and Health,Other Transfer Payments to Soc,60139360,AISA MEDICAL LTD,181.00,20/09/2019
Delivery Units,Adults and Health,Other Transfer Payments to Soc,60139385,AISA MEDICAL LTD,173.37,26/09/2019
Delivery Units,Adults and Health,Other Transfer Payments to Soc,60139388,AISA MEDICAL LTD,178.82,26/09/2019
Delivery Units,Adults and Health,Other Transfer Payments to Soc,60139407,AISA MEDICAL LTD,173.37,26/09/2019
Delivery Units,Adults and Health,Other Transfer Payments to Soc,60139408,AISA MEDICAL LTD,173.37,26/09/2019
Delivery Units,Adults and Health,Other Transfer Payments to Soc,60139413,AISA MEDICAL LTD,173.37,26/09/2019
Delivery Units,Adults and Health,Other Transfer Payments to Soc,60139416,AISA MEDICAL LTD,173.37,26/09/2019
Delivery Units,Adults and Health,Other Transfer Payments to Soc,60139433,AISA MEDICAL LTD,173.37,26/09/2019
Delivery Units,Adults and Health,Other Transfer Payments to Soc,60135831,PEACEABLE HABITATION LTD,323.76,04/09/2019
Delivery Units,Adults and Health,Other Transfer Payments to Soc,60137097,PEACEABLE HABITATION LTD,954.40,16/09/2019
Delivery Units,Adults and Health,Other Transfer Payments to Soc,60139233,PEACEABLE HABITATION LTD,636.72,26/09/2019
Delivery Units,Adults and Health,Translation Exp / Interpret,60136477,D.A. LANGUAGES LTD,27.00,04/09/2019
Delivery Units,Adults and Health,Translation Exp / Interpret,60138640,D.A. LANGUAGES LTD,22.00,12/09/2019
Delivery Units,Adults and Health,Other Transfer Payments to Soc,60138902,BARTEK ZANIEWSKI LTD,"3,946.40",13/09/2019
Delivery Units,Adults and Health,Other Transfer Payments to Soc,10015398,EDUHEZ LTD,"4,295.00",26/09/2019
Delivery Units,Adults and Health,Other Transfer Payments to Soc,60138228,EDUHEZ LTD,"3,110.00",03/09/2019
Delivery Units,Adults and Health,Other Transfer Payments to Soc,60138231,FAVORE DIDIO LTD,"3,060.00",05/09/2019
Delivery Units,Adults and Health,Other Services,60138965,KMCA CONSULTANCY SERVICES LTD,"1,531.16",17/09/2019
Delivery Units,Adults and Health,Other Services,60138983,KMCA CONSULTANCY SERVICES LTD,"3,981.87",17/09/2019
Delivery Units,Adults and Health,Other Services,60138544,JMP MEDICS LTD,400.00,13/09/2019
Delivery Units,Adults and Health,Other Agencies - Third Party P,90192628,NIGHTINGALE HOUSE,"2,952.35",10/09/2019
Delivery Units,Adults and Health,Other Agencies - Third Party P,90195611,JEWISH CARE,"2,410.28",19/09/2019
Delivery Units,Adults and Health,Other Agencies - Third Party P,90195619,JEWISH CARE,430.40,19/09/2019
Delivery Units,Adults and Health,Other Agencies - Third Party P,90195621,JEWISH CARE,"2,410.28",19/09/2019
Delivery Units,Adults and Health,Other Agencies - Third Party P,90195626,JEWISH CARE,"-3,701.50",19/09/2019
Delivery Units,Adults and Health,Other Agencies - Third Party P,90195640,JEWISH CARE,"2,649.36",19/09/2019
Delivery Units,Adults and Health,Other Agencies - Third Party P,90195641,JEWISH CARE,"2,649.36",19/09/2019
Delivery Units,Adults and Health,Other Agencies - Third Party P,90195645,JEWISH CARE,"2,410.28",19/09/2019
Delivery Units,Adults and Health,Other Agencies - Third Party P,90195651,JEWISH CARE,"13,401.36",19/09/2019
Delivery Units,Adults and Health,Other Agencies - Third Party P,90195656,JEWISH CARE,662.34,19/09/2019
Delivery Units,Adults and Health,Other Agencies - Third Party P,90195666,JEWISH CARE,"2,649.36",19/09/2019
Delivery Units,Adults and Health,Other Agencies - Third Party P,90195667,JEWISH CARE,"2,649.36",19/09/2019
Delivery Units,Adults and Health,Other Agencies - Third Party P,90195668,JEWISH CARE,"2,410.28",19/09/2019
Delivery Units,Adults and Health,Other Agencies - Third Party P,90195670,JEWISH CARE,"2,649.36",19/09/2019
Delivery Units,Adults and Health,Other Agencies - Third Party P,90195685,JEWISH CARE,"2,380.92",19/09/2019
Delivery Units,Adults and Health,Other Agencies - Third Party P,90195689,JEWISH CARE,"2,649.36",19/09/2019
Delivery Units,Adults and Health,Other Agencies - Third Party P,90195705,JEWISH CARE,"2,410.28",19/09/2019
Delivery Units,Adults and Health,Other Agencies - Third Party P,90195706,JEWISH CARE,"2,410.28",19/09/2019
Delivery Units,Adults and Health,Other Agencies - Third Party P,90195715,JEWISH CARE,"3,489.64",19/09/2019
Delivery Units,Adults and Health,Other Agencies - Third Party P,90195717,JEWISH CARE,"2,410.28",19/09/2019
Delivery Units,Adults and Health,Other Agencies - Third Party P,90195723,JEWISH CARE,"2,410.28",19/09/2019
Delivery Units,Adults and Health,Other Agencies - Third Party P,90195724,JEWISH CARE,"2,649.36",19/09/2019
Delivery Units,Adults and Health,Other Agencies - Third Party P,90195728,JEWISH CARE,"2,410.28",19/09/2019
Delivery Units,Adults and Health,Other Agencies - Third Party P,90198740,FERNBANK NURSING HOME.,"2,427.00",30/09/2019
Delivery Units,Adults and Health,Other Agencies - Third Party P,90198741,FERNBANK NURSING HOME.,"2,427.00",30/09/2019
Delivery Units,Adults and Health,Other Agencies - Third Party P,90198742,FERNBANK NURSING HOME.,"2,670.90",30/09/2019
Delivery Units,Adults and Health,Other Agencies - Third Party P,90198743,FERNBANK NURSING HOME.,"2,670.90",30/09/2019
Delivery Units,Adults and Health,Other Agencies - Third Party P,90198744,FERNBANK NURSING HOME.,"4,221.30",30/09/2019
Delivery Units,Adults and Health,Other Agencies - Third Party P,90196271,BUPA NURSING HOMES LTD - ARKLEY,"2,243.20",20/09/2019
Delivery Units,Adults and Health,Other Agencies - Third Party P,90196272,BUPA NURSING HOMES LTD - ARKLEY,"4,400.00",20/09/2019
Delivery Units,Adults and Health,Other Agencies - Third Party P,90196273,BUPA NURSING HOMES LTD - ARKLEY,"2,318.76",20/09/2019
Delivery Units,Adults and Health,Other Agencies - Third Party P,90196275,BUPA NURSING HOMES LTD - ARKLEY,"2,318.76",20/09/2019
Delivery Units,Adults and Health,Other Agencies - Third Party P,90196276,BUPA NURSING HOMES LTD - ARKLEY,"2,318.76",20/09/2019
Delivery Units,Adults and Health,Other Agencies - Third Party P,90196277,BUPA NURSING HOMES LTD - ARKLEY,"2,318.76",20/09/2019
Delivery Units,Adults and Health,Other Agencies - Third Party P,90191796,AGUDAS ISRAEL HOUSING ASSCTN LTD,"2,736.86",11/09/2019
Delivery Units,Adults and Health,Other Agencies - Third Party P,90198290,METHODIST HOMES FOR THE AGED,"2,400.00",24/09/2019
Delivery Units,Adults and Health,Other Agencies - Third Party P,90192637,THE LEONARD CHESHIRE FOUNDATION,"6,634.00",10/09/2019
Delivery Units,Adults and Health,Other Agencies - Third Party P,90191899,LIFESTYLE CARE PLC,"2,655.55",11/09/2019
Delivery Units,Adults and Health,Other Agencies - Third Party P,90191901,LIFESTYLE CARE PLC,"2,397.72",11/09/2019
Delivery Units,Adults and Health,Other Agencies - Third Party P,90191902,LIFESTYLE CARE PLC,"2,842.43",11/09/2019
Delivery Units,Adults and Health,Other Agencies - Third Party P,90191904,LIFESTYLE CARE PLC,"2,655.55",11/09/2019
Delivery Units,Adults and Health,Other Agencies - Third Party P,90191905,LIFESTYLE CARE PLC,"2,397.72",11/09/2019
Delivery Units,Adults and Health,Other Agencies - Third Party P,90191906,LIFESTYLE CARE PLC,"2,397.72",11/09/2019
Delivery Units,Adults and Health,Other Agencies - Third Party P,90191907,LIFESTYLE CARE PLC,"2,397.72",11/09/2019
Delivery Units,Adults and Health,Other Agencies - Third Party P,90191908,LIFESTYLE CARE PLC,"2,655.55",11/09/2019
Delivery Units,Adults and Health,Other Agencies - Third Party P,90191909,LIFESTYLE CARE PLC,"2,397.72",11/09/2019
Delivery Units,Adults and Health,Other Agencies - Third Party P,90191910,LIFESTYLE CARE PLC,"1,082.84",11/09/2019
Delivery Units,Adults and Health,Other Agencies - Third Party P,90198896,LIFESTYLE CARE PLC,"2,764.07",30/09/2019
Delivery Units,Adults and Health,Other Agencies - Third Party P,90198897,LIFESTYLE CARE PLC,"3,728.57",30/09/2019
Delivery Units,Adults and Health,Other Agencies - Third Party P,90198898,CARETECH COMMUNITY SERVICES LTD,"4,815.09",30/09/2019
Delivery Units,Adults and Health,Other Agencies - Third Party P,90191440,MEERA NURSING HOME LIMITED,-738.21,04/09/2019
Delivery Units,Adults and Health,Other Agencies - Third Party P,90191444,MEERA NURSING HOME LIMITED,"-3,348.99",30/09/2019
Delivery Units,Adults and Health,Other Agencies - Third Party P,90191798,MEERA NURSING HOME LIMITED,971.43,04/09/2019
Delivery Units,Adults and Health,Other Agencies - Third Party P,90191799,MEERA NURSING HOME LIMITED,"3,764.29",04/09/2019
Delivery Units,Adults and Health,Other Agencies - Third Party P,90198842,MEERA NURSING HOME LIMITED,"2,366.79",30/09/2019
Delivery Units,Adults and Health,Other Agencies - Third Party P,90198843,MEERA NURSING HOME LIMITED,"3,642.86",30/09/2019
Delivery Units,Adults and Health,Other Agencies - Third Party P,90198844,MEERA NURSING HOME LIMITED,"2,366.79",30/09/2019
Delivery Units,Adults and Health,Other Agencies - Third Party P,90198873,MEERA NURSING HOME LIMITED,"3,000.00",30/09/2019
Delivery Units,Adults and Health,Other Agencies - Third Party P,90198875,MEERA NURSING HOME LIMITED,"3,393.60",30/09/2019
Delivery Units,Adults and Health,Other Agencies - Third Party P,90192630,BUPA CARE HOMES,"2,563.39",11/09/2019
Delivery Units,Adults and Health,Other Agencies - Third Party P,90192633,BUPA CARE HOMES,"2,493.08",11/09/2019
Delivery Units,Adults and Health,Other Agencies - Third Party P,90193510,BUPA CARE HOMES,"2,399.58",13/09/2019
Delivery Units,Adults and Health,Other Agencies - Third Party P,90193512,BUPA CARE HOMES,"2,780.70",13/09/2019
Delivery Units,Adults and Health,Other Agencies - Third Party P,90193513,BUPA CARE HOMES,"3,210.71",13/09/2019
Delivery Units,Adults and Health,Other Agencies - Third Party P,90193514,BUPA CARE HOMES,"2,413.57",13/09/2019
Delivery Units,Adults and Health,Other Agencies - Third Party P,90193515,BUPA CARE HOMES,"2,399.58",13/09/2019
Delivery Units,Adults and Health,Other Agencies - Third Party P,90193516,BUPA CARE HOMES,"2,399.58",13/09/2019
Delivery Units,Adults and Health,Other Agencies - Third Party P,90193517,BUPA CARE HOMES,"2,399.58",13/09/2019
Delivery Units,Adults and Health,Other Agencies - Third Party P,90193518,BUPA CARE HOMES,"2,760.20",13/09/2019
Delivery Units,Adults and Health,Other Agencies - Third Party P,90198717,ASPEN VILLAGES LTD,"2,571.43",30/09/2019
Delivery Units,Adults and Health,Other Agencies - Third Party P,90198602,SANCTUARY CARE LTD,"2,459.10",30/09/2019
Delivery Units,Adults and Health,Other Agencies - Third Party P,90193504,BUPA CARE HOMES,"3,556.23",13/09/2019
Delivery Units,Adults and Health,Other Agencies - Third Party P,90193505,BUPA CARE HOMES,"2,567.20",13/09/2019
Delivery Units,Adults and Health,Other Agencies - Third Party P,90193506,BUPA CARE HOMES,"3,615.84",13/09/2019
Delivery Units,Adults and Health,Other Agencies - Third Party P,90193508,BUPA CARE HOMES,"3,412.44",13/09/2019
Delivery Units,Adults and Health,Other Agencies - Third Party P,90191885,SAGE NURSING HOME,"4,207.14",09/09/2019
Delivery Units,Adults and Health,Other Agencies - Third Party P,90191888,SAGE NURSING HOME,"2,788.32",09/09/2019
Delivery Units,Adults and Health,Other Agencies - Third Party P,90191889,SAGE NURSING HOME,"2,517.60",09/09/2019
Delivery Units,Adults and Health,Other Agencies - Third Party P,90191891,SAGE NURSING HOME,"3,077.86",09/09/2019
Delivery Units,Adults and Health,Other Agencies - Third Party P,90198313,SAGE NURSING HOME,"3,392.86",24/09/2019
Delivery Units,Adults and Health,Other Agencies - Third Party P,90198314,SAGE NURSING HOME,"4,207.14",24/09/2019
Delivery Units,Adults and Health,Other Agencies - Third Party P,90198315,SAGE NURSING HOME,"3,935.71",24/09/2019
Delivery Units,Adults and Health,Other Agencies - Third Party P,90198588,M D HOMES,"2,973.21",30/09/2019
Delivery Units,Adults and Health,Other Agencies - Third Party P,90193495,APPLE TREE COURT CARE HOME,-950.00,30/09/2019
Delivery Units,Adults and Health,Other Agencies - Third Party P,90198573,APPLE TREE COURT CARE HOME,"2,671.16",30/09/2019
Delivery Units,Adults and Health,Other Agencies - Third Party P,90198576,APPLE TREE COURT CARE HOME,"4,714.29",30/09/2019
Delivery Units,Adults and Health,Other Agencies - Third Party P,90196234,AUTUMN GARDENS,"4,800.00",20/09/2019
Delivery Units,Adults and Health,Other Agencies - Third Party P,90196236,AUTUMN GARDENS,"4,800.00",20/09/2019
Delivery Units,Adults and Health,Other Agencies - Third Party P,90196238,AUTUMN GARDENS,"3,440.00",20/09/2019
Delivery Units,Adults and Health,Other Agencies - Third Party P,90195893,ABBEY RAVENSCROFT PARK NURSING HOME,"4,128.57",20/09/2019
Delivery Units,Adults and Health,Other Agencies - Third Party P,90195897,ABBEY RAVENSCROFT PARK NURSING HOME,"-1,594.34",20/09/2019
Delivery Units,Adults and Health,Other Agencies - Third Party P,90195909,ABBEY RAVENSCROFT PARK NURSING HOME,685.71,20/09/2019
Delivery Units,Adults and Health,Other Agencies - Third Party P,90195910,ABBEY RAVENSCROFT PARK NURSING HOME,"3,542.86",20/09/2019
Delivery Units,Adults and Health,Other Agencies - Third Party P,90198746,ABBEY RAVENSCROFT PARK NURSING HOME,"3,214.29",30/09/2019
Delivery Units,Adults and Health,Other Agencies - Third Party P,90198747,ABBEY RAVENSCROFT PARK NURSING HOME,"3,214.29",30/09/2019
Delivery Units,Adults and Health,Other Agencies - Third Party P,90198748,ABBEY RAVENSCROFT PARK NURSING HOME,"2,698.37",30/09/2019
Delivery Units,Adults and Health,Other Agencies - Third Party P,90198750,ABBEY RAVENSCROFT PARK NURSING HOME,"2,698.37",30/09/2019
Delivery Units,Adults and Health,Other Agencies - Third Party P,90198753,ABBEY RAVENSCROFT PARK NURSING HOME,"3,214.29",30/09/2019
Delivery Units,Adults and Health,Other Agencies - Third Party P,90198754,ABBEY RAVENSCROFT PARK NURSING HOME,"3,214.29",30/09/2019
Delivery Units,Adults and Health,Other Agencies - Third Party P,90198755,ABBEY RAVENSCROFT PARK NURSING HOME,"3,642.86",30/09/2019
Delivery Units,Adults and Health,Other Agencies - Third Party P,90198757,ABBEY RAVENSCROFT PARK NURSING HOME,"3,428.57",30/09/2019
Delivery Units,Adults and Health,Other Agencies - Third Party P,90198759,ABBEY RAVENSCROFT PARK NURSING HOME,"2,698.37",30/09/2019
Delivery Units,Adults and Health,Other Agencies - Third Party P,90198760,ABBEY RAVENSCROFT PARK NURSING HOME,"4,834.29",30/09/2019
Delivery Units,Adults and Health,Other Agencies - Third Party P,90198761,ABBEY RAVENSCROFT PARK NURSING HOME,"3,214.29",30/09/2019
Delivery Units,Adults and Health,Other Agencies - Third Party P,90198762,ABBEY RAVENSCROFT PARK NURSING HOME,"3,214.29",30/09/2019
Delivery Units,Adults and Health,Other Agencies - Third Party P,90198764,ABBEY RAVENSCROFT PARK NURSING HOME,"2,698.37",30/09/2019
Delivery Units,Adults and Health,Other Agencies - Third Party P,90198766,ABBEY RAVENSCROFT PARK NURSING HOME,"3,000.00",30/09/2019
Delivery Units,Adults and Health,Other Agencies - Third Party P,90198885,ABBEY RAVENSCROFT PARK NURSING HOME,"3,428.57",30/09/2019
Delivery Units,Adults and Health,Other Agencies - Third Party P,90193480,CARLTON COURT (TLC GROUP),"3,278.57",13/09/2019
Delivery Units,Adults and Health,Other Agencies - Third Party P,90193481,CARLTON COURT (TLC GROUP),"5,978.57",13/09/2019
Delivery Units,Adults and Health,Other Agencies - Third Party P,90193985,CARLTON COURT (TLC GROUP),"29,857.14",17/09/2019
Delivery Units,Adults and Health,Other Agencies - Third Party P,90195894,CARLTON COURT (TLC GROUP),"1,542.86",20/09/2019
Delivery Units,Adults and Health,Other Agencies - Third Party P,90195895,CARLTON COURT (TLC GROUP),"1,157.14",20/09/2019
Delivery Units,Adults and Health,Other Agencies - Third Party P,90198515,CARLTON COURT (TLC GROUP),"4,285.71",30/09/2019
Delivery Units,Adults and Health,Other Agencies - Third Party P,90198738,CARLTON COURT (TLC GROUP),"5,785.71",30/09/2019
Delivery Units,Adults and Health,Other Agencies - Third Party P,90198856,CARLTON COURT (TLC GROUP),"4,285.71",30/09/2019
Delivery Units,Adults and Health,Other Agencies - Third Party P,90198857,CARLTON COURT (TLC GROUP),"3,616.07",30/09/2019
Delivery Units,Adults and Health,Other Agencies - Third Party P,90198861,CARLTON COURT (TLC GROUP),"2,369.79",30/09/2019
Delivery Units,Adults and Health,Other Agencies - Third Party P,90198867,CARLTON COURT (TLC GROUP),"3,642.86",30/09/2019
Delivery Units,Adults and Health,Other Agencies - Third Party P,90198805,HUSKARDS NEW CARE LTD,"2,320.37",30/09/2019
Delivery Units,Adults and Health,Other Agencies - Third Party P,90193970,ASHTON LODGE CARE CENTRE,-546.16,30/09/2019
Delivery Units,Adults and Health,Other Agencies - Third Party P,90193971,ASHTON LODGE CARE CENTRE,-934.02,30/09/2019
Delivery Units,Adults and Health,Other Agencies - Third Party P,90193972,ASHTON LODGE CARE CENTRE,-264.98,30/09/2019
Delivery Units,Adults and Health,Other Agencies - Third Party P,90198826,ASHTON LODGE CARE CENTRE,"4,076.83",30/09/2019
Delivery Units,Adults and Health,Other Agencies - Third Party P,90198827,ASHTON LODGE CARE CENTRE,"3,722.87",30/09/2019
Delivery Units,Adults and Health,Other Agencies - Third Party P,90198828,ASHTON LODGE CARE CENTRE,"2,829.64",30/09/2019
Delivery Units,Adults and Health,Other Agencies - Third Party P,90198829,ASHTON LODGE CARE CENTRE,"3,524.83",30/09/2019
Delivery Units,Adults and Health,Other Agencies - Third Party P,90198830,ASHTON LODGE CARE CENTRE,"2,829.64",30/09/2019
Delivery Units,Adults and Health,Other Agencies - Third Party P,90198831,ASHTON LODGE CARE CENTRE,"3,282.26",30/09/2019
Delivery Units,Adults and Health,Other Agencies - Third Party P,90198832,ASHTON LODGE CARE CENTRE,"3,057.77",30/09/2019
Delivery Units,Adults and Health,Other Agencies - Third Party P,90198833,ASHTON LODGE CARE CENTRE,"3,117.81",30/09/2019
Delivery Units,Adults and Health,Other Agencies - Third Party P,90198834,ASHTON LODGE CARE CENTRE,"3,488.87",30/09/2019
Delivery Units,Adults and Health,Other Agencies - Third Party P,90198835,ASHTON LODGE CARE CENTRE,"3,061.97",30/09/2019
Delivery Units,Adults and Health,Other Agencies - Third Party P,90198836,ASHTON LODGE CARE CENTRE,"2,921.23",30/09/2019
Delivery Units,Adults and Health,Other Agencies - Third Party P,90198837,ASHTON LODGE CARE CENTRE,"3,061.97",30/09/2019
Delivery Units,Adults and Health,Other Agencies - Third Party P,90198838,ASHTON LODGE CARE CENTRE,"3,427.54",30/09/2019
Delivery Units,Adults and Health,Other Agencies - Third Party P,90198839,ASHTON LODGE CARE CENTRE,"3,427.54",30/09/2019
Delivery Units,Adults and Health,Other Agencies - Third Party P,90198841,ASHTON LODGE CARE CENTRE,"4,219.03",30/09/2019
Delivery Units,Adults and Health,Other Agencies - Third Party P,90198592,WILSMERE HOUSE CARE CENTRE,"4,818.73",30/09/2019
Delivery Units,Adults and Health,Other Agencies - Third Party P,90198597,PINELODGE CARE HOME,"2,569.89",30/09/2019
Delivery Units,Adults and Health,Other Agencies - Third Party P,90198578,CHISWICK HOUSE,"3,214.20",30/09/2019
Delivery Units,Adults and Health,Other Agencies - Third Party P,90198523,AARANDALE MANOR CARE HOME,"2,061.09",30/09/2019
Delivery Units,Adults and Health,Other Agencies - Third Party P,90198524,AARANDALE MANOR CARE HOME,"4,285.71",30/09/2019
Delivery Units,Adults and Health,Other Agencies - Third Party P,90198525,AARANDALE MANOR CARE HOME,"3,621.21",30/09/2019
Delivery Units,Adults and Health,Other Agencies - Third Party P,90198526,AARANDALE MANOR CARE HOME,"2,487.64",30/09/2019
Delivery Units,Adults and Health,Other Agencies - Third Party P,90198745,ST JOHNS WOOD CARE CENTRE,"2,758.93",30/09/2019
Delivery Units,Adults and Health,Other Agencies - Third Party P,90198605,CONTEMPLATION HOMES,"3,299.79",30/09/2019
Delivery Units,Adults and Health,Other Agencies - Third Party P,90198871,LANSGLADE HOMES LIMITED,"2,635.50",30/09/2019
Delivery Units,Adults and Health,Other Agencies - Third Party P,90192635,ALLIANCE CARE (DALES HOMES) LIMITED,"3,764.29",10/09/2019
Delivery Units,Adults and Health,Other Agencies - Third Party P,90196228,LARCHWOOD CARE HOMES(SOUTH)LT,"3,400.00",20/09/2019
Delivery Units,Adults and Health,Other Agencies - Third Party P,90196262,CEDARS NURSING HOME,"4,207.14",20/09/2019
Delivery Units,Adults and Health,Other Agencies - Third Party P,90196263,CEDARS NURSING HOME,"2,964.93",20/09/2019
Delivery Units,Adults and Health,Other Agencies - Third Party P,90196264,CEDARS NURSING HOME,"2,508.08",20/09/2019
Delivery Units,Adults and Health,Other Agencies - Third Party P,90196265,CEDARS NURSING HOME,"4,207.14",20/09/2019
Delivery Units,Adults and Health,Other Agencies - Third Party P,90196267,CEDARS NURSING HOME,"2,657.14",20/09/2019
Delivery Units,Adults and Health,Other Agencies - Third Party P,90196268,CEDARS NURSING HOME,"4,428.57",20/09/2019
Delivery Units,Adults and Health,Other Agencies - Third Party P,90191441,ROSEACRES CARE HOME LIMITED,"3,642.86",03/09/2019
Delivery Units,Adults and Health,Other Agencies - Third Party P,90191442,ROSEACRES CARE HOME LIMITED,"2,988.53",03/09/2019
Delivery Units,Adults and Health,Other Agencies - Third Party P,90191443,ROSEACRES CARE HOME LIMITED,-107.14,03/09/2019
Delivery Units,Adults and Health,Other Agencies - Third Party P,90195911,ROSEACRES CARE HOME LIMITED,"2,914.29",20/09/2019
Delivery Units,Adults and Health,Other Agencies - Third Party P,90198724,ROSEACRES CARE HOME LIMITED,"3,214.29",30/09/2019
Delivery Units,Adults and Health,Other Agencies - Third Party P,90198725,ROSEACRES CARE HOME LIMITED,"3,214.29",30/09/2019
Delivery Units,Adults and Health,Other Agencies - Third Party P,90198726,ROSEACRES CARE HOME LIMITED,"2,468.57",30/09/2019
Delivery Units,Adults and Health,Other Agencies - Third Party P,90198727,ROSEACRES CARE HOME LIMITED,"2,468.57",30/09/2019
Delivery Units,Adults and Health,Other Agencies - Third Party P,90198729,ROSEACRES CARE HOME LIMITED,"3,642.86",30/09/2019
Delivery Units,Adults and Health,Other Agencies - Third Party P,90198730,ROSEACRES CARE HOME LIMITED,"2,468.57",30/09/2019
Delivery Units,Adults and Health,Other Agencies - Third Party P,90198731,ROSEACRES CARE HOME LIMITED,"2,468.57",30/09/2019
Delivery Units,Adults and Health,Other Agencies - Third Party P,90198733,ROSEACRES CARE HOME LIMITED,"3,214.29",30/09/2019
Delivery Units,Adults and Health,Other Agencies - Third Party P,90198734,ROSEACRES CARE HOME LIMITED,"6,428.57",30/09/2019
Delivery Units,Adults and Health,Other Agencies - Third Party P,90198735,ROSEACRES CARE HOME LIMITED,"2,468.57",30/09/2019
Delivery Units,Adults and Health,Other Agencies - Third Party P,90198736,ROSEACRES CARE HOME LIMITED,"3,214.29",30/09/2019
Delivery Units,Adults and Health,Other Agencies - Third Party P,90192626,NIGHTINGALE HOUSE,"3,072.01",10/09/2019
Delivery Units,Adults and Health,Other Agencies - Third Party P,90192627,NIGHTINGALE HOUSE,"2,437.71",10/09/2019
Delivery Units,Adults and Health,Other Agencies - Third Party P,90198905,ELEANOR PALMER TRUST NO 2 A/C.,"3,246.43",30/09/2019
Delivery Units,Adults and Health,Other Agencies - Third Party P,90198906,ELEANOR PALMER TRUST NO 2 A/C.,"3,319.80",30/09/2019
Delivery Units,Adults and Health,Other Agencies - Third Party P,90198907,ELEANOR PALMER TRUST NO 2 A/C.,"3,246.43",30/09/2019
Delivery Units,Adults and Health,Other Agencies - Third Party P,90198908,ELEANOR PALMER TRUST NO 2 A/C.,"3,246.43",30/09/2019
Delivery Units,Adults and Health,Other Agencies - Third Party P,90198909,ELEANOR PALMER TRUST NO 2 A/C.,"3,319.80",30/09/2019
Delivery Units,Adults and Health,Other Agencies - Third Party P,90198910,ELEANOR PALMER TRUST NO 2 A/C.,"2,545.50",30/09/2019
Delivery Units,Adults and Health,Other Agencies - Third Party P,90198911,ELEANOR PALMER TRUST NO 2 A/C.,"3,319.80",30/09/2019
Delivery Units,Adults and Health,Other Agencies - Third Party P,90198912,ELEANOR PALMER TRUST NO 2 A/C.,"2,545.50",30/09/2019
Delivery Units,Adults and Health,Other Agencies - Third Party P,90198913,ELEANOR PALMER TRUST NO 2 A/C.,"2,343.09",30/09/2019
Delivery Units,Adults and Health,Other Agencies - Third Party P,90198915,ELEANOR PALMER TRUST NO 2 A/C.,"3,319.80",30/09/2019
Delivery Units,Adults and Health,Other Agencies - Third Party P,90198916,ELEANOR PALMER TRUST NO 2 A/C.,"3,319.80",30/09/2019
Delivery Units,Adults and Health,Other Agencies - Third Party P,90198917,ELEANOR PALMER TRUST NO 2 A/C.,"3,319.80",30/09/2019
Delivery Units,Adults and Health,Other Agencies - Third Party P,90198918,ELEANOR PALMER TRUST NO 2 A/C.,"2,343.09",30/09/2019
Delivery Units,Adults and Health,Other Agencies - Third Party P,90198919,ELEANOR PALMER TRUST NO 2 A/C.,"2,545.50",30/09/2019
Delivery Units,Adults and Health,Other Agencies - Third Party P,90198920,ELEANOR PALMER TRUST NO 2 A/C.,"3,246.43",30/09/2019
Delivery Units,Adults and Health,Other Agencies - Third Party P,90198921,ELEANOR PALMER TRUST NO 2 A/C.,"3,214.29",30/09/2019
Delivery Units,Adults and Health,Other Agencies - Third Party P,90198922,ELEANOR PALMER TRUST NO 2 A/C.,"3,319.80",30/09/2019
Delivery Units,Adults and Health,Other Agencies - Third Party P,90190989,ELM PARK LODGE,"3,242.51",05/09/2019
Delivery Units,Adults and Health,Other Agencies - Third Party P,90198549,TORRINGTON HOMES,"2,176.89",30/09/2019
Delivery Units,Adults and Health,Other Agencies - Third Party P,90198550,TORRINGTON HOMES,"2,369.79",30/09/2019
Delivery Units,Adults and Health,Other Agencies - Third Party P,90191445,THE GRANGE,"2,350.08",03/09/2019
Delivery Units,Adults and Health,Other Agencies - Third Party P,90191447,THE GRANGE,"2,600.00",03/09/2019
Delivery Units,Adults and Health,Other Agencies - Third Party P,90195610,JEWISH CARE,"2,296.24",19/09/2019
Delivery Units,Adults and Health,Other Agencies - Third Party P,90195617,JEWISH CARE,"2,296.24",19/09/2019
Delivery Units,Adults and Health,Other Agencies - Third Party P,90195618,JEWISH CARE,"2,296.24",19/09/2019
Delivery Units,Adults and Health,Other Agencies - Third Party P,90195622,JEWISH CARE,"2,484.56",19/09/2019
Delivery Units,Adults and Health,Other Agencies - Third Party P,90195623,JEWISH CARE,"2,479.68",19/09/2019
Delivery Units,Adults and Health,Other Agencies - Third Party P,90195625,JEWISH CARE,"2,482.36",19/09/2019
Delivery Units,Adults and Health,Other Agencies - Third Party P,90195628,JEWISH CARE,"2,296.24",19/09/2019
Delivery Units,Adults and Health,Other Agencies - Third Party P,90195629,JEWISH CARE,"2,482.36",19/09/2019
Delivery Units,Adults and Health,Other Agencies - Third Party P,90195634,JEWISH CARE,-174.29,19/09/2019
Delivery Units,Adults and Health,Other Agencies - Third Party P,90195635,JEWISH CARE,"2,484.56",19/09/2019
Delivery Units,Adults and Health,Other Agencies - Third Party P,90195636,JEWISH CARE,"2,484.56",19/09/2019
Delivery Units,Adults and Health,Other Agencies - Third Party P,90195637,JEWISH CARE,"2,296.24",19/09/2019
Delivery Units,Adults and Health,Other Agencies - Third Party P,90195638,JEWISH CARE,"2,479.68",19/09/2019
Delivery Units,Adults and Health,Other Agencies - Third Party P,90195639,JEWISH CARE,"2,484.56",19/09/2019
Delivery Units,Adults and Health,Other Agencies - Third Party P,90195642,JEWISH CARE,"2,484.56",19/09/2019
Delivery Units,Adults and Health,Other Agencies - Third Party P,90195644,JEWISH CARE,"2,296.24",19/09/2019
Delivery Units,Adults and Health,Other Agencies - Third Party P,90195646,JEWISH CARE,"2,480.92",19/09/2019
Delivery Units,Adults and Health,Other Agencies - Third Party P,90195649,JEWISH CARE,"2,480.92",19/09/2019
Delivery Units,Adults and Health,Other Agencies - Third Party P,90195652,JEWISH CARE,"2,484.56",19/09/2019
Delivery Units,Adults and Health,Other Agencies - Third Party P,90195654,JEWISH CARE,"2,296.24",19/09/2019
Delivery Units,Adults and Health,Other Agencies - Third Party P,90195657,JEWISH CARE,"2,296.24",19/09/2019
Delivery Units,Adults and Health,Other Agencies - Third Party P,90195658,JEWISH CARE,"2,296.24",19/09/2019
Delivery Units,Adults and Health,Other Agencies - Third Party P,90195659,JEWISH CARE,"2,479.68",19/09/2019
Delivery Units,Adults and Health,Other Agencies - Third Party P,90195661,JEWISH CARE,"2,482.36",19/09/2019
Delivery Units,Adults and Health,Other Agencies - Third Party P,90195662,JEWISH CARE,"2,482.36",19/09/2019
Delivery Units,Adults and Health,Other Agencies - Third Party P,90195663,JEWISH CARE,"2,482.36",19/09/2019
Delivery Units,Adults and Health,Other Agencies - Third Party P,90195664,JEWISH CARE,"2,479.68",19/09/2019
Delivery Units,Adults and Health,Other Agencies - Third Party P,90195665,JEWISH CARE,"2,296.24",19/09/2019
Delivery Units,Adults and Health,Other Agencies - Third Party P,90195669,JEWISH CARE,"2,482.36",19/09/2019
Delivery Units,Adults and Health,Other Agencies - Third Party P,90195671,JEWISH CARE,"2,480.92",19/09/2019
Delivery Units,Adults and Health,Other Agencies - Third Party P,90195672,JEWISH CARE,"2,296.24",19/09/2019
Delivery Units,Adults and Health,Other Agencies - Third Party P,90195673,JEWISH CARE,"2,479.68",19/09/2019
Delivery Units,Adults and Health,Other Agencies - Third Party P,90195674,JEWISH CARE,"2,480.92",19/09/2019
Delivery Units,Adults and Health,Other Agencies - Third Party P,90195676,JEWISH CARE,"2,649.36",19/09/2019
Delivery Units,Adults and Health,Other Agencies - Third Party P,90195677,JEWISH CARE,"2,480.92",19/09/2019
Delivery Units,Adults and Health,Other Agencies - Third Party P,90195679,JEWISH CARE,"2,479.68",19/09/2019
Delivery Units,Adults and Health,Other Agencies - Third Party P,90195680,JEWISH CARE,"2,479.68",19/09/2019
Delivery Units,Adults and Health,Other Agencies - Third Party P,90195681,JEWISH CARE,"2,482.36",19/09/2019
Delivery Units,Adults and Health,Other Agencies - Third Party P,90195682,JEWISH CARE,"2,484.56",19/09/2019
Delivery Units,Adults and Health,Other Agencies - Third Party P,90195684,JEWISH CARE,"2,484.56",19/09/2019
Delivery Units,Adults and Health,Other Agencies - Third Party P,90195686,JEWISH CARE,"2,296.24",19/09/2019
Delivery Units,Adults and Health,Other Agencies - Third Party P,90195687,JEWISH CARE,"2,280.76",19/09/2019
Delivery Units,Adults and Health,Other Agencies - Third Party P,90195690,JEWISH CARE,"2,479.68",19/09/2019
Delivery Units,Adults and Health,Other Agencies - Third Party P,90195691,JEWISH CARE,"2,480.92",19/09/2019
Delivery Units,Adults and Health,Other Agencies - Third Party P,90195692,JEWISH CARE,"2,480.92",19/09/2019
Delivery Units,Adults and Health,Other Agencies - Third Party P,90195693,JEWISH CARE,"2,479.68",19/09/2019
Delivery Units,Adults and Health,Other Agencies - Third Party P,90195694,JEWISH CARE,"4,265.48",19/09/2019
Delivery Units,Adults and Health,Other Agencies - Third Party P,90195696,JEWISH CARE,"2,280.32",19/09/2019
Delivery Units,Adults and Health,Other Agencies - Third Party P,90195697,JEWISH CARE,"2,296.24",19/09/2019
Delivery Units,Adults and Health,Other Agencies - Third Party P,90195698,JEWISH CARE,"2,156.80",19/09/2019
Delivery Units,Adults and Health,Other Agencies - Third Party P,90195701,JEWISH CARE,"2,480.92",19/09/2019
Delivery Units,Adults and Health,Other Agencies - Third Party P,90195702,JEWISH CARE,88.66,19/09/2019
Delivery Units,Adults and Health,Other Agencies - Third Party P,90195703,JEWISH CARE,"2,482.36",19/09/2019
Delivery Units,Adults and Health,Other Agencies - Third Party P,90195704,JEWISH CARE,"2,296.24",19/09/2019
Delivery Units,Adults and Health,Other Agencies - Third Party P,90195707,JEWISH CARE,"2,482.36",19/09/2019
Delivery Units,Adults and Health,Other Agencies - Third Party P,90195708,JEWISH CARE,"2,484.56",19/09/2019
Delivery Units,Adults and Health,Other Agencies - Third Party P,90195709,JEWISH CARE,"4,922.72",19/09/2019
Delivery Units,Adults and Health,Other Agencies - Third Party P,90195713,JEWISH CARE,"2,296.24",19/09/2019
Delivery Units,Adults and Health,Other Agencies - Third Party P,90195716,JEWISH CARE,"2,480.92",19/09/2019
Delivery Units,Adults and Health,Other Agencies - Third Party P,90195719,JEWISH CARE,"2,479.68",19/09/2019
Delivery Units,Adults and Health,Other Agencies - Third Party P,90195720,JEWISH CARE,"2,479.68",19/09/2019
Delivery Units,Adults and Health,Other Agencies - Third Party P,90195721,JEWISH CARE,"2,484.56",19/09/2019
Delivery Units,Adults and Health,Other Agencies - Third Party P,90195722,JEWISH CARE,"2,482.36",19/09/2019
Delivery Units,Adults and Health,Other Agencies - Third Party P,90195725,JEWISH CARE,"2,484.56",19/09/2019
Delivery Units,Adults and Health,Other Agencies - Third Party P,90195726,JEWISH CARE,"4,825.16",19/09/2019
Delivery Units,Adults and Health,Other Agencies - Third Party P,90195727,JEWISH CARE,"2,480.92",19/09/2019
Delivery Units,Adults and Health,Other Agencies - Third Party P,90195729,JEWISH CARE,"6,806.71",19/09/2019
Delivery Units,Adults and Health,Other Agencies - Third Party P,90195730,JEWISH CARE,"27,301.16",19/09/2019
Delivery Units,Adults and Health,Other Agencies - Third Party P,90191804,CLOVELLY HOUSE RESID. HOME LTD,428.57,04/09/2019
Delivery Units,Adults and Health,Other Agencies - Third Party P,90196240,CLOVELLY HOUSE RESID. HOME LTD,"3,000.00",20/09/2019
Delivery Units,Adults and Health,Other Agencies - Third Party P,90196241,CLOVELLY HOUSE RESID. HOME LTD,"2,600.00",20/09/2019
Delivery Units,Adults and Health,Other Agencies - Third Party P,90196244,CLOVELLY HOUSE RESID. HOME LTD,"2,780.00",20/09/2019
Delivery Units,Adults and Health,Other Agencies - Third Party P,90196245,CLOVELLY HOUSE RESID. HOME LTD,"2,350.08",20/09/2019
Delivery Units,Adults and Health,Other Agencies - Third Party P,90196246,CLOVELLY HOUSE RESID. HOME LTD,"3,000.00",20/09/2019
Delivery Units,Adults and Health,Other Agencies - Third Party P,90196248,CLOVELLY HOUSE RESID. HOME LTD,"2,780.00",20/09/2019
Delivery Units,Adults and Health,Other Agencies - Third Party P,90196249,CLOVELLY HOUSE RESID. HOME LTD,"2,600.00",20/09/2019
Delivery Units,Adults and Health,Other Agencies - Third Party P,90196251,CLOVELLY HOUSE RESID. HOME LTD,"2,350.08",20/09/2019
Delivery Units,Adults and Health,Other Agencies - Third Party P,90196254,CLOVELLY HOUSE RESID. HOME LTD,"3,000.00",20/09/2019
Delivery Units,Adults and Health,Other Agencies - Third Party P,90191911,FINBOND LIMITED,"3,214.29",11/09/2019
Delivery Units,Adults and Health,Other Agencies - Third Party P,90198600,FINBOND LIMITED,"3,214.29",30/09/2019
Delivery Units,Adults and Health,Other Agencies - Third Party P,90193496,QUANTUM CARE LIMITED,"3,321.43",13/09/2019
Delivery Units,Adults and Health,Other Agencies - Third Party P,90193497,QUANTUM CARE LIMITED,"4,207.14",13/09/2019
Delivery Units,Adults and Health,Other Agencies - Third Party P,90198798,QUANTUM CARE LIMITED,"3,321.43",30/09/2019
Delivery Units,Adults and Health,Other Agencies - Third Party P,90198507,CATHERINE LODGE,"3,642.86",30/09/2019
Delivery Units,Adults and Health,Other Agencies - Third Party P,90198509,CATHERINE LODGE,"2,517.94",30/09/2019
Delivery Units,Adults and Health,Other Agencies - Third Party P,90198510,CATHERINE LODGE,"2,517.94",30/09/2019
Delivery Units,Adults and Health,Other Agencies - Third Party P,90198514,CATHERINE LODGE,"3,214.29",30/09/2019
Delivery Units,Adults and Health,Other Agencies - Third Party P,90196270,BUPA NURSING HOMES LTD - ARKLEY,"2,167.68",20/09/2019
Delivery Units,Adults and Health,Other Agencies - Third Party P,90196274,BUPA NURSING HOMES LTD - ARKLEY,"2,218.04",20/09/2019
Delivery Units,Adults and Health,Other Agencies - Third Party P,90198878,SUNRIDGE HOUSING ASSOCIATION LTD,"2,804.70",30/09/2019
Delivery Units,Adults and Health,Other Agencies - Third Party P,90198879,SUNRIDGE HOUSING ASSOCIATION LTD,"2,893.14",30/09/2019
Delivery Units,Adults and Health,Other Agencies - Third Party P,90191457,NAZARETH HOUSE,"1,762.56",03/09/2019
Delivery Units,Adults and Health,Other Agencies - Third Party P,90191458,NAZARETH HOUSE,937.23,03/09/2019
Delivery Units,Adults and Health,Other Agencies - Third Party P,90191459,NAZARETH HOUSE,"2,186.88",03/09/2019
Delivery Units,Adults and Health,Other Agencies - Third Party P,90191460,NAZARETH HOUSE,"2,186.88",03/09/2019
Delivery Units,Adults and Health,Other Agencies - Third Party P,90191461,NAZARETH HOUSE,"2,186.88",03/09/2019
Delivery Units,Adults and Health,Other Agencies - Third Party P,90191462,NAZARETH HOUSE,"2,186.88",03/09/2019
Delivery Units,Adults and Health,Other Agencies - Third Party P,90191463,NAZARETH HOUSE,"2,186.88",03/09/2019
Delivery Units,Adults and Health,Other Agencies - Third Party P,90191464,NAZARETH HOUSE,"2,350.08",03/09/2019
Delivery Units,Adults and Health,Other Agencies - Third Party P,90191465,NAZARETH HOUSE,"2,186.88",03/09/2019
Delivery Units,Adults and Health,Other Agencies - Third Party P,90191466,NAZARETH HOUSE,"2,350.08",03/09/2019
Delivery Units,Adults and Health,Other Agencies - Third Party P,90191467,NAZARETH HOUSE,"2,186.88",03/09/2019
Delivery Units,Adults and Health,Other Agencies - Third Party P,90191468,NAZARETH HOUSE,"2,186.88",03/09/2019
Delivery Units,Adults and Health,Other Agencies - Third Party P,90191469,NAZARETH HOUSE,"2,144.00",03/09/2019
Delivery Units,Adults and Health,Other Agencies - Third Party P,90191470,NAZARETH HOUSE,"2,186.88",03/09/2019
Delivery Units,Adults and Health,Other Agencies - Third Party P,90191472,NAZARETH HOUSE,"2,650.40",03/09/2019
Delivery Units,Adults and Health,Other Agencies - Third Party P,90191473,NAZARETH HOUSE,"2,186.88",03/09/2019
Delivery Units,Adults and Health,Other Agencies - Third Party P,90191474,NAZARETH HOUSE,"2,186.88",03/09/2019
Delivery Units,Adults and Health,Other Agencies - Third Party P,90191475,NAZARETH HOUSE,"2,186.88",03/09/2019
Delivery Units,Adults and Health,Other Agencies - Third Party P,90191476,NAZARETH HOUSE,"2,186.88",03/09/2019
Delivery Units,Adults and Health,Other Agencies - Third Party P,90191477,NAZARETH HOUSE,"2,350.08",03/09/2019
Delivery Units,Adults and Health,Other Agencies - Third Party P,90191478,NAZARETH HOUSE,"2,186.88",03/09/2019
Delivery Units,Adults and Health,Other Agencies - Third Party P,90191479,NAZARETH HOUSE,"2,186.88",03/09/2019
Delivery Units,Adults and Health,Other Agencies - Third Party P,90191480,NAZARETH HOUSE,"2,186.88",03/09/2019
Delivery Units,Adults and Health,Other Agencies - Third Party P,90191481,NAZARETH HOUSE,"2,186.88",03/09/2019
Delivery Units,Adults and Health,Other Agencies - Third Party P,90191482,NAZARETH HOUSE,"2,186.88",03/09/2019
Delivery Units,Adults and Health,Other Agencies - Third Party P,90191483,NAZARETH HOUSE,"2,186.88",03/09/2019
Delivery Units,Adults and Health,Other Agencies - Third Party P,90191801,FRIARY LODGE,"3,321.43",06/09/2019
Delivery Units,Adults and Health,Other Agencies - Third Party P,90191803,FRIARY LODGE,642.85,06/09/2019
Delivery Units,Adults and Health,Other Agencies - Third Party P,90196207,THE WOODSIDE HOME,"2,186.88",20/09/2019
Delivery Units,Adults and Health,Other Agencies - Third Party P,90196208,THE WOODSIDE HOME,"2,186.88",20/09/2019
Delivery Units,Adults and Health,Other Agencies - Third Party P,90196210,THE WOODSIDE HOME,"2,186.88",20/09/2019
Delivery Units,Adults and Health,Other Agencies - Third Party P,90196211,THE WOODSIDE HOME,"2,186.88",20/09/2019
Delivery Units,Adults and Health,Other Agencies - Third Party P,90193962,METHODIST HOMES FOR THE AGED,"2,631.76",17/09/2019
Delivery Units,Adults and Health,Other Agencies - Third Party P,90193993,SYDMAR LODGE,"4,971.43",17/09/2019
Delivery Units,Adults and Health,Other Agencies - Third Party P,90193994,SYDMAR LODGE,"5,137.14",17/09/2019
Delivery Units,Adults and Health,Other Agencies - Third Party P,90193995,SYDMAR LODGE,"4,971.43",17/09/2019
Delivery Units,Adults and Health,Other Agencies - Third Party P,90193996,SYDMAR LODGE,"5,137.14",17/09/2019
Delivery Units,Adults and Health,Other Agencies - Third Party P,90193997,SYDMAR LODGE,"5,137.14",17/09/2019
Delivery Units,Adults and Health,Other Agencies - Third Party P,90198516,SYDMAR LODGE,"2,389.76",30/09/2019
Delivery Units,Adults and Health,Other Agencies - Third Party P,90198518,SYDMAR LODGE,"2,425.41",30/09/2019
Delivery Units,Adults and Health,Other Agencies - Third Party P,90198520,SYDMAR LODGE,"2,425.41",30/09/2019
Delivery Units,Adults and Health,Other Agencies - Third Party P,90198521,SYDMAR LODGE,"2,214.19",30/09/2019
Delivery Units,Adults and Health,Other Agencies - Third Party P,90198537,SYDMAR LODGE,"4,971.43",30/09/2019
Delivery Units,Adults and Health,Other Agencies - Third Party P,90198531,SCIMITAR CARE HOTELS PLC,"3,857.14",30/09/2019
Delivery Units,Adults and Health,Other Agencies - Third Party P,90198532,SCIMITAR CARE HOTELS PLC,"3,642.86",30/09/2019
Delivery Units,Adults and Health,Other Agencies - Third Party P,90198533,SCIMITAR CARE HOTELS PLC,"4,071.43",30/09/2019
Delivery Units,Adults and Health,Other Agencies - Third Party P,90198874,MEERA NURSING HOME LIMITED,"3,428.57",30/09/2019
Delivery Units,Adults and Health,Other Agencies - Third Party P,90192629,BUPA CARE HOMES,"2,589.03",11/09/2019
Delivery Units,Adults and Health,Other Agencies - Third Party P,90192631,BUPA CARE HOMES,"1,657.47",11/09/2019
Delivery Units,Adults and Health,Other Agencies - Third Party P,90198570,BUPA CARE HOMES,"2,464.59",30/09/2019
Delivery Units,Adults and Health,Other Agencies - Third Party P,90196231,ANASTASIA LODGE,"2,800.00",20/09/2019
Delivery Units,Adults and Health,Other Agencies - Third Party P,90196237,ANASTASIA LODGE,"3,600.00",20/09/2019
Delivery Units,Adults and Health,Other Agencies - Third Party P,90191883,HILTON LODGE LTD.,"2,880.00",10/09/2019
Delivery Units,Adults and Health,Other Agencies - Third Party P,90198494,VENTRY RESIDENTIAL CARE LTD,"3,100.00",26/09/2019
Delivery Units,Adults and Health,Other Agencies - Third Party P,90198495,VENTRY RESIDENTIAL CARE LTD,"2,601.87",26/09/2019
Delivery Units,Adults and Health,Other Agencies - Third Party P,90193017,B & M CARE,"2,468.57",10/09/2019
Delivery Units,Adults and Health,Other Agencies - Third Party P,90193018,B & M CARE,"2,550.86",10/09/2019
Delivery Units,Adults and Health,Other Agencies - Third Party P,90193019,B & M CARE,"2,550.86",10/09/2019
Delivery Units,Adults and Health,Other Agencies - Third Party P,90198535,B & M CARE,"2,176.89",30/09/2019
Delivery Units,Adults and Health,Other Agencies - Third Party P,90198580,B & M CARE,"2,468.57",30/09/2019
Delivery Units,Adults and Health,Other Agencies - Third Party P,90191887,SAGE NURSING HOME,"2,657.14",09/09/2019
Delivery Units,Adults and Health,Other Agencies - Third Party P,90191890,SAGE NURSING HOME,"2,679.29",09/09/2019
Delivery Units,Adults and Health,Other Agencies - Third Party P,90191892,SAGE NURSING HOME,"2,421.19",09/09/2019
Delivery Units,Adults and Health,Other Agencies - Third Party P,90198454,EASTSIDE HOUSE RESIDENTIAL CARE HOM,"3,500.00",24/09/2019
Delivery Units,Adults and Health,Other Agencies - Third Party P,90198575,APPLE TREE COURT CARE HOME,"3,642.86",30/09/2019
Delivery Units,Adults and Health,Other Agencies - Third Party P,90198577,APPLE TREE COURT CARE HOME,"3,642.86",30/09/2019
Delivery Units,Adults and Health,Other Agencies - Third Party P,90198869,R.M.B.I,"2,263.98",27/09/2019
Delivery Units,Adults and Health,Other Agencies - Third Party P,90198542,ASHFIELDS RESIDENTIAL CARE HOME,"2,421.19",30/09/2019
Delivery Units,Adults and Health,Other Agencies - Third Party P,90198543,ASHFIELDS RESIDENTIAL CARE HOME,"2,601.87",30/09/2019
Delivery Units,Adults and Health,Other Agencies - Third Party P,90196229,AUTUMN GARDENS,"3,560.00",20/09/2019
Delivery Units,Adults and Health,Other Agencies - Third Party P,90196230,AUTUMN GARDENS,"3,160.00",20/09/2019
Delivery Units,Adults and Health,Other Agencies - Third Party P,90196233,AUTUMN GARDENS,"2,880.00",20/09/2019
Delivery Units,Adults and Health,Other Agencies - Third Party P,90198751,ABBEY RAVENSCROFT PARK NURSING HOME,"3,214.29",30/09/2019
Delivery Units,Adults and Health,Other Agencies - Third Party P,90198752,ABBEY RAVENSCROFT PARK NURSING HOME,"3,214.29",30/09/2019
Delivery Units,Adults and Health,Other Agencies - Third Party P,90198854,CARLTON COURT (TLC GROUP),"2,176.89",30/09/2019
Delivery Units,Adults and Health,Other Agencies - Third Party P,90193973,ASHTON LODGE CARE CENTRE,-799.76,30/09/2019
Delivery Units,Adults and Health,Other Agencies - Third Party P,90195984,THE BARNETGROUP LIMITED,"2,144.00",20/09/2019
Delivery Units,Adults and Health,Other Agencies - Third Party P,90195985,THE BARNETGROUP LIMITED,"2,144.00",20/09/2019
Delivery Units,Adults and Health,Other Agencies - Third Party P,90195986,THE BARNETGROUP LIMITED,"2,304.00",20/09/2019
Delivery Units,Adults and Health,Other Agencies - Third Party P,90195987,THE BARNETGROUP LIMITED,"2,144.00",20/09/2019
Delivery Units,Adults and Health,Other Agencies - Third Party P,90195988,THE BARNETGROUP LIMITED,"2,304.00",20/09/2019
Delivery Units,Adults and Health,Other Agencies - Third Party P,90195989,THE BARNETGROUP LIMITED,"2,144.00",20/09/2019
Delivery Units,Adults and Health,Other Agencies - Third Party P,90195990,THE BARNETGROUP LIMITED,"2,144.00",20/09/2019
Delivery Units,Adults and Health,Other Agencies - Third Party P,90195991,THE BARNETGROUP LIMITED,"2,144.00",20/09/2019
Delivery Units,Adults and Health,Other Agencies - Third Party P,90195992,THE BARNETGROUP LIMITED,"2,144.00",20/09/2019
Delivery Units,Adults and Health,Other Agencies - Third Party P,90195993,THE BARNETGROUP LIMITED,"2,144.00",20/09/2019
Delivery Units,Adults and Health,Other Agencies - Third Party P,90195994,THE BARNETGROUP LIMITED,"2,144.00",20/09/2019
Delivery Units,Adults and Health,Other Agencies - Third Party P,90195995,THE BARNETGROUP LIMITED,"2,304.00",20/09/2019
Delivery Units,Adults and Health,Other Agencies - Third Party P,90195996,THE BARNETGROUP LIMITED,"2,304.00",20/09/2019
Delivery Units,Adults and Health,Other Agencies - Third Party P,90195997,THE BARNETGROUP LIMITED,"2,144.00",20/09/2019
Delivery Units,Adults and Health,Other Agencies - Third Party P,90195998,THE BARNETGROUP LIMITED,229.71,20/09/2019
Delivery Units,Adults and Health,Other Agencies - Third Party P,90195999,THE BARNETGROUP LIMITED,"2,304.00",20/09/2019
Delivery Units,Adults and Health,Other Agencies - Third Party P,90196000,THE BARNETGROUP LIMITED,"2,304.00",20/09/2019
Delivery Units,Adults and Health,Other Agencies - Third Party P,90196001,THE BARNETGROUP LIMITED,"2,694.00",20/09/2019
Delivery Units,Adults and Health,Other Agencies - Third Party P,90196002,THE BARNETGROUP LIMITED,0.04,20/09/2019
Delivery Units,Adults and Health,Other Agencies - Third Party P,90196003,THE BARNETGROUP LIMITED,"2,144.00",20/09/2019
Delivery Units,Adults and Health,Other Agencies - Third Party P,90196004,THE BARNETGROUP LIMITED,"2,144.00",20/09/2019
Delivery Units,Adults and Health,Other Agencies - Third Party P,90196005,THE BARNETGROUP LIMITED,"2,144.00",20/09/2019
Delivery Units,Adults and Health,Other Agencies - Third Party P,90196006,THE BARNETGROUP LIMITED,"2,304.00",20/09/2019
Delivery Units,Adults and Health,Other Agencies - Third Party P,90196007,THE BARNETGROUP LIMITED,"2,304.00",20/09/2019
Delivery Units,Adults and Health,Other Agencies - Third Party P,90196008,THE BARNETGROUP LIMITED,"2,144.00",20/09/2019
Delivery Units,Adults and Health,Other Agencies - Third Party P,90196009,THE BARNETGROUP LIMITED,"2,144.00",20/09/2019
Delivery Units,Adults and Health,Other Agencies - Third Party P,90196010,THE BARNETGROUP LIMITED,"2,304.00",20/09/2019
Delivery Units,Adults and Health,Other Agencies - Third Party P,90196012,THE BARNETGROUP LIMITED,"2,304.00",20/09/2019
Delivery Units,Adults and Health,Other Agencies - Third Party P,90196013,THE BARNETGROUP LIMITED,"2,304.00",20/09/2019
Delivery Units,Adults and Health,Other Agencies - Third Party P,90196014,THE BARNETGROUP LIMITED,"2,304.00",20/09/2019
Delivery Units,Adults and Health,Other Agencies - Third Party P,90196015,THE BARNETGROUP LIMITED,"2,144.00",20/09/2019
Delivery Units,Adults and Health,Other Agencies - Third Party P,90196016,THE BARNETGROUP LIMITED,"2,304.00",20/09/2019
Delivery Units,Adults and Health,Other Agencies - Third Party P,90196017,THE BARNETGROUP LIMITED,"2,144.00",20/09/2019
Delivery Units,Adults and Health,Other Agencies - Third Party P,90196019,THE BARNETGROUP LIMITED,"2,144.00",20/09/2019
Delivery Units,Adults and Health,Other Agencies - Third Party P,90196020,THE BARNETGROUP LIMITED,"2,144.00",20/09/2019
Delivery Units,Adults and Health,Other Agencies - Third Party P,90196022,THE BARNETGROUP LIMITED,"2,304.00",20/09/2019
Delivery Units,Adults and Health,Other Agencies - Third Party P,90196024,THE BARNETGROUP LIMITED,"2,144.00",20/09/2019
Delivery Units,Adults and Health,Other Agencies - Third Party P,90196025,THE BARNETGROUP LIMITED,"2,144.00",20/09/2019
Delivery Units,Adults and Health,Other Agencies - Third Party P,90196026,THE BARNETGROUP LIMITED,"2,144.00",20/09/2019
Delivery Units,Adults and Health,Other Agencies - Third Party P,90196027,THE BARNETGROUP LIMITED,"2,144.00",20/09/2019
Delivery Units,Adults and Health,Other Agencies - Third Party P,90196029,THE BARNETGROUP LIMITED,"2,144.00",20/09/2019
Delivery Units,Adults and Health,Other Agencies - Third Party P,90196030,THE BARNETGROUP LIMITED,"2,304.00",20/09/2019
Delivery Units,Adults and Health,Other Agencies - Third Party P,90196031,THE BARNETGROUP LIMITED,"2,144.00",20/09/2019
Delivery Units,Adults and Health,Other Agencies - Third Party P,90196032,THE BARNETGROUP LIMITED,"2,144.00",20/09/2019
Delivery Units,Adults and Health,Other Agencies - Third Party P,90196033,THE BARNETGROUP LIMITED,"2,144.00",20/09/2019
Delivery Units,Adults and Health,Other Agencies - Third Party P,90196035,THE BARNETGROUP LIMITED,"4,080.00",20/09/2019
Delivery Units,Adults and Health,Other Agencies - Third Party P,90196036,THE BARNETGROUP LIMITED,"2,304.00",20/09/2019
Delivery Units,Adults and Health,Other Agencies - Third Party P,90196039,THE BARNETGROUP LIMITED,"2,144.00",20/09/2019
Delivery Units,Adults and Health,Other Agencies - Third Party P,90196040,THE BARNETGROUP LIMITED,"2,144.00",20/09/2019
Delivery Units,Adults and Health,Other Agencies - Third Party P,90196041,THE BARNETGROUP LIMITED,"2,304.00",20/09/2019
Delivery Units,Adults and Health,Other Agencies - Third Party P,90196042,THE BARNETGROUP LIMITED,"2,304.00",20/09/2019
Delivery Units,Adults and Health,Other Agencies - Third Party P,90196043,THE BARNETGROUP LIMITED,"2,304.00",20/09/2019
Delivery Units,Adults and Health,Other Agencies - Third Party P,90196044,THE BARNETGROUP LIMITED,"2,144.00",20/09/2019
Delivery Units,Adults and Health,Other Agencies - Third Party P,90196045,THE BARNETGROUP LIMITED,"2,304.00",20/09/2019
Delivery Units,Adults and Health,Other Agencies - Third Party P,90196046,THE BARNETGROUP LIMITED,"2,304.00",20/09/2019
Delivery Units,Adults and Health,Other Agencies - Third Party P,90196047,THE BARNETGROUP LIMITED,"3,567.52",20/09/2019
Delivery Units,Adults and Health,Other Agencies - Third Party P,90196049,THE BARNETGROUP LIMITED,0.04,20/09/2019
Delivery Units,Adults and Health,Other Agencies - Third Party P,90196050,THE BARNETGROUP LIMITED,"2,304.00",20/09/2019
Delivery Units,Adults and Health,Other Agencies - Third Party P,90196051,THE BARNETGROUP LIMITED,"2,304.00",20/09/2019
Delivery Units,Adults and Health,Other Agencies - Third Party P,90196053,THE BARNETGROUP LIMITED,"2,304.00",20/09/2019
Delivery Units,Adults and Health,Other Agencies - Third Party P,90196054,THE BARNETGROUP LIMITED,"2,304.00",20/09/2019
Delivery Units,Adults and Health,Other Agencies - Third Party P,90196055,THE BARNETGROUP LIMITED,"2,304.00",20/09/2019
Delivery Units,Adults and Health,Other Agencies - Third Party P,90196056,THE BARNETGROUP LIMITED,"2,304.00",20/09/2019
Delivery Units,Adults and Health,Other Agencies - Third Party P,90196057,THE BARNETGROUP LIMITED,"2,304.00",20/09/2019
Delivery Units,Adults and Health,Other Agencies - Third Party P,90196058,THE BARNETGROUP LIMITED,"2,304.00",20/09/2019
Delivery Units,Adults and Health,Other Agencies - Third Party P,90196059,THE BARNETGROUP LIMITED,"2,144.00",20/09/2019
Delivery Units,Adults and Health,Other Agencies - Third Party P,90196060,THE BARNETGROUP LIMITED,"2,144.00",20/09/2019
Delivery Units,Adults and Health,Other Agencies - Third Party P,90196061,THE BARNETGROUP LIMITED,"2,144.00",20/09/2019
Delivery Units,Adults and Health,Other Agencies - Third Party P,90196062,THE BARNETGROUP LIMITED,"2,304.00",20/09/2019
Delivery Units,Adults and Health,Other Agencies - Third Party P,90196063,THE BARNETGROUP LIMITED,"2,144.00",20/09/2019
Delivery Units,Adults and Health,Other Agencies - Third Party P,90196064,THE BARNETGROUP LIMITED,"2,304.00",20/09/2019
Delivery Units,Adults and Health,Other Agencies - Third Party P,90196066,THE BARNETGROUP LIMITED,"3,000.00",20/09/2019
Delivery Units,Adults and Health,Other Agencies - Third Party P,90196067,THE BARNETGROUP LIMITED,0.04,20/09/2019
Delivery Units,Adults and Health,Other Agencies - Third Party P,90196068,THE BARNETGROUP LIMITED,"2,304.00",20/09/2019
Delivery Units,Adults and Health,Other Agencies - Third Party P,90196069,THE BARNETGROUP LIMITED,"2,144.00",20/09/2019
Delivery Units,Adults and Health,Other Agencies - Third Party P,90196072,THE BARNETGROUP LIMITED,"2,304.00",20/09/2019
Delivery Units,Adults and Health,Other Agencies - Third Party P,90196073,THE BARNETGROUP LIMITED,"2,304.00",20/09/2019
Delivery Units,Adults and Health,Other Agencies - Third Party P,90196074,THE BARNETGROUP LIMITED,"2,144.00",20/09/2019
Delivery Units,Adults and Health,Other Agencies - Third Party P,90196075,THE BARNETGROUP LIMITED,"2,304.00",20/09/2019
Delivery Units,Adults and Health,Other Agencies - Third Party P,90196076,THE BARNETGROUP LIMITED,"2,144.00",20/09/2019
Delivery Units,Adults and Health,Other Agencies - Third Party P,90196077,THE BARNETGROUP LIMITED,"2,144.00",20/09/2019
Delivery Units,Adults and Health,Other Agencies - Third Party P,90196078,THE BARNETGROUP LIMITED,"2,144.00",20/09/2019
Delivery Units,Adults and Health,Other Agencies - Third Party P,90196079,THE BARNETGROUP LIMITED,"2,144.00",20/09/2019
Delivery Units,Adults and Health,Other Agencies - Third Party P,90196081,THE BARNETGROUP LIMITED,"4,062.40",20/09/2019
Delivery Units,Adults and Health,Other Agencies - Third Party P,90196082,THE BARNETGROUP LIMITED,"39,071.85",20/09/2019
Delivery Units,Adults and Health,Other Agencies - Third Party P,90196300,THE BARNETGROUP LIMITED,"2,304.00",20/09/2019
Delivery Units,Adults and Health,Other Agencies - Third Party P,90196303,THE BARNETGROUP LIMITED,"2,221.71",20/09/2019
Delivery Units,Adults and Health,Other Agencies - Third Party P,90196304,THE BARNETGROUP LIMITED,"2,144.00",20/09/2019
Delivery Units,Adults and Health,Other Agencies - Third Party P,90196305,THE BARNETGROUP LIMITED,"2,144.00",20/09/2019
Delivery Units,Adults and Health,Other Agencies - Third Party P,90196306,THE BARNETGROUP LIMITED,"2,304.00",20/09/2019
Delivery Units,Adults and Health,Other Agencies - Third Party P,90196307,THE BARNETGROUP LIMITED,"2,304.00",20/09/2019
Delivery Units,Adults and Health,Other Agencies - Third Party P,90196308,THE BARNETGROUP LIMITED,"2,304.00",20/09/2019
Delivery Units,Adults and Health,Other Agencies - Third Party P,90196309,THE BARNETGROUP LIMITED,"2,144.00",20/09/2019
Delivery Units,Adults and Health,Other Agencies - Third Party P,90196310,THE BARNETGROUP LIMITED,"2,304.00",20/09/2019
Delivery Units,Adults and Health,Other Agencies - Third Party P,90196311,THE BARNETGROUP LIMITED,"2,304.00",20/09/2019
Delivery Units,Adults and Health,Other Agencies - Third Party P,90196312,THE BARNETGROUP LIMITED,"3,567.52",20/09/2019
Delivery Units,Adults and Health,Other Agencies - Third Party P,90196314,THE BARNETGROUP LIMITED,0.04,20/09/2019
Delivery Units,Adults and Health,Other Agencies - Third Party P,90196315,THE BARNETGROUP LIMITED,"2,304.00",20/09/2019
Delivery Units,Adults and Health,Other Agencies - Third Party P,90196316,THE BARNETGROUP LIMITED,"2,144.00",20/09/2019
Delivery Units,Adults and Health,Other Agencies - Third Party P,90196319,THE BARNETGROUP LIMITED,"2,304.00",20/09/2019
Delivery Units,Adults and Health,Other Agencies - Third Party P,90196320,THE BARNETGROUP LIMITED,"2,304.00",20/09/2019
Delivery Units,Adults and Health,Other Agencies - Third Party P,90196321,THE BARNETGROUP LIMITED,"2,144.00",20/09/2019
Delivery Units,Adults and Health,Other Agencies - Third Party P,90196322,THE BARNETGROUP LIMITED,"2,304.00",20/09/2019
Delivery Units,Adults and Health,Other Agencies - Third Party P,90196323,THE BARNETGROUP LIMITED,"2,144.00",20/09/2019
Delivery Units,Adults and Health,Other Agencies - Third Party P,90196324,THE BARNETGROUP LIMITED,"2,144.00",20/09/2019
Delivery Units,Adults and Health,Other Agencies - Third Party P,90196325,THE BARNETGROUP LIMITED,"2,144.00",20/09/2019
Delivery Units,Adults and Health,Other Agencies - Third Party P,90196326,THE BARNETGROUP LIMITED,"2,144.00",20/09/2019
Delivery Units,Adults and Health,Other Agencies - Third Party P,90196327,THE BARNETGROUP LIMITED,76.57,20/09/2019
Delivery Units,Adults and Health,Other Agencies - Third Party P,90196329,THE BARNETGROUP LIMITED,"4,062.40",20/09/2019
Delivery Units,Adults and Health,Other Agencies - Third Party P,90196330,THE BARNETGROUP LIMITED,"2,144.00",20/09/2019
Delivery Units,Adults and Health,Other Agencies - Third Party P,90196331,THE BARNETGROUP LIMITED,"2,144.00",20/09/2019
Delivery Units,Adults and Health,Other Agencies - Third Party P,90196332,THE BARNETGROUP LIMITED,"2,304.00",20/09/2019
Delivery Units,Adults and Health,Other Agencies - Third Party P,90196333,THE BARNETGROUP LIMITED,"2,144.00",20/09/2019
Delivery Units,Adults and Health,Other Agencies - Third Party P,90196334,THE BARNETGROUP LIMITED,"2,304.00",20/09/2019
Delivery Units,Adults and Health,Other Agencies - Third Party P,90196335,THE BARNETGROUP LIMITED,"2,144.00",20/09/2019
Delivery Units,Adults and Health,Other Agencies - Third Party P,90196336,THE BARNETGROUP LIMITED,"2,144.00",20/09/2019
Delivery Units,Adults and Health,Other Agencies - Third Party P,90196337,THE BARNETGROUP LIMITED,"2,144.00",20/09/2019
Delivery Units,Adults and Health,Other Agencies - Third Party P,90196338,THE BARNETGROUP LIMITED,"2,144.00",20/09/2019
Delivery Units,Adults and Health,Other Agencies - Third Party P,90196339,THE BARNETGROUP LIMITED,"2,144.00",20/09/2019
Delivery Units,Adults and Health,Other Agencies - Third Party P,90196340,THE BARNETGROUP LIMITED,"2,144.00",20/09/2019
Delivery Units,Adults and Health,Other Agencies - Third Party P,90196341,THE BARNETGROUP LIMITED,"2,304.00",20/09/2019
Delivery Units,Adults and Health,Other Agencies - Third Party P,90196342,THE BARNETGROUP LIMITED,"2,304.00",20/09/2019
Delivery Units,Adults and Health,Other Agencies - Third Party P,90196343,THE BARNETGROUP LIMITED,"2,144.00",20/09/2019
Delivery Units,Adults and Health,Other Agencies - Third Party P,90196344,THE BARNETGROUP LIMITED,"2,144.00",20/09/2019
Delivery Units,Adults and Health,Other Agencies - Third Party P,90196345,THE BARNETGROUP LIMITED,"2,304.00",20/09/2019
Delivery Units,Adults and Health,Other Agencies - Third Party P,90196346,THE BARNETGROUP LIMITED,"2,304.00",20/09/2019
Delivery Units,Adults and Health,Other Agencies - Third Party P,90196347,THE BARNETGROUP LIMITED,"2,694.00",20/09/2019
Delivery Units,Adults and Health,Other Agencies - Third Party P,90196348,THE BARNETGROUP LIMITED,0.04,20/09/2019
Delivery Units,Adults and Health,Other Agencies - Third Party P,90196349,THE BARNETGROUP LIMITED,"2,144.00",20/09/2019
Delivery Units,Adults and Health,Other Agencies - Third Party P,90196350,THE BARNETGROUP LIMITED,"2,144.00",20/09/2019
Delivery Units,Adults and Health,Other Agencies - Third Party P,90196351,THE BARNETGROUP LIMITED,"2,144.00",20/09/2019
Delivery Units,Adults and Health,Other Agencies - Third Party P,90196352,THE BARNETGROUP LIMITED,"2,304.00",20/09/2019
Delivery Units,Adults and Health,Other Agencies - Third Party P,90196353,THE BARNETGROUP LIMITED,"2,304.00",20/09/2019
Delivery Units,Adults and Health,Other Agencies - Third Party P,90196354,THE BARNETGROUP LIMITED,"2,144.00",20/09/2019
Delivery Units,Adults and Health,Other Agencies - Third Party P,90196355,THE BARNETGROUP LIMITED,"2,144.00",20/09/2019
Delivery Units,Adults and Health,Other Agencies - Third Party P,90196356,THE BARNETGROUP LIMITED,"1,531.43",20/09/2019
Delivery Units,Adults and Health,Other Agencies - Third Party P,90196357,THE BARNETGROUP LIMITED,"2,304.00",20/09/2019
Delivery Units,Adults and Health,Other Agencies - Third Party P,90196359,THE BARNETGROUP LIMITED,"2,304.00",20/09/2019
Delivery Units,Adults and Health,Other Agencies - Third Party P,90196360,THE BARNETGROUP LIMITED,"2,304.00",20/09/2019
Delivery Units,Adults and Health,Other Agencies - Third Party P,90196361,THE BARNETGROUP LIMITED,"2,304.00",20/09/2019
Delivery Units,Adults and Health,Other Agencies - Third Party P,90196362,THE BARNETGROUP LIMITED,"2,144.00",20/09/2019
Delivery Units,Adults and Health,Other Agencies - Third Party P,90196363,THE BARNETGROUP LIMITED,"2,304.00",20/09/2019
Delivery Units,Adults and Health,Other Agencies - Third Party P,90196364,THE BARNETGROUP LIMITED,"2,144.00",20/09/2019
Delivery Units,Adults and Health,Other Agencies - Third Party P,90196366,THE BARNETGROUP LIMITED,"2,144.00",20/09/2019
Delivery Units,Adults and Health,Other Agencies - Third Party P,90196367,THE BARNETGROUP LIMITED,"2,144.00",20/09/2019
Delivery Units,Adults and Health,Other Agencies - Third Party P,90196369,THE BARNETGROUP LIMITED,"2,304.00",20/09/2019
Delivery Units,Adults and Health,Other Agencies - Third Party P,90196371,THE BARNETGROUP LIMITED,"2,144.00",20/09/2019
Delivery Units,Adults and Health,Other Agencies - Third Party P,90196372,THE BARNETGROUP LIMITED,"2,144.00",20/09/2019
Delivery Units,Adults and Health,Other Agencies - Third Party P,90196373,THE BARNETGROUP LIMITED,"2,144.00",20/09/2019
Delivery Units,Adults and Health,Other Agencies - Third Party P,90196374,THE BARNETGROUP LIMITED,"2,144.00",20/09/2019
Delivery Units,Adults and Health,Other Agencies - Third Party P,90196376,THE BARNETGROUP LIMITED,"2,144.00",20/09/2019
Delivery Units,Adults and Health,Other Agencies - Third Party P,90196377,THE BARNETGROUP LIMITED,689.14,20/09/2019
Delivery Units,Adults and Health,Other Agencies - Third Party P,90196378,THE BARNETGROUP LIMITED,"2,304.00",20/09/2019
Delivery Units,Adults and Health,Other Agencies - Third Party P,90196379,THE BARNETGROUP LIMITED,"2,144.00",20/09/2019
Delivery Units,Adults and Health,Other Agencies - Third Party P,90196380,THE BARNETGROUP LIMITED,"2,144.00",20/09/2019
Delivery Units,Adults and Health,Other Agencies - Third Party P,90196381,THE BARNETGROUP LIMITED,"2,144.00",20/09/2019
Delivery Units,Adults and Health,Other Agencies - Third Party P,90196383,THE BARNETGROUP LIMITED,"4,080.00",20/09/2019
Delivery Units,Adults and Health,Other Agencies - Third Party P,90196384,THE BARNETGROUP LIMITED,"2,304.00",20/09/2019
Delivery Units,Adults and Health,Other Agencies - Third Party P,90196385,THE BARNETGROUP LIMITED,"2,304.00",20/09/2019
Delivery Units,Adults and Health,Other Agencies - Third Party P,90196387,THE BARNETGROUP LIMITED,"2,304.00",20/09/2019
Delivery Units,Adults and Health,Other Agencies - Third Party P,90196388,THE BARNETGROUP LIMITED,"2,304.00",20/09/2019
Delivery Units,Adults and Health,Other Agencies - Third Party P,90196389,THE BARNETGROUP LIMITED,"2,304.00",20/09/2019
Delivery Units,Adults and Health,Other Agencies - Third Party P,90196390,THE BARNETGROUP LIMITED,"2,304.00",20/09/2019
Delivery Units,Adults and Health,Other Agencies - Third Party P,90196391,THE BARNETGROUP LIMITED,"2,304.00",20/09/2019
Delivery Units,Adults and Health,Other Agencies - Third Party P,90196392,THE BARNETGROUP LIMITED,"2,304.00",20/09/2019
Delivery Units,Adults and Health,Other Agencies - Third Party P,90196393,THE BARNETGROUP LIMITED,"2,144.00",20/09/2019
Delivery Units,Adults and Health,Other Agencies - Third Party P,90196394,THE BARNETGROUP LIMITED,"2,144.00",20/09/2019
Delivery Units,Adults and Health,Other Agencies - Third Party P,90196395,THE BARNETGROUP LIMITED,"2,144.00",20/09/2019
Delivery Units,Adults and Health,Other Agencies - Third Party P,90196396,THE BARNETGROUP LIMITED,"2,304.00",20/09/2019
Delivery Units,Adults and Health,Other Agencies - Third Party P,90196397,THE BARNETGROUP LIMITED,"2,144.00",20/09/2019
Delivery Units,Adults and Health,Other Agencies - Third Party P,90196398,THE BARNETGROUP LIMITED,"2,304.00",20/09/2019
Delivery Units,Adults and Health,Other Agencies - Third Party P,90196400,THE BARNETGROUP LIMITED,"3,000.00",20/09/2019
Delivery Units,Adults and Health,Other Agencies - Third Party P,90196401,THE BARNETGROUP LIMITED,0.04,20/09/2019
Delivery Units,Adults and Health,Other Agencies - Third Party P,90196402,THE BARNETGROUP LIMITED,"32,638.71",20/09/2019
Delivery Units,Adults and Health,Other Agencies - Third Party P,90198870,BELMONT LODGE CARE CENTRE,"2,340.04",30/09/2019
Delivery Units,Adults and Health,Other Agencies - Third Party P,90193500,ALEXANDRA HOUSE (RUNWOOD HOMES),"2,262.69",13/09/2019
Delivery Units,Adults and Health,Other Agencies - Third Party P,90193011,THE WINDMILL CARE HOME,"1,872.40",10/09/2019
Delivery Units,Adults and Health,Other Agencies - Third Party P,90198804,GCH (HERTFORDSHIRE) LTD T/A,"2,414.68",30/09/2019
Delivery Units,Adults and Health,Other Agencies - Third Party P,90193012,YORK HOMES (DORSET) LTD,557.14,10/09/2019
Delivery Units,Adults and Health,Other Agencies - Third Party P,90198442,GCH (NORTH LONDON) T/A THE TUDORS,"2,300.00",25/09/2019
Delivery Units,Adults and Health,Other Agencies - Third Party P,90198888,WILTON HOUSE LTD,"2,527.24",30/09/2019
Delivery Units,Adults and Health,Other Agencies - Third Party P,90198889,WILTON HOUSE LTD,"2,536.46",30/09/2019
Delivery Units,Adults and Health,Other Agencies - Third Party P,90186365,SOUTH COAST CARE HOMES LTD,"2,568.57",04/09/2019
Delivery Units,Adults and Health,Other Agencies - Third Party P,90198530,SOUTH COAST CARE HOMES LTD,"2,485.71",30/09/2019
Delivery Units,Adults and Health,Other Agencies - Third Party P,90198933,AMRON PREMIER CARE,"2,533.97",30/09/2019
Delivery Units,Adults and Health,Other Agencies - Third Party P,90198822,WORDSWORTH HOUSE CARE HOME,"2,571.43",30/09/2019
Delivery Units,Adults and Health,Other Agencies - Third Party P,90198823,WORDSWORTH HOUSE CARE HOME,"2,571.43",30/09/2019
Delivery Units,Adults and Health,Other Agencies - Third Party P,90198876,COUNTRY COURT CARE HOMES T/A LYLE HOUSE,"3,642.86",30/09/2019
Delivery Units,Adults and Health,Other Agencies - Third Party P,90198475,JACKSON CARE LIMITED,"5,142.86",26/09/2019
Delivery Units,Adults and Health,Other Agencies - Third Party P,90198294,DR FRENCH MEMORIAL HOME LTD,"3,535.71",24/09/2019
Delivery Units,Adults and Health,Other Agencies - Third Party P,90198295,DR FRENCH MEMORIAL HOME LTD,471.43,24/09/2019
Delivery Units,Adults and Health,Other Agencies - Third Party P,90198296,DR FRENCH MEMORIAL HOME LTD,"3,653.57",24/09/2019
Delivery Units,Adults and Health,Other Agencies - Third Party P,90198297,DR FRENCH MEMORIAL HOME LTD,"3,535.72",24/09/2019
Delivery Units,Adults and Health,Other Agencies - Third Party P,90198298,DR FRENCH MEMORIAL HOME LTD,"3,653.57",24/09/2019
Delivery Units,Adults and Health,Other Agencies - Third Party P,90198299,DR FRENCH MEMORIAL HOME LTD,"3,653.57",24/09/2019
Delivery Units,Adults and Health,Other Agencies - Third Party P,90198300,DR FRENCH MEMORIAL HOME LTD,242.86,24/09/2019
Delivery Units,Adults and Health,Other Agencies - Third Party P,90198301,DR FRENCH MEMORIAL HOME LTD,"3,764.29",24/09/2019
Delivery Units,Adults and Health,Other Agencies - Third Party P,90198302,DR FRENCH MEMORIAL HOME LTD,"3,642.86",24/09/2019
Delivery Units,Adults and Health,Other Agencies - Third Party P,90198303,DR FRENCH MEMORIAL HOME LTD,"3,764.29",24/09/2019
Delivery Units,Adults and Health,Other Agencies - Third Party P,90198304,DR FRENCH MEMORIAL HOME LTD,"3,764.29",24/09/2019
Delivery Units,Adults and Health,Other Agencies - Third Party P,90198305,DR FRENCH MEMORIAL HOME LTD,"3,542.86",26/09/2019
Delivery Units,Adults and Health,Other Agencies - Third Party P,90198306,DR FRENCH MEMORIAL HOME LTD,"3,542.86",26/09/2019
Delivery Units,Adults and Health,Other Agencies - Third Party P,90198307,DR FRENCH MEMORIAL HOME LTD,"3,542.86",26/09/2019
Delivery Units,Adults and Health,Other Agencies - Third Party P,90198308,DR FRENCH MEMORIAL HOME LTD,"2,601.88",26/09/2019
Delivery Units,Adults and Health,Other Agencies - Third Party P,90198309,DR FRENCH MEMORIAL HOME LTD,"3,542.86",26/09/2019
Delivery Units,Adults and Health,Other Agencies - Third Party P,90198310,DR FRENCH MEMORIAL HOME LTD,"3,542.86",26/09/2019
Delivery Units,Adults and Health,Other Agencies - Third Party P,90198311,DR FRENCH MEMORIAL HOME LTD,"3,542.86",26/09/2019
Delivery Units,Adults and Health,Other Agencies - Third Party P,90198312,DR FRENCH MEMORIAL HOME LTD,"2,601.88",26/09/2019
Delivery Units,Adults and Health,Other Agencies - Third Party P,90198316,DR FRENCH MEMORIAL HOME LTD,"2,064.29",26/09/2019
Delivery Units,Adults and Health,Other Agencies - Third Party P,90198317,DR FRENCH MEMORIAL HOME LTD,"2,428.57",26/09/2019
Delivery Units,Adults and Health,Other Agencies - Third Party P,90198318,DR FRENCH MEMORIAL HOME LTD,"3,764.29",26/09/2019
Delivery Units,Adults and Health,Other Agencies - Third Party P,90198319,DR FRENCH MEMORIAL HOME LTD,"3,764.29",26/09/2019
Delivery Units,Adults and Health,Other Agencies - Third Party P,90198320,DR FRENCH MEMORIAL HOME LTD,353.57,26/09/2019
Delivery Units,Adults and Health,Other Agencies - Third Party P,90198321,DR FRENCH MEMORIAL HOME LTD,"1,060.71",26/09/2019
Delivery Units,Adults and Health,Other Agencies - Third Party P,90198322,DR FRENCH MEMORIAL HOME LTD,"3,535.72",26/09/2019
Delivery Units,Adults and Health,Other Agencies - Third Party P,90198323,DR FRENCH MEMORIAL HOME LTD,"1,650.00",26/09/2019
Delivery Units,Adults and Health,Other Agencies - Third Party P,90198324,DR FRENCH MEMORIAL HOME LTD,"2,357.14",26/09/2019
Delivery Units,Adults and Health,Other Agencies - Third Party P,90198325,DR FRENCH MEMORIAL HOME LTD,"1,414.29",26/09/2019
Delivery Units,Adults and Health,Other Agencies - Third Party P,90198326,DR FRENCH MEMORIAL HOME LTD,"3,653.57",26/09/2019
Delivery Units,Adults and Health,Other Agencies - Third Party P,90198456,DR FRENCH MEMORIAL HOME LTD,471.43,26/09/2019
Delivery Units,Adults and Health,Other Agencies - Third Party P,90198811,DR FRENCH MEMORIAL HOME LTD,"3,642.86",30/09/2019
Delivery Units,Adults and Health,Other Agencies - Third Party P,90198923,DR FRENCH MEMORIAL HOME LTD,"3,535.72",30/09/2019
Delivery Units,Adults and Health,Other Agencies - Third Party P,90198924,DR FRENCH MEMORIAL HOME LTD,"3,428.57",30/09/2019
Delivery Units,Adults and Health,Other Agencies - Third Party P,90198925,DR FRENCH MEMORIAL HOME LTD,"3,428.57",30/09/2019
Delivery Units,Adults and Health,Other Agencies - Third Party P,90198926,DR FRENCH MEMORIAL HOME LTD,"3,428.57",30/09/2019
Delivery Units,Adults and Health,Other Agencies - Third Party P,90198927,DR FRENCH MEMORIAL HOME LTD,"2,517.94",30/09/2019
Delivery Units,Adults and Health,Other Agencies - Third Party P,90198931,DR FRENCH MEMORIAL HOME LTD,"3,642.86",30/09/2019
Delivery Units,Adults and Health,Other Agencies - Third Party P,90198932,DR FRENCH MEMORIAL HOME LTD,"3,642.86",30/09/2019
Delivery Units,Adults and Health,Other Agencies - Third Party P,90196269,CEDARS NURSING HOME,"4,428.57",20/09/2019
Delivery Units,Adults and Health,Other Agencies - Third Party P,90191896,GREEN TREES,"3,410.00",05/09/2019
Delivery Units,Adults and Health,Other Agencies - Third Party P,90191897,GREEN TREES,"3,410.00",05/09/2019
Delivery Units,Adults and Health,Other Agencies - Third Party P,90198486,TENTERDEN HOUSE,"3,957.50",26/09/2019
Delivery Units,Adults and Health,Other Agencies - Third Party P,90198598,TENTERDEN HOUSE,"3,829.84",30/09/2019
Delivery Units,Adults and Health,Other Agencies - Third Party P,90193965,LIVABILITY,"3,180.00",17/09/2019
Delivery Units,Adults and Health,Other Agencies - Third Party P,90193966,LIVABILITY,"3,424.00",17/09/2019
Delivery Units,Adults and Health,Other Agencies - Third Party P,90195905,B & M CARE (THE RADLEY CARE HOME),"3,857.14",20/09/2019
Delivery Units,Adults and Health,Other Agencies - Third Party P,90195906,B & M CARE (THE RADLEY CARE HOME),"3,985.71",20/09/2019
Delivery Units,Adults and Health,Other Agencies - Third Party P,90195907,B & M CARE (THE RADLEY CARE HOME),"3,985.71",20/09/2019
Delivery Units,Adults and Health,Other Agencies - Third Party P,90195913,B & M CARE (THE RADLEY CARE HOME),"11,828.56",20/09/2019
Delivery Units,Adults and Health,Other Agencies - Third Party P,90198895,B & M CARE (THE RADLEY CARE HOME),"3,857.14",30/09/2019
Delivery Units,Adults and Health,Other Agencies - Third Party P,90193976,A.H.J. DAVID LTD T/A FLORENCE HOUSE,"3,200.00",17/09/2019
Delivery Units,Adults and Health,Other Agencies - Third Party P,90193977,A.H.J. DAVID LTD T/A FLORENCE HOUSE,"3,200.00",17/09/2019
Delivery Units,Adults and Health,Fees and Charges,90194020,REDACTED - PERSONAL DATA,377.76,17/09/2019
Delivery Units,Adults and Health,Direct Transfer Payments to So,90195019,REDACTED - PERSONAL DATA,"2,931.20",17/09/2019
Delivery Units,Adults and Health,Direct Transfer Payments to So,90195152,REDACTED - PERSONAL DATA,"3,846.40",17/09/2019
Delivery Units,Adults and Health,Direct Transfer Payments to So,90194850,REDACTED - PERSONAL DATA,"3,834.44",17/09/2019
Delivery Units,Adults and Health,Direct Transfer Payments to So,90195266,REDACTED - PERSONAL DATA,240.00,17/09/2019
Delivery Units,Adults and Health,Direct Transfer Payments to So,90194740,REDACTED - PERSONAL DATA,295.68,17/09/2019
Delivery Units,Adults and Health,Direct Transfer Payments to So,90195483,REDACTED - PERSONAL DATA,"1,560.72",17/09/2019
Delivery Units,Adults and Health,Direct Transfer Payments to So,90194671,REDACTED - PERSONAL DATA,961.60,17/09/2019
Delivery Units,Adults and Health,Direct Transfer Payments to So,90195455,REDACTED - PERSONAL DATA,144.24,17/09/2019
Delivery Units,Adults and Health,Direct Transfer Payments to So,90194856,REDACTED - PERSONAL DATA,"1,766.96",17/09/2019
Delivery Units,Adults and Health,Direct Transfer Payments to So,90194720,REDACTED - PERSONAL DATA,"2,638.76",17/09/2019
Delivery Units,Adults and Health,Direct Transfer Payments to So,90195118,REDACTED - PERSONAL DATA,"1,185.32",17/09/2019
Delivery Units,Adults and Health,Direct Transfer Payments to So,90195140,REDACTED - PERSONAL DATA,568.16,17/09/2019
Delivery Units,Adults and Health,Direct Transfer Payments to So,90199517,REDACTED - PERSONAL DATA,341.10,30/09/2019
Delivery Units,Adults and Health,Direct Transfer Payments to So,90194851,REDACTED - PERSONAL DATA,"1,333.18",17/09/2019
Delivery Units,Adults and Health,Direct Transfer Payments to So,90195040,REDACTED - PERSONAL DATA,889.48,17/09/2019
Delivery Units,Adults and Health,Direct Transfer Payments to So,90194726,REDACTED - PERSONAL DATA,456.76,17/09/2019
Delivery Units,Adults and Health,Direct Transfer Payments to So,90194009,REDACTED - PERSONAL DATA,"1,679.66",17/09/2019
Delivery Units,Adults and Health,Fees and Charges,90194008,REDACTED - PERSONAL DATA,421.17,17/09/2019
Delivery Units,Adults and Health,Direct Transfer Payments to So,90194795,REDACTED - PERSONAL DATA,"2,703.12",17/09/2019
Delivery Units,Adults and Health,Direct Transfer Payments to So,90195573,REDACTED - PERSONAL DATA,349.12,17/09/2019
Delivery Units,Adults and Health,Direct Transfer Payments to So,90195237,REDACTED - PERSONAL DATA,377.88,17/09/2019
Delivery Units,Adults and Health,Direct Transfer Payments to So,90194794,REDACTED - PERSONAL DATA,"2,005.04",17/09/2019
Delivery Units,Adults and Health,Direct Transfer Payments to So,90195348,REDACTED - PERSONAL DATA,913.52,17/09/2019
Delivery Units,Adults and Health,Direct Transfer Payments to So,90194885,REDACTED - PERSONAL DATA,"1,143.16",17/09/2019
Delivery Units,Adults and Health,Direct Transfer Payments to So,90195412,REDACTED - PERSONAL DATA,"2,933.80",17/09/2019
Delivery Units,Adults and Health,Direct Transfer Payments to So,90194766,REDACTED - PERSONAL DATA,"1,238.92",17/09/2019
Delivery Units,Adults and Health,Direct Transfer Payments to So,90195159,REDACTED - PERSONAL DATA,"1,545.48",17/09/2019
Delivery Units,Adults and Health,Direct Transfer Payments to So,90194021,REDACTED - PERSONAL DATA,"1,589.19",17/09/2019
Delivery Units,Adults and Health,Direct Transfer Payments to So,90194705,REDACTED - PERSONAL DATA,"1,699.72",17/09/2019
Delivery Units,Adults and Health,Direct Transfer Payments to So,90195576,REDACTED - PERSONAL DATA,"1,260.00",17/09/2019
Delivery Units,Adults and Health,Fees and Charges,90194939,REDACTED - PERSONAL DATA,-428.72,17/09/2019
Delivery Units,Adults and Health,Direct Transfer Payments to So,90195199,REDACTED - PERSONAL DATA,640.00,17/09/2019
Delivery Units,Adults and Health,Direct Transfer Payments to So,90195420,REDACTED - PERSONAL DATA,"1,029.76",17/09/2019
Delivery Units,Adults and Health,Direct Transfer Payments to So,90195168,REDACTED - PERSONAL DATA,351.52,17/09/2019
Delivery Units,Adults and Health,Direct Transfer Payments to So,90195303,REDACTED - PERSONAL DATA,"1,353.04",17/09/2019
Delivery Units,Adults and Health,Direct Transfer Payments to So,90195398,REDACTED - PERSONAL DATA,490.04,17/09/2019
Delivery Units,Adults and Health,Direct Transfer Payments to So,90194948,REDACTED - PERSONAL DATA,975.36,17/09/2019
Delivery Units,Adults and Health,Direct Transfer Payments to So,90195109,REDACTED - PERSONAL DATA,800.00,17/09/2019
Delivery Units,Adults and Health,Direct Transfer Payments to So,90194954,REDACTED - PERSONAL DATA,"2,349.16",17/09/2019
Delivery Units,Adults and Health,Direct Transfer Payments to So,90195501,REDACTED - PERSONAL DATA,966.40,17/09/2019
Delivery Units,Adults and Health,Direct Transfer Payments to So,90195407,REDACTED - PERSONAL DATA,480.80,17/09/2019
Delivery Units,Adults and Health,Direct Transfer Payments to So,90195502,REDACTED - PERSONAL DATA,"3,444.00",17/09/2019
Delivery Units,Adults and Health,Direct Transfer Payments to So,90195410,REDACTED - PERSONAL DATA,451.92,17/09/2019
Delivery Units,Adults and Health,Direct Transfer Payments to So,90195026,REDACTED - PERSONAL DATA,649.08,17/09/2019
Delivery Units,Adults and Health,Direct Transfer Payments to So,90194969,REDACTED - PERSONAL DATA,348.00,17/09/2019
Delivery Units,Adults and Health,Direct Transfer Payments to So,90195074,REDACTED - PERSONAL DATA,547.08,17/09/2019
Delivery Units,Adults and Health,Direct Transfer Payments to So,90195414,REDACTED - PERSONAL DATA,"4,093.84",17/09/2019
Delivery Units,Adults and Health,Direct Transfer Payments to So,90194905,REDACTED - PERSONAL DATA,700.00,17/09/2019
Delivery Units,Adults and Health,Direct Transfer Payments to So,90194931,REDACTED - PERSONAL DATA,"1,560.72",17/09/2019
Delivery Units,Adults and Health,Direct Transfer Payments to So,90195419,REDACTED - PERSONAL DATA,347.20,17/09/2019
Delivery Units,Adults and Health,Direct Transfer Payments to So,90195079,REDACTED - PERSONAL DATA,560.00,17/09/2019
Delivery Units,Adults and Health,Direct Transfer Payments to So,90195304,REDACTED - PERSONAL DATA,"2,316.96",17/09/2019
Delivery Units,Adults and Health,Direct Transfer Payments to So,90194975,REDACTED - PERSONAL DATA,"1,431.96",17/09/2019
Delivery Units,Adults and Health,Direct Transfer Payments to So,90194910,REDACTED - PERSONAL DATA,410.96,17/09/2019
Delivery Units,Adults and Health,Direct Transfer Payments to So,90194909,REDACTED - PERSONAL DATA,360.60,17/09/2019
Delivery Units,Adults and Health,Direct Transfer Payments to So,90194649,REDACTED - PERSONAL DATA,252.55,17/09/2019
Delivery Units,Adults and Health,Fees and Charges,90194158,REDACTED - PERSONAL DATA,"4,191.50",17/09/2019
Delivery Units,Adults and Health,Direct Transfer Payments to So,90194929,REDACTED - PERSONAL DATA,"1,872.00",17/09/2019
Delivery Units,Adults and Health,Direct Transfer Payments to So,90195426,REDACTED - PERSONAL DATA,844.40,17/09/2019
Delivery Units,Adults and Health,Direct Transfer Payments to So,90199518,REDACTED - PERSONAL DATA,"3,137.49",30/09/2019
Delivery Units,Adults and Health,Direct Transfer Payments to So,90195463,REDACTED - PERSONAL DATA,"3,279.20",17/09/2019
Delivery Units,Adults and Health,Direct Transfer Payments to So,90194984,REDACTED - PERSONAL DATA,960.00,17/09/2019
Delivery Units,Adults and Health,Direct Transfer Payments to So,90194920,REDACTED - PERSONAL DATA,"2,066.00",17/09/2019
Delivery Units,Adults and Health,Direct Transfer Payments to So,90195431,REDACTED - PERSONAL DATA,"2,092.96",17/09/2019
Delivery Units,Adults and Health,Direct Transfer Payments to So,90195041,REDACTED - PERSONAL DATA,231.40,17/09/2019
Delivery Units,Adults and Health,Direct Transfer Payments to So,90195477,REDACTED - PERSONAL DATA,810.00,17/09/2019
Delivery Units,Adults and Health,Direct Transfer Payments to So,90194925,REDACTED - PERSONAL DATA,478.48,17/09/2019
Delivery Units,Adults and Health,Direct Transfer Payments to So,90194989,REDACTED - PERSONAL DATA,"2,400.00",17/09/2019
Delivery Units,Adults and Health,Direct Transfer Payments to So,90195095,REDACTED - PERSONAL DATA,772.32,17/09/2019
Delivery Units,Adults and Health,Direct Transfer Payments to So,90195208,REDACTED - PERSONAL DATA,"1,586.48",17/09/2019
Delivery Units,Adults and Health,Direct Transfer Payments to So,90194935,REDACTED - PERSONAL DATA,"2,518.48",17/09/2019
Delivery Units,Adults and Health,Direct Transfer Payments to So,90195437,REDACTED - PERSONAL DATA,"1,351.56",17/09/2019
Delivery Units,Adults and Health,Direct Transfer Payments to So,90195207,REDACTED - PERSONAL DATA,384.64,17/09/2019
Delivery Units,Adults and Health,Direct Transfer Payments to So,90195391,REDACTED - PERSONAL DATA,792.88,17/09/2019
Delivery Units,Adults and Health,Direct Transfer Payments to So,90194936,REDACTED - PERSONAL DATA,321.80,17/09/2019
Delivery Units,Adults and Health,Direct Transfer Payments to So,90195180,REDACTED - PERSONAL DATA,390.00,17/09/2019
Delivery Units,Adults and Health,Direct Transfer Payments to So,90194997,REDACTED - PERSONAL DATA,"1,582.00",17/09/2019
Delivery Units,Adults and Health,Direct Transfer Payments to So,90195214,REDACTED - PERSONAL DATA,136.00,17/09/2019
Delivery Units,Adults and Health,Direct Transfer Payments to So,90195541,REDACTED - PERSONAL DATA,"1,113.44",17/09/2019
Delivery Units,Adults and Health,Direct Transfer Payments to So,90194998,REDACTED - PERSONAL DATA,"4,608.04",17/09/2019
Delivery Units,Adults and Health,Direct Transfer Payments to So,90195264,REDACTED - PERSONAL DATA,"2,520.00",17/09/2019
Delivery Units,Adults and Health,Direct Transfer Payments to So,90195456,REDACTED - PERSONAL DATA,"1,351.56",17/09/2019
Delivery Units,Adults and Health,Direct Transfer Payments to So,90195222,REDACTED - PERSONAL DATA,"2,300.00",17/09/2019
Delivery Units,Adults and Health,Direct Transfer Payments to So,90195272,REDACTED - PERSONAL DATA,589.68,17/09/2019
Delivery Units,Adults and Health,Direct Transfer Payments to So,90188696,REDACTED - PERSONAL DATA,"2,027.36",10/09/2019
Delivery Units,Adults and Health,Direct Transfer Payments to So,90195552,REDACTED - PERSONAL DATA,730.92,17/09/2019
Delivery Units,Adults and Health,Fees and Charges,90194005,REDACTED - PERSONAL DATA,"1,498.20",17/09/2019
Delivery Units,Adults and Health,Direct Transfer Payments to So,90195557,REDACTED - PERSONAL DATA,"1,346.12",17/09/2019
Delivery Units,Adults and Health,Direct Transfer Payments to So,90195193,REDACTED - PERSONAL DATA,140.00,17/09/2019
Delivery Units,Adults and Health,Direct Transfer Payments to So,90195288,REDACTED - PERSONAL DATA,"1,238.92",17/09/2019
Delivery Units,Adults and Health,Direct Transfer Payments to So,90195191,REDACTED - PERSONAL DATA,903.92,17/09/2019
Delivery Units,Adults and Health,Direct Transfer Payments to So,90195243,REDACTED - PERSONAL DATA,"2,796.44",17/09/2019
Delivery Units,Adults and Health,Direct Transfer Payments to So,90195291,REDACTED - PERSONAL DATA,482.72,17/09/2019
Delivery Units,Adults and Health,Direct Transfer Payments to So,90195239,REDACTED - PERSONAL DATA,"1,238.92",17/09/2019
Delivery Units,Adults and Health,Direct Transfer Payments to So,90195387,REDACTED - PERSONAL DATA,"1,194.24",17/09/2019
Delivery Units,Adults and Health,Direct Transfer Payments to So,90195306,REDACTED - PERSONAL DATA,"2,400.00",17/09/2019
Delivery Units,Adults and Health,Direct Transfer Payments to So,90195251,REDACTED - PERSONAL DATA,"3,000.00",17/09/2019
Delivery Units,Adults and Health,Direct Transfer Payments to So,90195255,REDACTED - PERSONAL DATA,"2,843.24",17/09/2019
Delivery Units,Adults and Health,Direct Transfer Payments to So,90195196,REDACTED - PERSONAL DATA,"2,751.32",17/09/2019
Delivery Units,Adults and Health,Direct Transfer Payments to So,80028506,REDACTED - PERSONAL DATA,"3,079.72",17/09/2019
Delivery Units,Adults and Health,Direct Transfer Payments to So,90195258,REDACTED - PERSONAL DATA,"2,781.72",17/09/2019
Delivery Units,Adults and Health,Direct Transfer Payments to So,90195210,REDACTED - PERSONAL DATA,586.96,17/09/2019
Delivery Units,Adults and Health,Direct Transfer Payments to So,90195307,REDACTED - PERSONAL DATA,675.80,17/09/2019
Delivery Units,Adults and Health,Direct Transfer Payments to So,90195581,REDACTED - PERSONAL DATA,"2,331.60",17/09/2019
Delivery Units,Adults and Health,Direct Transfer Payments to So,90195261,REDACTED - PERSONAL DATA,"1,802.08",17/09/2019
Delivery Units,Adults and Health,Fees and Charges,90191399,REDACTED - PERSONAL DATA,0.15,03/09/2019
Delivery Units,Adults and Health,Direct Transfer Payments to So,90195395,REDACTED - PERSONAL DATA,"1,351.56",17/09/2019
Delivery Units,Adults and Health,Fees and Charges,90191148,REDACTED - PERSONAL DATA,0.17,02/09/2019
Delivery Units,Adults and Health,Direct Transfer Payments to So,90195211,REDACTED - PERSONAL DATA,"2,375.08",17/09/2019
Delivery Units,Adults and Health,Fees and Charges,90195734,REDACTED - PERSONAL DATA,"3,760.68",19/09/2019
Delivery Units,Adults and Health,Direct Transfer Payments to So,90188479,REDACTED - PERSONAL DATA,990.64,30/09/2019
Delivery Units,Adults and Health,Direct Transfer Payments to So,90188692,REDACTED - PERSONAL DATA,"1,062.00",30/09/2019
Delivery Units,Adults and Health,Direct Transfer Payments to So,90188727,REDACTED - PERSONAL DATA,"1,787.84",30/09/2019
Delivery Units,Adults and Health,Direct Transfer Payments to So,90188814,REDACTED - PERSONAL DATA,"1,550.40",30/09/2019
Delivery Units,Adults and Health,Direct Transfer Payments to So,90188958,REDACTED - PERSONAL DATA,935.68,30/09/2019
Delivery Units,Adults and Health,Direct Transfer Payments to So,90195186,REDACTED - PERSONAL DATA,583.84,30/09/2019
Delivery Units,Adults and Health,Direct Transfer Payments to So,90195190,REDACTED - PERSONAL DATA,764.32,30/09/2019
Delivery Units,Adults and Health,Direct Transfer Payments to So,90195224,REDACTED - PERSONAL DATA,"1,550.40",30/09/2019
Delivery Units,Adults and Health,Direct Transfer Payments to So,90195226,REDACTED - PERSONAL DATA,266.20,30/09/2019
Delivery Units,Adults and Health,Direct Transfer Payments to So,90195240,REDACTED - PERSONAL DATA,215.40,30/09/2019
Delivery Units,Adults and Health,Direct Transfer Payments to So,90195274,REDACTED - PERSONAL DATA,990.64,30/09/2019
Delivery Units,Adults and Health,Direct Transfer Payments to So,90195275,REDACTED - PERSONAL DATA,296.48,30/09/2019
Delivery Units,Adults and Health,Direct Transfer Payments to So,90195369,REDACTED - PERSONAL DATA,"1,787.84",30/09/2019
Delivery Units,Adults and Health,Direct Transfer Payments to So,90195461,REDACTED - PERSONAL DATA,"1,062.00",30/09/2019
Delivery Units,Adults and Health,Direct Transfer Payments to So,90195550,REDACTED - PERSONAL DATA,935.68,30/09/2019
Delivery Units,Adults and Health,Direct Transfer Payments to So,90195551,REDACTED - PERSONAL DATA,"1,071.92",30/09/2019
Delivery Units,Adults and Health,Direct Transfer Payments to So,90195553,REDACTED - PERSONAL DATA,"1,022.04",30/09/2019
Delivery Units,Adults and Health,Other Agencies - Third Party P,90196615,WESTMINSTER HOMECARE LTD,"1,041.27",20/09/2019
Delivery Units,Adults and Health,Other Agencies - Third Party P,90196616,WESTMINSTER HOMECARE LTD,936.73,20/09/2019
Delivery Units,Adults and Health,Other Agencies - Third Party P,90196617,WESTMINSTER HOMECARE LTD,652.80,20/09/2019
Delivery Units,Adults and Health,Other Agencies - Third Party P,90196618,WESTMINSTER HOMECARE LTD,326.79,20/09/2019
Delivery Units,Adults and Health,Other Agencies - Third Party P,90196619,WESTMINSTER HOMECARE LTD,423.44,20/09/2019
Delivery Units,Adults and Health,Other Agencies - Third Party P,90196620,WESTMINSTER HOMECARE LTD,331.00,20/09/2019
Delivery Units,Adults and Health,Other Agencies - Third Party P,90196621,WESTMINSTER HOMECARE LTD,172.82,20/09/2019
Delivery Units,Adults and Health,Other Agencies - Third Party P,90196622,WESTMINSTER HOMECARE LTD,309.01,20/09/2019
Delivery Units,Adults and Health,Other Agencies - Third Party P,90196624,WESTMINSTER HOMECARE LTD,493.07,20/09/2019
Delivery Units,Adults and Health,Other Agencies - Third Party P,90196625,WESTMINSTER HOMECARE LTD,836.83,20/09/2019
Delivery Units,Adults and Health,Other Agencies - Third Party P,90196626,WESTMINSTER HOMECARE LTD,463.68,20/09/2019
Delivery Units,Adults and Health,Other Agencies - Third Party P,90196627,WESTMINSTER HOMECARE LTD,71.66,20/09/2019
Delivery Units,Adults and Health,Other Agencies - Third Party P,90196628,WESTMINSTER HOMECARE LTD,46.37,20/09/2019
Delivery Units,Adults and Health,Other Agencies - Third Party P,90196629,WESTMINSTER HOMECARE LTD,50.58,20/09/2019
Delivery Units,Adults and Health,Other Agencies - Third Party P,90196630,WESTMINSTER HOMECARE LTD,"1,191.19",20/09/2019
Delivery Units,Adults and Health,Other Agencies - Third Party P,90196631,WESTMINSTER HOMECARE LTD,336.56,20/09/2019
Delivery Units,Adults and Health,Other Agencies - Third Party P,90196632,WESTMINSTER HOMECARE LTD,323.90,20/09/2019
Delivery Units,Adults and Health,Other Agencies - Third Party P,90196633,WESTMINSTER HOMECARE LTD,567.04,20/09/2019
Delivery Units,Adults and Health,Other Agencies - Third Party P,90196634,WESTMINSTER HOMECARE LTD,33.73,20/09/2019
Delivery Units,Adults and Health,Other Agencies - Third Party P,90196637,WESTMINSTER HOMECARE LTD,185.56,20/09/2019
Delivery Units,Adults and Health,Other Agencies - Third Party P,90196638,WESTMINSTER HOMECARE LTD,"1,348.98",20/09/2019
Delivery Units,Adults and Health,Other Agencies - Third Party P,90196639,WESTMINSTER HOMECARE LTD,"1,383.34",20/09/2019
Delivery Units,Adults and Health,Other Agencies - Third Party P,90196640,WESTMINSTER HOMECARE LTD,520.64,20/09/2019
Delivery Units,Adults and Health,Other Agencies - Third Party P,90196641,WESTMINSTER HOMECARE LTD,"1,072.89",20/09/2019
Delivery Units,Adults and Health,Other Agencies - Third Party P,90196642,WESTMINSTER HOMECARE LTD,263.18,20/09/2019
Delivery Units,Adults and Health,Other Agencies - Third Party P,90196643,WESTMINSTER HOMECARE LTD,259.33,20/09/2019
Delivery Units,Adults and Health,Other Agencies - Third Party P,90196644,WESTMINSTER HOMECARE LTD,231.84,20/09/2019
Delivery Units,Adults and Health,Other Agencies - Third Party P,90196645,WESTMINSTER HOMECARE LTD,214.99,20/09/2019
Delivery Units,Adults and Health,Other Agencies - Third Party P,90196648,WESTMINSTER HOMECARE LTD,467.86,20/09/2019
Delivery Units,Adults and Health,Other Agencies - Third Party P,90196649,WESTMINSTER HOMECARE LTD,"1,682.38",20/09/2019
Delivery Units,Adults and Health,Other Agencies - Third Party P,90196650,WESTMINSTER HOMECARE LTD,246.67,20/09/2019
Delivery Units,Adults and Health,Other Agencies - Third Party P,90196652,WESTMINSTER HOMECARE LTD,335.23,20/09/2019
Delivery Units,Adults and Health,Other Agencies - Third Party P,90196653,WESTMINSTER HOMECARE LTD,50.58,20/09/2019
Delivery Units,Adults and Health,Other Agencies - Third Party P,90196654,WESTMINSTER HOMECARE LTD,558.58,20/09/2019
Delivery Units,Adults and Health,Other Agencies - Third Party P,90196655,WESTMINSTER HOMECARE LTD,"1,064.46",20/09/2019
Delivery Units,Adults and Health,Other Agencies - Third Party P,90198406,WESTMINSTER HOMECARE LTD,347.35,25/09/2019
Delivery Units,Adults and Health,Other Agencies - Third Party P,90193623,CAREWATCH (BARNET),120.26,17/09/2019
Delivery Units,Adults and Health,Other Agencies - Third Party P,90193624,CAREWATCH (BARNET),240.52,17/09/2019
Delivery Units,Adults and Health,Other Agencies - Third Party P,90193625,CAREWATCH (BARNET),601.30,17/09/2019
Delivery Units,Adults and Health,Other Agencies - Third Party P,90193626,CAREWATCH (BARNET),712.97,17/09/2019
Delivery Units,Adults and Health,Other Agencies - Third Party P,90193627,CAREWATCH (BARNET),257.73,17/09/2019
Delivery Units,Adults and Health,Other Agencies - Third Party P,90193628,CAREWATCH (BARNET),180.39,17/09/2019
Delivery Units,Adults and Health,Other Agencies - Third Party P,90193629,CAREWATCH (BARNET),300.65,17/09/2019
Delivery Units,Adults and Health,Other Agencies - Third Party P,90193630,CAREWATCH (BARNET),781.90,17/09/2019
Delivery Units,Adults and Health,Other Agencies - Third Party P,90193631,CAREWATCH (BARNET),120.26,17/09/2019
Delivery Units,Adults and Health,Other Agencies - Third Party P,90193632,CAREWATCH (BARNET),300.72,17/09/2019
Delivery Units,Adults and Health,Other Agencies - Third Party P,90193633,CAREWATCH (BARNET),240.52,17/09/2019
Delivery Units,Adults and Health,Other Agencies - Third Party P,90193634,CAREWATCH (BARNET),180.39,17/09/2019
Delivery Units,Adults and Health,Other Agencies - Third Party P,90193635,CAREWATCH (BARNET),34.36,17/09/2019
Delivery Units,Adults and Health,Other Agencies - Third Party P,90193636,CAREWATCH (BARNET),17.18,17/09/2019
Delivery Units,Adults and Health,Other Agencies - Third Party P,90193637,CAREWATCH (BARNET),201.90,17/09/2019
Delivery Units,Adults and Health,Other Agencies - Third Party P,90193638,CAREWATCH (BARNET),141.77,17/09/2019
Delivery Units,Adults and Health,Other Agencies - Third Party P,90193639,CAREWATCH (BARNET),270.62,17/09/2019
Delivery Units,Adults and Health,Other Agencies - Third Party P,90193640,CAREWATCH (BARNET),244.85,17/09/2019
Delivery Units,Adults and Health,Other Agencies - Third Party P,90193641,CAREWATCH (BARNET),120.26,17/09/2019
Delivery Units,Adults and Health,Other Agencies - Third Party P,90193642,CAREWATCH (BARNET),38.67,17/09/2019
Delivery Units,Adults and Health,Other Agencies - Third Party P,90193643,CAREWATCH (BARNET),150.36,17/09/2019
Delivery Units,Adults and Health,Other Agencies - Third Party P,90193645,CAREWATCH (BARNET),184.72,17/09/2019
Delivery Units,Adults and Health,Other Agencies - Third Party P,90193646,CAREWATCH (BARNET),120.26,17/09/2019
Delivery Units,Adults and Health,Other Agencies - Third Party P,90193647,CAREWATCH (BARNET),163.21,17/09/2019
Delivery Units,Adults and Health,Other Agencies - Third Party P,90193648,CAREWATCH (BARNET),210.49,17/09/2019
Delivery Units,Adults and Health,Other Agencies - Third Party P,90193649,CAREWATCH (BARNET),60.13,17/09/2019
Delivery Units,Adults and Health,Other Agencies - Third Party P,90193650,CAREWATCH (BARNET),438.09,17/09/2019
Delivery Units,Adults and Health,Other Agencies - Third Party P,90193651,CAREWATCH (BARNET),206.23,17/09/2019
Delivery Units,Adults and Health,Other Agencies - Third Party P,90193652,CAREWATCH (BARNET),240.59,17/09/2019
Delivery Units,Adults and Health,Other Agencies - Third Party P,90193653,CAREWATCH (BARNET),120.26,17/09/2019
Delivery Units,Adults and Health,Other Agencies - Third Party P,90193655,CAREWATCH (BARNET),240.52,17/09/2019
Delivery Units,Adults and Health,Other Agencies - Third Party P,90193656,CAREWATCH (BARNET),51.54,17/09/2019
Delivery Units,Adults and Health,Other Agencies - Third Party P,90193657,CAREWATCH (BARNET),94.52,17/09/2019
Delivery Units,Adults and Health,Other Agencies - Third Party P,90193658,CAREWATCH (BARNET),51.54,17/09/2019
Delivery Units,Adults and Health,Other Agencies - Third Party P,90193659,CAREWATCH (BARNET),219.10,17/09/2019
Delivery Units,Adults and Health,Other Agencies - Third Party P,90193660,CAREWATCH (BARNET),116.01,17/09/2019
Delivery Units,Adults and Health,Other Agencies - Third Party P,90193661,CAREWATCH (BARNET),90.22,17/09/2019
Delivery Units,Adults and Health,Other Agencies - Third Party P,90193663,CAREWATCH (BARNET),451.02,17/09/2019
Delivery Units,Adults and Health,Other Agencies - Third Party P,90193664,CAREWATCH (BARNET),176.10,17/09/2019
Delivery Units,Adults and Health,Other Agencies - Third Party P,90193665,CAREWATCH (BARNET),236.26,17/09/2019
Delivery Units,Adults and Health,Other Agencies - Third Party P,90193666,CAREWATCH (BARNET),146.07,17/09/2019
Delivery Units,Adults and Health,Other Agencies - Third Party P,90193667,CAREWATCH (BARNET),90.20,17/09/2019
Delivery Units,Adults and Health,Other Agencies - Third Party P,90193668,CAREWATCH (BARNET),137.45,17/09/2019
Delivery Units,Adults and Health,Other Agencies - Third Party P,90193669,CAREWATCH (BARNET),193.28,17/09/2019
Delivery Units,Adults and Health,Other Agencies - Third Party P,90193670,CAREWATCH (BARNET),90.23,17/09/2019
Delivery Units,Adults and Health,Other Agencies - Third Party P,90193672,CAREWATCH (BARNET),128.85,17/09/2019
Delivery Units,Adults and Health,Other Agencies - Third Party P,90193673,CAREWATCH (BARNET),90.23,17/09/2019
Delivery Units,Adults and Health,Other Agencies - Third Party P,90193674,CAREWATCH (BARNET),300.72,17/09/2019
Delivery Units,Adults and Health,Other Agencies - Third Party P,90193675,CAREWATCH (BARNET),90.23,17/09/2019
Delivery Units,Adults and Health,Other Agencies - Third Party P,90193677,CAREWATCH (BARNET),189.02,17/09/2019
Delivery Units,Adults and Health,Other Agencies - Third Party P,90193678,CAREWATCH (BARNET),167.52,17/09/2019
Delivery Units,Adults and Health,Other Agencies - Third Party P,90193679,CAREWATCH (BARNET),309.26,17/09/2019
Delivery Units,Adults and Health,Other Agencies - Third Party P,90193680,CAREWATCH (BARNET),107.40,17/09/2019
Delivery Units,Adults and Health,Other Agencies - Third Party P,90193681,CAREWATCH (BARNET),189.00,17/09/2019
Delivery Units,Adults and Health,Other Agencies - Third Party P,90193682,CAREWATCH (BARNET),73.02,17/09/2019
Delivery Units,Adults and Health,Other Agencies - Third Party P,90193683,CAREWATCH (BARNET),103.08,17/09/2019
Delivery Units,Adults and Health,Other Agencies - Third Party P,90193684,CAREWATCH (BARNET),279.19,17/09/2019
Delivery Units,Adults and Health,Other Agencies - Third Party P,90193685,CAREWATCH (BARNET),206.20,17/09/2019
Delivery Units,Adults and Health,Other Agencies - Third Party P,90193686,CAREWATCH (BARNET),240.52,17/09/2019
Delivery Units,Adults and Health,Other Agencies - Third Party P,90193687,CAREWATCH (BARNET),51.54,17/09/2019
Delivery Units,Adults and Health,Other Agencies - Third Party P,90193688,CAREWATCH (BARNET),266.29,17/09/2019
Delivery Units,Adults and Health,Other Agencies - Third Party P,90193689,CAREWATCH (BARNET),253.42,17/09/2019
Delivery Units,Adults and Health,Other Agencies - Third Party P,90193690,CAREWATCH (BARNET),25.77,17/09/2019
Delivery Units,Adults and Health,Other Agencies - Third Party P,90193691,CAREWATCH (BARNET),64.45,17/09/2019
Delivery Units,Adults and Health,Other Agencies - Third Party P,90193692,CAREWATCH (BARNET),137.48,17/09/2019
Delivery Units,Adults and Health,Other Agencies - Third Party P,90193695,CAREWATCH (BARNET),120.26,17/09/2019
Delivery Units,Adults and Health,Other Agencies - Third Party P,90193696,CAREWATCH (BARNET),240.52,17/09/2019
Delivery Units,Adults and Health,Other Agencies - Third Party P,90193697,CAREWATCH (BARNET),601.30,17/09/2019
Delivery Units,Adults and Health,Other Agencies - Third Party P,90193698,CAREWATCH (BARNET),712.97,17/09/2019
Delivery Units,Adults and Health,Other Agencies - Third Party P,90193699,CAREWATCH (BARNET),257.73,17/09/2019
Delivery Units,Adults and Health,Other Agencies - Third Party P,90193700,CAREWATCH (BARNET),253.44,17/09/2019
Delivery Units,Adults and Health,Other Agencies - Third Party P,90193701,CAREWATCH (BARNET),300.65,17/09/2019
Delivery Units,Adults and Health,Other Agencies - Third Party P,90193702,CAREWATCH (BARNET),781.90,17/09/2019
Delivery Units,Adults and Health,Other Agencies - Third Party P,90193703,CAREWATCH (BARNET),120.26,17/09/2019
Delivery Units,Adults and Health,Other Agencies - Third Party P,90193704,CAREWATCH (BARNET),240.52,17/09/2019
Delivery Units,Adults and Health,Other Agencies - Third Party P,90193705,CAREWATCH (BARNET),90.23,17/09/2019
Delivery Units,Adults and Health,Other Agencies - Third Party P,90193706,CAREWATCH (BARNET),34.36,17/09/2019
Delivery Units,Adults and Health,Other Agencies - Third Party P,90193707,CAREWATCH (BARNET),300.72,17/09/2019
Delivery Units,Adults and Health,Other Agencies - Third Party P,90193708,CAREWATCH (BARNET),201.90,17/09/2019
Delivery Units,Adults and Health,Other Agencies - Third Party P,90193709,CAREWATCH (BARNET),141.77,17/09/2019
Delivery Units,Adults and Health,Other Agencies - Third Party P,90193710,CAREWATCH (BARNET),244.85,17/09/2019
Delivery Units,Adults and Health,Other Agencies - Third Party P,90193711,CAREWATCH (BARNET),38.67,17/09/2019
Delivery Units,Adults and Health,Other Agencies - Third Party P,90193712,CAREWATCH (BARNET),150.36,17/09/2019
Delivery Units,Adults and Health,Other Agencies - Third Party P,90193713,CAREWATCH (BARNET),137.44,17/09/2019
Delivery Units,Adults and Health,Other Agencies - Third Party P,90193714,CAREWATCH (BARNET),330.75,17/09/2019
Delivery Units,Adults and Health,Other Agencies - Third Party P,90193715,CAREWATCH (BARNET),120.26,17/09/2019
Delivery Units,Adults and Health,Other Agencies - Third Party P,90193716,CAREWATCH (BARNET),210.49,17/09/2019
Delivery Units,Adults and Health,Other Agencies - Third Party P,90193717,CAREWATCH (BARNET),438.09,17/09/2019
Delivery Units,Adults and Health,Other Agencies - Third Party P,90193718,CAREWATCH (BARNET),206.23,17/09/2019
Delivery Units,Adults and Health,Other Agencies - Third Party P,90193719,CAREWATCH (BARNET),240.59,17/09/2019
Delivery Units,Adults and Health,Other Agencies - Third Party P,90193720,CAREWATCH (BARNET),120.26,17/09/2019
Delivery Units,Adults and Health,Other Agencies - Third Party P,90193722,CAREWATCH (BARNET),266.29,17/09/2019
Delivery Units,Adults and Health,Other Agencies - Third Party P,90193723,CAREWATCH (BARNET),240.52,17/09/2019
Delivery Units,Adults and Health,Other Agencies - Third Party P,90193724,CAREWATCH (BARNET),150.36,17/09/2019
Delivery Units,Adults and Health,Other Agencies - Third Party P,90193725,CAREWATCH (BARNET),51.54,17/09/2019
Delivery Units,Adults and Health,Other Agencies - Third Party P,90193726,CAREWATCH (BARNET),124.58,17/09/2019
Delivery Units,Adults and Health,Other Agencies - Third Party P,90193727,CAREWATCH (BARNET),51.54,17/09/2019
Delivery Units,Adults and Health,Other Agencies - Third Party P,90193728,CAREWATCH (BARNET),180.39,17/09/2019
Delivery Units,Adults and Health,Other Agencies - Third Party P,90193729,CAREWATCH (BARNET),128.90,17/09/2019
Delivery Units,Adults and Health,Other Agencies - Third Party P,90193730,CAREWATCH (BARNET),103.11,17/09/2019
Delivery Units,Adults and Health,Other Agencies - Third Party P,90193732,CAREWATCH (BARNET),515.46,17/09/2019
Delivery Units,Adults and Health,Other Agencies - Third Party P,90193733,CAREWATCH (BARNET),176.10,17/09/2019
Delivery Units,Adults and Health,Other Agencies - Third Party P,90193734,CAREWATCH (BARNET),257.74,17/09/2019
Delivery Units,Adults and Health,Other Agencies - Third Party P,90193735,CAREWATCH (BARNET),236.26,17/09/2019
Delivery Units,Adults and Health,Other Agencies - Third Party P,90193736,CAREWATCH (BARNET),154.65,17/09/2019
Delivery Units,Adults and Health,Other Agencies - Third Party P,90193737,CAREWATCH (BARNET),279.18,17/09/2019
Delivery Units,Adults and Health,Other Agencies - Third Party P,90193738,CAREWATCH (BARNET),90.21,17/09/2019
Delivery Units,Adults and Health,Other Agencies - Third Party P,90193739,CAREWATCH (BARNET),188.98,17/09/2019
Delivery Units,Adults and Health,Other Agencies - Third Party P,90193740,CAREWATCH (BARNET),90.23,17/09/2019
Delivery Units,Adults and Health,Other Agencies - Third Party P,90193742,CAREWATCH (BARNET),133.15,17/09/2019
Delivery Units,Adults and Health,Other Agencies - Third Party P,90193743,CAREWATCH (BARNET),171.81,17/09/2019
Delivery Units,Adults and Health,Other Agencies - Third Party P,90193744,CAREWATCH (BARNET),17.18,17/09/2019
Delivery Units,Adults and Health,Other Agencies - Third Party P,90193745,CAREWATCH (BARNET),90.23,17/09/2019
Delivery Units,Adults and Health,Other Agencies - Third Party P,90193747,CAREWATCH (BARNET),206.20,17/09/2019
Delivery Units,Adults and Health,Other Agencies - Third Party P,90193748,CAREWATCH (BARNET),167.52,17/09/2019
Delivery Units,Adults and Health,Other Agencies - Third Party P,90193749,CAREWATCH (BARNET),38.66,17/09/2019
Delivery Units,Adults and Health,Other Agencies - Third Party P,90193750,CAREWATCH (BARNET),296.38,17/09/2019
Delivery Units,Adults and Health,Other Agencies - Third Party P,90193751,CAREWATCH (BARNET),107.40,17/09/2019
Delivery Units,Adults and Health,Other Agencies - Third Party P,90193752,CAREWATCH (BARNET),120.26,17/09/2019
Delivery Units,Adults and Health,Other Agencies - Third Party P,90193754,CAREWATCH (BARNET),201.90,17/09/2019
Delivery Units,Adults and Health,Other Agencies - Third Party P,90193755,CAREWATCH (BARNET),68.74,17/09/2019
Delivery Units,Adults and Health,Other Agencies - Third Party P,90193756,CAREWATCH (BARNET),184.72,17/09/2019
Delivery Units,Adults and Health,Other Agencies - Third Party P,90193757,CAREWATCH (BARNET),81.61,17/09/2019
Delivery Units,Adults and Health,Other Agencies - Third Party P,90193758,CAREWATCH (BARNET),283.50,17/09/2019
Delivery Units,Adults and Health,Other Agencies - Third Party P,90193759,CAREWATCH (BARNET),150.34,17/09/2019
Delivery Units,Adults and Health,Other Agencies - Third Party P,90193760,CAREWATCH (BARNET),210.49,17/09/2019
Delivery Units,Adults and Health,Other Agencies - Third Party P,90193761,CAREWATCH (BARNET),240.52,17/09/2019
Delivery Units,Adults and Health,Other Agencies - Third Party P,90193762,CAREWATCH (BARNET),51.54,17/09/2019
Delivery Units,Adults and Health,Other Agencies - Third Party P,90193763,CAREWATCH (BARNET),270.59,17/09/2019
Delivery Units,Adults and Health,Other Agencies - Third Party P,90193764,CAREWATCH (BARNET),60.13,17/09/2019
Delivery Units,Adults and Health,Other Agencies - Third Party P,90193765,CAREWATCH (BARNET),17.18,17/09/2019
Delivery Units,Adults and Health,Other Agencies - Third Party P,90193766,CAREWATCH (BARNET),77.34,17/09/2019
Delivery Units,Adults and Health,Other Agencies - Third Party P,90193769,CAREWATCH (BARNET),601.30,17/09/2019
Delivery Units,Adults and Health,Other Agencies - Third Party P,90193770,CAREWATCH (BARNET),150.36,17/09/2019
Delivery Units,Adults and Health,Other Agencies - Third Party P,90193771,CAREWATCH (BARNET),257.73,17/09/2019
Delivery Units,Adults and Health,Other Agencies - Third Party P,90193772,CAREWATCH (BARNET),300.65,17/09/2019
Delivery Units,Adults and Health,Other Agencies - Third Party P,90193773,CAREWATCH (BARNET),781.90,17/09/2019
Delivery Units,Adults and Health,Other Agencies - Third Party P,90193775,CAREWATCH (BARNET),120.26,17/09/2019
Delivery Units,Adults and Health,Other Agencies - Third Party P,90193776,CAREWATCH (BARNET),296.37,17/09/2019
Delivery Units,Adults and Health,Other Agencies - Third Party P,90193777,CAREWATCH (BARNET),300.72,17/09/2019
Delivery Units,Adults and Health,Other Agencies - Third Party P,90193778,CAREWATCH (BARNET),240.52,17/09/2019
Delivery Units,Adults and Health,Other Agencies - Third Party P,90193779,CAREWATCH (BARNET),90.23,17/09/2019
Delivery Units,Adults and Health,Other Agencies - Third Party P,90193780,CAREWATCH (BARNET),90.23,17/09/2019
Delivery Units,Adults and Health,Other Agencies - Third Party P,90193781,CAREWATCH (BARNET),201.90,17/09/2019
Delivery Units,Adults and Health,Other Agencies - Third Party P,90193782,CAREWATCH (BARNET),141.77,17/09/2019
Delivery Units,Adults and Health,Other Agencies - Third Party P,90193783,CAREWATCH (BARNET),38.67,17/09/2019
Delivery Units,Adults and Health,Other Agencies - Third Party P,90193784,CAREWATCH (BARNET),150.36,17/09/2019
Delivery Units,Adults and Health,Other Agencies - Third Party P,90193785,CAREWATCH (BARNET),137.44,17/09/2019
Delivery Units,Adults and Health,Other Agencies - Third Party P,90193786,CAREWATCH (BARNET),253.44,17/09/2019
Delivery Units,Adults and Health,Other Agencies - Third Party P,90193787,CAREWATCH (BARNET),309.24,17/09/2019
Delivery Units,Adults and Health,Other Agencies - Third Party P,90193788,CAREWATCH (BARNET),330.75,17/09/2019
Delivery Units,Adults and Health,Other Agencies - Third Party P,90193789,CAREWATCH (BARNET),120.26,17/09/2019
Delivery Units,Adults and Health,Other Agencies - Third Party P,90193790,CAREWATCH (BARNET),210.49,17/09/2019
Delivery Units,Adults and Health,Other Agencies - Third Party P,90193791,CAREWATCH (BARNET),60.13,17/09/2019
Delivery Units,Adults and Health,Other Agencies - Third Party P,90193792,CAREWATCH (BARNET),438.09,17/09/2019
Delivery Units,Adults and Health,Other Agencies - Third Party P,90193793,CAREWATCH (BARNET),240.59,17/09/2019
Delivery Units,Adults and Health,Other Agencies - Third Party P,90193794,CAREWATCH (BARNET),120.26,17/09/2019
Delivery Units,Adults and Health,Other Agencies - Third Party P,90193796,CAREWATCH (BARNET),266.29,17/09/2019
Delivery Units,Adults and Health,Other Agencies - Third Party P,90193797,CAREWATCH (BARNET),240.52,17/09/2019
Delivery Units,Adults and Health,Other Agencies - Third Party P,90193798,CAREWATCH (BARNET),103.08,17/09/2019
Delivery Units,Adults and Health,Other Agencies - Third Party P,90193799,CAREWATCH (BARNET),240.52,17/09/2019
Delivery Units,Adults and Health,Other Agencies - Third Party P,90193800,CAREWATCH (BARNET),51.54,17/09/2019
Delivery Units,Adults and Health,Other Agencies - Third Party P,90193801,CAREWATCH (BARNET),695.79,17/09/2019
Delivery Units,Adults and Health,Other Agencies - Third Party P,90193802,CAREWATCH (BARNET),51.54,17/09/2019
Delivery Units,Adults and Health,Other Agencies - Third Party P,90193803,CAREWATCH (BARNET),180.39,17/09/2019
Delivery Units,Adults and Health,Other Agencies - Third Party P,90193804,CAREWATCH (BARNET),249.16,17/09/2019
Delivery Units,Adults and Health,Other Agencies - Third Party P,90193805,CAREWATCH (BARNET),128.90,17/09/2019
Delivery Units,Adults and Health,Other Agencies - Third Party P,90193806,CAREWATCH (BARNET),115.99,17/09/2019
Delivery Units,Adults and Health,Other Agencies - Third Party P,90193807,CAREWATCH (BARNET),180.39,17/09/2019
Delivery Units,Adults and Health,Other Agencies - Third Party P,90193808,CAREWATCH (BARNET),227.67,17/09/2019
Delivery Units,Adults and Health,Other Agencies - Third Party P,90193809,CAREWATCH (BARNET),154.66,17/09/2019
Delivery Units,Adults and Health,Other Agencies - Third Party P,90193810,CAREWATCH (BARNET),292.06,17/09/2019
Delivery Units,Adults and Health,Other Agencies - Third Party P,90193811,CAREWATCH (BARNET),124.58,17/09/2019
Delivery Units,Adults and Health,Other Agencies - Third Party P,90193812,CAREWATCH (BARNET),197.57,17/09/2019
Delivery Units,Adults and Health,Other Agencies - Third Party P,90193814,CAREWATCH (BARNET),120.26,17/09/2019
Delivery Units,Adults and Health,Other Agencies - Third Party P,90193815,CAREWATCH (BARNET),90.23,17/09/2019
Delivery Units,Adults and Health,Other Agencies - Third Party P,90193816,CAREWATCH (BARNET),167.51,17/09/2019
Delivery Units,Adults and Health,Other Agencies - Third Party P,90193817,CAREWATCH (BARNET),34.36,17/09/2019
Delivery Units,Adults and Health,Other Agencies - Third Party P,90193818,CAREWATCH (BARNET),17.18,17/09/2019
Delivery Units,Adults and Health,Other Agencies - Third Party P,90193819,CAREWATCH (BARNET),296.43,17/09/2019
Delivery Units,Adults and Health,Other Agencies - Third Party P,90193821,CAREWATCH (BARNET),206.19,17/09/2019
Delivery Units,Adults and Health,Other Agencies - Third Party P,90193822,CAREWATCH (BARNET),180.40,17/09/2019
Delivery Units,Adults and Health,Other Agencies - Third Party P,90193823,CAREWATCH (BARNET),296.38,17/09/2019
Delivery Units,Adults and Health,Other Agencies - Third Party P,90193824,CAREWATCH (BARNET),236.26,17/09/2019
Delivery Units,Adults and Health,Other Agencies - Third Party P,90193825,CAREWATCH (BARNET),107.40,17/09/2019
Delivery Units,Adults and Health,Other Agencies - Third Party P,90193826,CAREWATCH (BARNET),115.97,17/09/2019
Delivery Units,Adults and Health,Other Agencies - Third Party P,90193827,CAREWATCH (BARNET),210.48,17/09/2019
Delivery Units,Adults and Health,Other Agencies - Third Party P,90193828,CAREWATCH (BARNET),94.50,17/09/2019
Delivery Units,Adults and Health,Other Agencies - Third Party P,90193829,CAREWATCH (BARNET),180.43,17/09/2019
Delivery Units,Adults and Health,Other Agencies - Third Party P,90193830,CAREWATCH (BARNET),120.26,17/09/2019
Delivery Units,Adults and Health,Other Agencies - Third Party P,90193833,CAREWATCH (BARNET),287.80,17/09/2019
Delivery Units,Adults and Health,Other Agencies - Third Party P,90193834,CAREWATCH (BARNET),201.90,17/09/2019
Delivery Units,Adults and Health,Other Agencies - Third Party P,90193835,CAREWATCH (BARNET),240.52,17/09/2019
Delivery Units,Adults and Health,Other Agencies - Third Party P,90193836,CAREWATCH (BARNET),47.25,17/09/2019
Delivery Units,Adults and Health,Other Agencies - Third Party P,90193837,CAREWATCH (BARNET),279.18,17/09/2019
Delivery Units,Adults and Health,Other Agencies - Third Party P,90193838,CAREWATCH (BARNET),206.22,17/09/2019
Delivery Units,Adults and Health,Other Agencies - Third Party P,90193839,CAREWATCH (BARNET),25.77,17/09/2019
Delivery Units,Adults and Health,Other Agencies - Third Party P,90193840,CAREWATCH (BARNET),90.22,17/09/2019
Delivery Units,Adults and Health,Other Agencies - Third Party P,90193841,CAREWATCH (BARNET),116.00,17/09/2019
Delivery Units,Adults and Health,Other Agencies - Third Party P,90194402,CAREWATCH (BARNET),240.52,17/09/2019
Delivery Units,Adults and Health,Other Agencies - Third Party P,90194403,CAREWATCH (BARNET),51.56,17/09/2019
Delivery Units,Adults and Health,Other Agencies - Third Party P,90194404,CAREWATCH (BARNET),257.73,17/09/2019
Delivery Units,Adults and Health,Other Agencies - Third Party P,90194405,CAREWATCH (BARNET),210.49,17/09/2019
Delivery Units,Adults and Health,Other Agencies - Third Party P,90194406,CAREWATCH (BARNET),300.65,17/09/2019
Delivery Units,Adults and Health,Other Agencies - Third Party P,90194407,CAREWATCH (BARNET),781.90,17/09/2019
Delivery Units,Adults and Health,Other Agencies - Third Party P,90194408,CAREWATCH (BARNET),116.00,17/09/2019
Delivery Units,Adults and Health,Other Agencies - Third Party P,90194410,CAREWATCH (BARNET),120.26,17/09/2019
Delivery Units,Adults and Health,Other Agencies - Third Party P,90194411,CAREWATCH (BARNET),300.72,17/09/2019
Delivery Units,Adults and Health,Other Agencies - Third Party P,90194413,CAREWATCH (BARNET),90.23,17/09/2019
Delivery Units,Adults and Health,Other Agencies - Third Party P,90194414,CAREWATCH (BARNET),201.90,17/09/2019
Delivery Units,Adults and Health,Other Agencies - Third Party P,90194415,CAREWATCH (BARNET),141.77,17/09/2019
Delivery Units,Adults and Health,Other Agencies - Third Party P,90194416,CAREWATCH (BARNET),270.62,17/09/2019
Delivery Units,Adults and Health,Other Agencies - Third Party P,90194417,CAREWATCH (BARNET),244.85,17/09/2019
Delivery Units,Adults and Health,Other Agencies - Third Party P,90194418,CAREWATCH (BARNET),150.36,17/09/2019
Delivery Units,Adults and Health,Other Agencies - Third Party P,90194419,CAREWATCH (BARNET),120.26,17/09/2019
Delivery Units,Adults and Health,Other Agencies - Third Party P,90194420,CAREWATCH (BARNET),210.49,17/09/2019
Delivery Units,Adults and Health,Other Agencies - Third Party P,90194421,CAREWATCH (BARNET),438.09,17/09/2019
Delivery Units,Adults and Health,Other Agencies - Third Party P,90194422,CAREWATCH (BARNET),206.23,17/09/2019
Delivery Units,Adults and Health,Other Agencies - Third Party P,90194423,CAREWATCH (BARNET),240.59,17/09/2019
Delivery Units,Adults and Health,Other Agencies - Third Party P,90194425,CAREWATCH (BARNET),266.29,17/09/2019
Delivery Units,Adults and Health,Other Agencies - Third Party P,90194426,CAREWATCH (BARNET),240.52,17/09/2019
Delivery Units,Adults and Health,Other Agencies - Third Party P,90194427,CAREWATCH (BARNET),150.36,17/09/2019
Delivery Units,Adults and Health,Other Agencies - Third Party P,90194428,CAREWATCH (BARNET),111.68,17/09/2019
Delivery Units,Adults and Health,Other Agencies - Third Party P,90194429,CAREWATCH (BARNET),592.74,17/09/2019
Delivery Units,Adults and Health,Other Agencies - Third Party P,90194430,CAREWATCH (BARNET),90.23,17/09/2019
Delivery Units,Adults and Health,Other Agencies - Third Party P,90194431,CAREWATCH (BARNET),674.32,17/09/2019
Delivery Units,Adults and Health,Other Agencies - Third Party P,90194432,CAREWATCH (BARNET),51.54,17/09/2019
Delivery Units,Adults and Health,Other Agencies - Third Party P,90194433,CAREWATCH (BARNET),180.39,17/09/2019
Delivery Units,Adults and Health,Other Agencies - Third Party P,90194434,CAREWATCH (BARNET),253.44,17/09/2019
Delivery Units,Adults and Health,Other Agencies - Third Party P,90194435,CAREWATCH (BARNET),98.82,17/09/2019
Delivery Units,Adults and Health,Other Agencies - Third Party P,90194436,CAREWATCH (BARNET),270.60,17/09/2019
Delivery Units,Adults and Health,Other Agencies - Third Party P,90194437,CAREWATCH (BARNET),176.10,17/09/2019
Delivery Units,Adults and Health,Other Agencies - Third Party P,90194438,CAREWATCH (BARNET),231.96,17/09/2019
Delivery Units,Adults and Health,Other Agencies - Third Party P,90194439,CAREWATCH (BARNET),219.06,17/09/2019
Delivery Units,Adults and Health,Other Agencies - Third Party P,90194440,CAREWATCH (BARNET),180.40,17/09/2019
Delivery Units,Adults and Health,Other Agencies - Third Party P,90194441,CAREWATCH (BARNET),227.64,17/09/2019
Delivery Units,Adults and Health,Other Agencies - Third Party P,90194442,CAREWATCH (BARNET),150.34,17/09/2019
Delivery Units,Adults and Health,Other Agencies - Third Party P,90194443,CAREWATCH (BARNET),150.33,17/09/2019
Delivery Units,Adults and Health,Other Agencies - Third Party P,90194444,CAREWATCH (BARNET),90.23,17/09/2019
Delivery Units,Adults and Health,Other Agencies - Third Party P,90194445,CAREWATCH (BARNET),120.26,17/09/2019
Delivery Units,Adults and Health,Other Agencies - Third Party P,90194446,CAREWATCH (BARNET),90.23,17/09/2019
Delivery Units,Adults and Health,Other Agencies - Third Party P,90194447,CAREWATCH (BARNET),120.26,17/09/2019
Delivery Units,Adults and Health,Other Agencies - Third Party P,90194448,CAREWATCH (BARNET),34.36,17/09/2019
Delivery Units,Adults and Health,Other Agencies - Third Party P,90194449,CAREWATCH (BARNET),17.18,17/09/2019
Delivery Units,Adults and Health,Other Agencies - Third Party P,90194450,CAREWATCH (BARNET),283.54,17/09/2019
Delivery Units,Adults and Health,Other Agencies - Third Party P,90194452,CAREWATCH (BARNET),214.80,17/09/2019
Delivery Units,Adults and Health,Other Agencies - Third Party P,90194453,CAREWATCH (BARNET),184.68,17/09/2019
Delivery Units,Adults and Health,Other Agencies - Third Party P,90194454,CAREWATCH (BARNET),292.09,17/09/2019
Delivery Units,Adults and Health,Other Agencies - Third Party P,90194455,CAREWATCH (BARNET),107.40,17/09/2019
Delivery Units,Adults and Health,Other Agencies - Third Party P,90194456,CAREWATCH (BARNET),120.26,17/09/2019
Delivery Units,Adults and Health,Other Agencies - Third Party P,90194457,CAREWATCH (BARNET),38.67,17/09/2019
Delivery Units,Adults and Health,Other Agencies - Third Party P,90194458,CAREWATCH (BARNET),210.48,17/09/2019
Delivery Units,Adults and Health,Other Agencies - Third Party P,90194459,CAREWATCH (BARNET),266.31,17/09/2019
Delivery Units,Adults and Health,Other Agencies - Third Party P,90194460,CAREWATCH (BARNET),163.21,17/09/2019
Delivery Units,Adults and Health,Other Agencies - Third Party P,90194461,CAREWATCH (BARNET),201.90,17/09/2019
Delivery Units,Adults and Health,Other Agencies - Third Party P,90194462,CAREWATCH (BARNET),240.52,17/09/2019
Delivery Units,Adults and Health,Other Agencies - Third Party P,90194463,CAREWATCH (BARNET),51.54,17/09/2019
Delivery Units,Adults and Health,Other Agencies - Third Party P,90194464,CAREWATCH (BARNET),262.00,17/09/2019
Delivery Units,Adults and Health,Other Agencies - Third Party P,90194465,CAREWATCH (BARNET),60.13,17/09/2019
Delivery Units,Adults and Health,Other Agencies - Third Party P,90194466,CAREWATCH (BARNET),120.26,17/09/2019
Delivery Units,Adults and Health,Other Agencies - Third Party P,90194467,CAREWATCH (BARNET),30.07,17/09/2019
Delivery Units,Adults and Health,Other Agencies - Third Party P,90194468,CAREWATCH (BARNET),90.22,17/09/2019
Delivery Units,Adults and Health,Other Agencies - Third Party P,90194471,CAREWATCH (BARNET),257.70,17/09/2019
Delivery Units,Adults and Health,Other Agencies - Third Party P,90194472,CAREWATCH (BARNET),58.00,17/09/2019
Delivery Units,Adults and Health,Other Agencies - Third Party P,90194473,CAREWATCH (BARNET),734.45,17/09/2019
Delivery Units,Adults and Health,Other Agencies - Third Party P,90194474,CAREWATCH (BARNET),277.06,17/09/2019
Delivery Units,Adults and Health,Other Agencies - Third Party P,90194475,CAREWATCH (BARNET),193.28,17/09/2019
Delivery Units,Adults and Health,Other Agencies - Third Party P,90194476,CAREWATCH (BARNET),322.14,17/09/2019
Delivery Units,Adults and Health,Other Agencies - Third Party P,90194477,CAREWATCH (BARNET),837.72,17/09/2019
Delivery Units,Adults and Health,Other Agencies - Third Party P,90194479,CAREWATCH (BARNET),128.86,17/09/2019
Delivery Units,Adults and Health,Other Agencies - Third Party P,90194480,CAREWATCH (BARNET),257.71,17/09/2019
Delivery Units,Adults and Health,Other Agencies - Third Party P,90194482,CAREWATCH (BARNET),96.67,17/09/2019
Delivery Units,Adults and Health,Other Agencies - Third Party P,90194483,CAREWATCH (BARNET),21.48,17/09/2019
Delivery Units,Adults and Health,Other Agencies - Third Party P,90194484,CAREWATCH (BARNET),216.94,17/09/2019
Delivery Units,Adults and Health,Other Agencies - Third Party P,90194485,CAREWATCH (BARNET),152.51,17/09/2019
Delivery Units,Adults and Health,Other Agencies - Third Party P,90194486,CAREWATCH (BARNET),289.95,17/09/2019
Delivery Units,Adults and Health,Other Agencies - Third Party P,90194487,CAREWATCH (BARNET),161.10,17/09/2019
Delivery Units,Adults and Health,Other Agencies - Third Party P,90194488,CAREWATCH (BARNET),195.46,17/09/2019
Delivery Units,Adults and Health,Other Agencies - Third Party P,90194489,CAREWATCH (BARNET),128.86,17/09/2019
Delivery Units,Adults and Health,Other Agencies - Third Party P,90194490,CAREWATCH (BARNET),225.53,17/09/2019
Delivery Units,Adults and Health,Other Agencies - Third Party P,90194491,CAREWATCH (BARNET),64.43,17/09/2019
Delivery Units,Adults and Health,Other Agencies - Third Party P,90194492,CAREWATCH (BARNET),463.86,17/09/2019
Delivery Units,Adults and Health,Other Agencies - Third Party P,90194493,CAREWATCH (BARNET),219.11,17/09/2019
Delivery Units,Adults and Health,Other Agencies - Third Party P,90194494,CAREWATCH (BARNET),257.77,17/09/2019
Delivery Units,Adults and Health,Other Agencies - Third Party P,90194495,CAREWATCH (BARNET),128.86,17/09/2019
Delivery Units,Adults and Health,Other Agencies - Third Party P,90194497,CAREWATCH (BARNET),283.48,17/09/2019
Delivery Units,Adults and Health,Other Agencies - Third Party P,90194498,CAREWATCH (BARNET),257.71,17/09/2019
Delivery Units,Adults and Health,Other Agencies - Third Party P,90194499,CAREWATCH (BARNET),161.10,17/09/2019
Delivery Units,Adults and Health,Other Agencies - Third Party P,90194500,CAREWATCH (BARNET),90.20,17/09/2019
Delivery Units,Adults and Health,Other Agencies - Third Party P,90194501,CAREWATCH (BARNET),609.93,17/09/2019
Delivery Units,Adults and Health,Other Agencies - Third Party P,90194502,CAREWATCH (BARNET),96.67,17/09/2019
Delivery Units,Adults and Health,Other Agencies - Third Party P,90194503,CAREWATCH (BARNET),210.49,17/09/2019
Delivery Units,Adults and Health,Other Agencies - Third Party P,90194504,CAREWATCH (BARNET),60.13,17/09/2019
Delivery Units,Adults and Health,Other Agencies - Third Party P,90194505,CAREWATCH (BARNET),249.16,17/09/2019
Delivery Units,Adults and Health,Other Agencies - Third Party P,90194506,CAREWATCH (BARNET),137.48,17/09/2019
Delivery Units,Adults and Health,Other Agencies - Third Party P,90194507,CAREWATCH (BARNET),259.87,17/09/2019
Delivery Units,Adults and Health,Other Agencies - Third Party P,90194508,CAREWATCH (BARNET),193.28,17/09/2019
Delivery Units,Adults and Health,Other Agencies - Third Party P,90194509,CAREWATCH (BARNET),317.89,17/09/2019
Delivery Units,Adults and Health,Other Agencies - Third Party P,90194510,CAREWATCH (BARNET),251.30,17/09/2019
Delivery Units,Adults and Health,Other Agencies - Third Party P,90194511,CAREWATCH (BARNET),131.03,17/09/2019
Delivery Units,Adults and Health,Other Agencies - Third Party P,90194512,CAREWATCH (BARNET),298.50,17/09/2019
Delivery Units,Adults and Health,Other Agencies - Third Party P,90194513,CAREWATCH (BARNET),98.80,17/09/2019
Delivery Units,Adults and Health,Other Agencies - Third Party P,90194514,CAREWATCH (BARNET),201.87,17/09/2019
Delivery Units,Adults and Health,Other Agencies - Third Party P,90194515,CAREWATCH (BARNET),96.67,17/09/2019
Delivery Units,Adults and Health,Other Agencies - Third Party P,90194516,CAREWATCH (BARNET),141.74,17/09/2019
Delivery Units,Adults and Health,Other Agencies - Third Party P,90194517,CAREWATCH (BARNET),188.99,17/09/2019
Delivery Units,Adults and Health,Other Agencies - Third Party P,90194518,CAREWATCH (BARNET),42.95,17/09/2019
Delivery Units,Adults and Health,Other Agencies - Third Party P,90194519,CAREWATCH (BARNET),322.19,17/09/2019
Delivery Units,Adults and Health,Other Agencies - Third Party P,90194520,CAREWATCH (BARNET),96.67,17/09/2019
Delivery Units,Adults and Health,Other Agencies - Third Party P,90194521,CAREWATCH (BARNET),223.39,17/09/2019
Delivery Units,Adults and Health,Other Agencies - Third Party P,90194522,CAREWATCH (BARNET),197.57,17/09/2019
Delivery Units,Adults and Health,Other Agencies - Third Party P,90194523,CAREWATCH (BARNET),315.71,17/09/2019
Delivery Units,Adults and Health,Other Agencies - Third Party P,90194524,CAREWATCH (BARNET),251.30,17/09/2019
Delivery Units,Adults and Health,Other Agencies - Third Party P,90194525,CAREWATCH (BARNET),113.84,17/09/2019
Delivery Units,Adults and Health,Other Agencies - Third Party P,90194526,CAREWATCH (BARNET),122.41,17/09/2019
Delivery Units,Adults and Health,Other Agencies - Third Party P,90194527,CAREWATCH (BARNET),38.67,17/09/2019
Delivery Units,Adults and Health,Other Agencies - Third Party P,90194529,CAREWATCH (BARNET),208.35,17/09/2019
Delivery Units,Adults and Health,Other Agencies - Third Party P,90194530,CAREWATCH (BARNET),287.79,17/09/2019
Delivery Units,Adults and Health,Other Agencies - Third Party P,90194531,CAREWATCH (BARNET),158.93,17/09/2019
Delivery Units,Adults and Health,Other Agencies - Third Party P,90194532,CAREWATCH (BARNET),225.53,17/09/2019
Delivery Units,Adults and Health,Other Agencies - Third Party P,90194533,CAREWATCH (BARNET),199.72,17/09/2019
Delivery Units,Adults and Health,Other Agencies - Third Party P,90194534,CAREWATCH (BARNET),55.84,17/09/2019
Delivery Units,Adults and Health,Other Agencies - Third Party P,90194535,CAREWATCH (BARNET),272.74,17/09/2019
Delivery Units,Adults and Health,Other Agencies - Third Party P,90194536,CAREWATCH (BARNET),21.48,17/09/2019
Delivery Units,Adults and Health,Other Agencies - Third Party P,90194537,CAREWATCH (BARNET),90.23,17/09/2019
Delivery Units,Adults and Health,Other Agencies - Third Party P,90194540,CAREWATCH (BARNET),601.30,17/09/2019
Delivery Units,Adults and Health,Other Agencies - Third Party P,90194541,CAREWATCH (BARNET),257.73,17/09/2019
Delivery Units,Adults and Health,Other Agencies - Third Party P,90194542,CAREWATCH (BARNET),180.39,17/09/2019
Delivery Units,Adults and Health,Other Agencies - Third Party P,90194543,CAREWATCH (BARNET),300.65,17/09/2019
Delivery Units,Adults and Health,Other Agencies - Third Party P,90194544,CAREWATCH (BARNET),781.90,17/09/2019
Delivery Units,Adults and Health,Other Agencies - Third Party P,90194546,CAREWATCH (BARNET),120.26,17/09/2019
Delivery Units,Adults and Health,Other Agencies - Third Party P,90194547,CAREWATCH (BARNET),90.23,17/09/2019
Delivery Units,Adults and Health,Other Agencies - Third Party P,90194548,CAREWATCH (BARNET),34.36,17/09/2019
Delivery Units,Adults and Health,Other Agencies - Third Party P,90194549,CAREWATCH (BARNET),141.77,17/09/2019
Delivery Units,Adults and Health,Other Agencies - Third Party P,90194550,CAREWATCH (BARNET),270.62,17/09/2019
Delivery Units,Adults and Health,Other Agencies - Third Party P,90194551,CAREWATCH (BARNET),244.85,17/09/2019
Delivery Units,Adults and Health,Other Agencies - Third Party P,90194552,CAREWATCH (BARNET),171.84,17/09/2019
Delivery Units,Adults and Health,Other Agencies - Third Party P,90194553,CAREWATCH (BARNET),120.26,17/09/2019
Delivery Units,Adults and Health,Other Agencies - Third Party P,90194554,CAREWATCH (BARNET),60.13,17/09/2019
Delivery Units,Adults and Health,Other Agencies - Third Party P,90194555,CAREWATCH (BARNET),210.49,17/09/2019
Delivery Units,Adults and Health,Other Agencies - Third Party P,90194556,CAREWATCH (BARNET),438.09,17/09/2019
Delivery Units,Adults and Health,Other Agencies - Third Party P,90194557,CAREWATCH (BARNET),206.23,17/09/2019
Delivery Units,Adults and Health,Other Agencies - Third Party P,90194558,CAREWATCH (BARNET),240.59,17/09/2019
Delivery Units,Adults and Health,Other Agencies - Third Party P,90194559,CAREWATCH (BARNET),120.26,17/09/2019
Delivery Units,Adults and Health,Other Agencies - Third Party P,90194561,CAREWATCH (BARNET),266.29,17/09/2019
Delivery Units,Adults and Health,Other Agencies - Third Party P,90194562,CAREWATCH (BARNET),240.52,17/09/2019
Delivery Units,Adults and Health,Other Agencies - Third Party P,90194563,CAREWATCH (BARNET),111.67,17/09/2019
Delivery Units,Adults and Health,Other Agencies - Third Party P,90194564,CAREWATCH (BARNET),236.22,17/09/2019
Delivery Units,Adults and Health,Other Agencies - Third Party P,90194565,CAREWATCH (BARNET),42.95,17/09/2019
Delivery Units,Adults and Health,Other Agencies - Third Party P,90194566,CAREWATCH (BARNET),90.23,17/09/2019
Delivery Units,Adults and Health,Other Agencies - Third Party P,90194567,CAREWATCH (BARNET),704.38,17/09/2019
Delivery Units,Adults and Health,Other Agencies - Third Party P,90194568,CAREWATCH (BARNET),60.14,17/09/2019
Delivery Units,Adults and Health,Other Agencies - Third Party P,90194569,CAREWATCH (BARNET),51.54,17/09/2019
Delivery Units,Adults and Health,Other Agencies - Third Party P,90194570,CAREWATCH (BARNET),51.55,17/09/2019
Delivery Units,Adults and Health,Other Agencies - Third Party P,90194571,CAREWATCH (BARNET),133.19,17/09/2019
Delivery Units,Adults and Health,Other Agencies - Third Party P,90194572,CAREWATCH (BARNET),73.03,17/09/2019
Delivery Units,Adults and Health,Other Agencies - Third Party P,90194573,CAREWATCH (BARNET),266.31,17/09/2019
Delivery Units,Adults and Health,Other Agencies - Third Party P,90194574,CAREWATCH (BARNET),176.10,17/09/2019
Delivery Units,Adults and Health,Other Agencies - Third Party P,90194575,CAREWATCH (BARNET),300.72,17/09/2019
Delivery Units,Adults and Health,Other Agencies - Third Party P,90194576,CAREWATCH (BARNET),236.26,17/09/2019
Delivery Units,Adults and Health,Other Agencies - Third Party P,90194577,CAREWATCH (BARNET),240.52,17/09/2019
Delivery Units,Adults and Health,Other Agencies - Third Party P,90194578,CAREWATCH (BARNET),154.65,17/09/2019
Delivery Units,Adults and Health,Other Agencies - Third Party P,90194579,CAREWATCH (BARNET),94.49,17/09/2019
Delivery Units,Adults and Health,Other Agencies - Third Party P,90194580,CAREWATCH (BARNET),133.18,17/09/2019
Delivery Units,Adults and Health,Other Agencies - Third Party P,90194581,CAREWATCH (BARNET),188.98,17/09/2019
Delivery Units,Adults and Health,Other Agencies - Third Party P,90194583,CAREWATCH (BARNET),133.15,17/09/2019
Delivery Units,Adults and Health,Other Agencies - Third Party P,90194584,CAREWATCH (BARNET),90.23,17/09/2019
Delivery Units,Adults and Health,Other Agencies - Third Party P,90194585,CAREWATCH (BARNET),171.81,17/09/2019
Delivery Units,Adults and Health,Other Agencies - Third Party P,90194586,CAREWATCH (BARNET),17.18,17/09/2019
Delivery Units,Adults and Health,Other Agencies - Third Party P,90194587,CAREWATCH (BARNET),300.72,17/09/2019
Delivery Units,Adults and Health,Other Agencies - Third Party P,90194588,CAREWATCH (BARNET),90.23,17/09/2019
Delivery Units,Adults and Health,Other Agencies - Third Party P,90194590,CAREWATCH (BARNET),201.90,17/09/2019
Delivery Units,Adults and Health,Other Agencies - Third Party P,90194591,CAREWATCH (BARNET),214.79,17/09/2019
Delivery Units,Adults and Health,Other Agencies - Third Party P,90194592,CAREWATCH (BARNET),158.92,17/09/2019
Delivery Units,Adults and Health,Other Agencies - Third Party P,90194593,CAREWATCH (BARNET),266.30,17/09/2019
Delivery Units,Adults and Health,Other Agencies - Third Party P,90194594,CAREWATCH (BARNET),107.40,17/09/2019
Delivery Units,Adults and Health,Other Agencies - Third Party P,90194595,CAREWATCH (BARNET),115.97,17/09/2019
Delivery Units,Adults and Health,Other Agencies - Third Party P,90194596,CAREWATCH (BARNET),38.67,17/09/2019
Delivery Units,Adults and Health,Other Agencies - Third Party P,90194597,CAREWATCH (BARNET),150.36,17/09/2019
Delivery Units,Adults and Health,Other Agencies - Third Party P,90194599,CAREWATCH (BARNET),180.42,17/09/2019
Delivery Units,Adults and Health,Other Agencies - Third Party P,90194600,CAREWATCH (BARNET),287.80,17/09/2019
Delivery Units,Adults and Health,Other Agencies - Third Party P,90194601,CAREWATCH (BARNET),133.15,17/09/2019
Delivery Units,Adults and Health,Other Agencies - Third Party P,90194602,CAREWATCH (BARNET),201.91,17/09/2019
Delivery Units,Adults and Health,Other Agencies - Third Party P,90194603,CAREWATCH (BARNET),206.16,17/09/2019
Delivery Units,Adults and Health,Other Agencies - Third Party P,90194604,CAREWATCH (BARNET),249.11,17/09/2019
Delivery Units,Adults and Health,Other Agencies - Third Party P,90194605,CAREWATCH (BARNET),51.54,17/09/2019
Delivery Units,Adults and Health,Other Agencies - Third Party P,90194606,CAREWATCH (BARNET),17.18,17/09/2019
Delivery Units,Adults and Health,Other Agencies - Third Party P,90194607,CAREWATCH (BARNET),81.63,17/09/2019
Delivery Units,Adults and Health,Other Agencies - Third Party P,90194608,CAREWATCH (BARNET),150.35,17/09/2019
Delivery Units,Adults and Health,Other Agencies - Third Party P,90191151,DYNAMIC PEOPLE LTD,138.04,02/09/2019
Delivery Units,Adults and Health,Other Agencies - Third Party P,90191152,DYNAMIC PEOPLE LTD,248.43,02/09/2019
Delivery Units,Adults and Health,Other Agencies - Third Party P,90191153,DYNAMIC PEOPLE LTD,59.15,02/09/2019
Delivery Units,Adults and Health,Other Agencies - Third Party P,90191154,DYNAMIC PEOPLE LTD,220.85,02/09/2019
Delivery Units,Adults and Health,Other Agencies - Third Party P,90191155,DYNAMIC PEOPLE LTD,82.81,02/09/2019
Delivery Units,Adults and Health,Other Agencies - Third Party P,90191156,DYNAMIC PEOPLE LTD,331.24,02/09/2019
Delivery Units,Adults and Health,Other Agencies - Third Party P,90191157,DYNAMIC PEOPLE LTD,193.27,02/09/2019
Delivery Units,Adults and Health,Other Agencies - Third Party P,90191158,DYNAMIC PEOPLE LTD,82.81,02/09/2019
Delivery Units,Adults and Health,Other Agencies - Third Party P,90191160,DYNAMIC PEOPLE LTD,110.39,02/09/2019
Delivery Units,Adults and Health,Other Agencies - Third Party P,90191161,DYNAMIC PEOPLE LTD,138.04,02/09/2019
Delivery Units,Adults and Health,Other Agencies - Third Party P,90191162,DYNAMIC PEOPLE LTD,441.56,02/09/2019
Delivery Units,Adults and Health,Other Agencies - Third Party P,90191163,DYNAMIC PEOPLE LTD,138.04,02/09/2019
Delivery Units,Adults and Health,Other Agencies - Third Party P,90191165,DYNAMIC PEOPLE LTD,276.08,02/09/2019
Delivery Units,Adults and Health,Other Agencies - Third Party P,90191166,DYNAMIC PEOPLE LTD,220.85,02/09/2019
Delivery Units,Adults and Health,Other Agencies - Third Party P,90191167,DYNAMIC PEOPLE LTD,138.04,02/09/2019
Delivery Units,Adults and Health,Other Agencies - Third Party P,90191168,DYNAMIC PEOPLE LTD,78.85,02/09/2019
Delivery Units,Adults and Health,Other Agencies - Third Party P,90191169,DYNAMIC PEOPLE LTD,264.19,02/09/2019
Delivery Units,Adults and Health,Other Agencies - Third Party P,90191170,DYNAMIC PEOPLE LTD,35.49,02/09/2019
Delivery Units,Adults and Health,Other Agencies - Third Party P,90191171,DYNAMIC PEOPLE LTD,110.39,02/09/2019
Delivery Units,Adults and Health,Other Agencies - Third Party P,90191172,DYNAMIC PEOPLE LTD,717.54,02/09/2019
Delivery Units,Adults and Health,Other Agencies - Third Party P,90191174,DYNAMIC PEOPLE LTD,303.59,02/09/2019
Delivery Units,Adults and Health,Other Agencies - Third Party P,90191175,DYNAMIC PEOPLE LTD,276.09,02/09/2019
Delivery Units,Adults and Health,Other Agencies - Third Party P,90191176,DYNAMIC PEOPLE LTD,386.54,02/09/2019
Delivery Units,Adults and Health,Other Agencies - Third Party P,90191178,DYNAMIC PEOPLE LTD,212.94,02/09/2019
Delivery Units,Adults and Health,Other Agencies - Third Party P,90191179,DYNAMIC PEOPLE LTD,118.29,02/09/2019
Delivery Units,Adults and Health,Other Agencies - Third Party P,90191180,DYNAMIC PEOPLE LTD,260.28,02/09/2019
Delivery Units,Adults and Health,Other Agencies - Third Party P,90191182,DYNAMIC PEOPLE LTD,299.74,02/09/2019
Delivery Units,Adults and Health,Other Agencies - Third Party P,90191183,DYNAMIC PEOPLE LTD,169.56,02/09/2019
Delivery Units,Adults and Health,Other Agencies - Third Party P,90191184,DYNAMIC PEOPLE LTD,177.51,02/09/2019
Delivery Units,Adults and Health,Other Agencies - Third Party P,90191185,DYNAMIC PEOPLE LTD,165.62,02/09/2019
Delivery Units,Adults and Health,Other Agencies - Third Party P,90191186,DYNAMIC PEOPLE LTD,276.01,02/09/2019
Delivery Units,Adults and Health,Other Agencies - Third Party P,90191187,DYNAMIC PEOPLE LTD,717.64,02/09/2019
Delivery Units,Adults and Health,Other Agencies - Third Party P,90191188,DYNAMIC PEOPLE LTD,82.81,02/09/2019
Delivery Units,Adults and Health,Other Agencies - Third Party P,90191189,DYNAMIC PEOPLE LTD,63.11,02/09/2019
Delivery Units,Adults and Health,Other Agencies - Third Party P,90191190,DYNAMIC PEOPLE LTD,497.00,02/09/2019
Delivery Units,Adults and Health,Other Agencies - Third Party P,90191191,DYNAMIC PEOPLE LTD,193.27,02/09/2019
Delivery Units,Adults and Health,Other Agencies - Third Party P,90191194,DYNAMIC PEOPLE LTD,276.01,02/09/2019
Delivery Units,Adults and Health,Other Agencies - Third Party P,90191195,DYNAMIC PEOPLE LTD,220.85,02/09/2019
Delivery Units,Adults and Health,Other Agencies - Third Party P,90191196,DYNAMIC PEOPLE LTD,82.81,02/09/2019
Delivery Units,Adults and Health,Other Agencies - Third Party P,90191197,DYNAMIC PEOPLE LTD,82.81,02/09/2019
Delivery Units,Adults and Health,Other Agencies - Third Party P,90191198,DYNAMIC PEOPLE LTD,110.39,02/09/2019
Delivery Units,Adults and Health,Other Agencies - Third Party P,90191201,DYNAMIC PEOPLE LTD,147.90,02/09/2019
Delivery Units,Adults and Health,Other Agencies - Third Party P,90191202,DYNAMIC PEOPLE LTD,266.18,02/09/2019
Delivery Units,Adults and Health,Other Agencies - Third Party P,90191203,DYNAMIC PEOPLE LTD,78.86,02/09/2019
Delivery Units,Adults and Health,Other Agencies - Third Party P,90191204,DYNAMIC PEOPLE LTD,65.07,02/09/2019
Delivery Units,Adults and Health,Other Agencies - Third Party P,90191206,DYNAMIC PEOPLE LTD,163.67,02/09/2019
Delivery Units,Adults and Health,Other Agencies - Third Party P,90191207,DYNAMIC PEOPLE LTD,207.07,02/09/2019
Delivery Units,Adults and Health,Other Agencies - Third Party P,90191208,DYNAMIC PEOPLE LTD,88.73,02/09/2019
Delivery Units,Adults and Health,Other Agencies - Third Party P,90191209,DYNAMIC PEOPLE LTD,295.79,02/09/2019
Delivery Units,Adults and Health,Other Agencies - Third Party P,90191210,DYNAMIC PEOPLE LTD,118.28,02/09/2019
Delivery Units,Adults and Health,Other Agencies - Third Party P,90191212,DYNAMIC PEOPLE LTD,147.90,02/09/2019
Delivery Units,Adults and Health,Other Agencies - Third Party P,90191213,DYNAMIC PEOPLE LTD,177.45,02/09/2019
Delivery Units,Adults and Health,Other Agencies - Third Party P,90191215,DYNAMIC PEOPLE LTD,147.90,02/09/2019
Delivery Units,Adults and Health,Other Agencies - Third Party P,90191217,DYNAMIC PEOPLE LTD,295.79,02/09/2019
Delivery Units,Adults and Health,Other Agencies - Third Party P,90191218,DYNAMIC PEOPLE LTD,236.62,02/09/2019
Delivery Units,Adults and Health,Other Agencies - Third Party P,90191219,DYNAMIC PEOPLE LTD,285.88,02/09/2019
Delivery Units,Adults and Health,Other Agencies - Third Party P,90191220,DYNAMIC PEOPLE LTD,88.73,02/09/2019
Delivery Units,Adults and Health,Other Agencies - Third Party P,90191221,DYNAMIC PEOPLE LTD,118.28,02/09/2019
Delivery Units,Adults and Health,Other Agencies - Third Party P,90191222,DYNAMIC PEOPLE LTD,177.45,02/09/2019
Delivery Units,Adults and Health,Other Agencies - Third Party P,90191223,DYNAMIC PEOPLE LTD,325.29,02/09/2019
Delivery Units,Adults and Health,Other Agencies - Third Party P,90191224,DYNAMIC PEOPLE LTD,295.80,02/09/2019
Delivery Units,Adults and Health,Other Agencies - Third Party P,90191225,DYNAMIC PEOPLE LTD,414.14,02/09/2019
Delivery Units,Adults and Health,Other Agencies - Third Party P,90191227,DYNAMIC PEOPLE LTD,266.18,02/09/2019
Delivery Units,Adults and Health,Other Agencies - Third Party P,90191228,DYNAMIC PEOPLE LTD,181.40,02/09/2019
Delivery Units,Adults and Health,Other Agencies - Third Party P,90191229,DYNAMIC PEOPLE LTD,189.33,02/09/2019
Delivery Units,Adults and Health,Other Agencies - Third Party P,90191230,DYNAMIC PEOPLE LTD,319.45,02/09/2019
Delivery Units,Adults and Health,Other Agencies - Third Party P,90191231,DYNAMIC PEOPLE LTD,177.45,02/09/2019
Delivery Units,Adults and Health,Other Agencies - Third Party P,90191232,DYNAMIC PEOPLE LTD,295.74,02/09/2019
Delivery Units,Adults and Health,Other Agencies - Third Party P,90191233,DYNAMIC PEOPLE LTD,768.94,02/09/2019
Delivery Units,Adults and Health,Other Agencies - Third Party P,90191234,DYNAMIC PEOPLE LTD,88.73,02/09/2019
Delivery Units,Adults and Health,Other Agencies - Third Party P,90191235,DYNAMIC PEOPLE LTD,67.05,02/09/2019
Delivery Units,Adults and Health,Other Agencies - Third Party P,90191237,DYNAMIC PEOPLE LTD,532.48,02/09/2019
Delivery Units,Adults and Health,Other Agencies - Third Party P,90191239,DYNAMIC PEOPLE LTD,207.01,02/09/2019
Delivery Units,Adults and Health,Other Agencies - Third Party P,90191240,DYNAMIC PEOPLE LTD,295.73,02/09/2019
Delivery Units,Adults and Health,Other Agencies - Third Party P,90191241,DYNAMIC PEOPLE LTD,88.73,02/09/2019
Delivery Units,Adults and Health,Other Agencies - Third Party P,90191242,DYNAMIC PEOPLE LTD,31.54,02/09/2019
Delivery Units,Adults and Health,Other Agencies - Third Party P,90193237,DYNAMIC PEOPLE LTD,147.90,10/09/2019
Delivery Units,Adults and Health,Other Agencies - Third Party P,90193238,DYNAMIC PEOPLE LTD,266.18,10/09/2019
Delivery Units,Adults and Health,Other Agencies - Third Party P,90193239,DYNAMIC PEOPLE LTD,65.07,10/09/2019
Delivery Units,Adults and Health,Other Agencies - Third Party P,90193241,DYNAMIC PEOPLE LTD,88.73,10/09/2019
Delivery Units,Adults and Health,Other Agencies - Third Party P,90193242,DYNAMIC PEOPLE LTD,163.67,10/09/2019
Delivery Units,Adults and Health,Other Agencies - Third Party P,90193243,DYNAMIC PEOPLE LTD,207.07,10/09/2019
Delivery Units,Adults and Health,Other Agencies - Third Party P,90193244,DYNAMIC PEOPLE LTD,118.28,10/09/2019
